Workbook

Sheet CMT Calculation (hidden)
A1: Fixed Rate | B1: 0.07964400311 | C1: =CMTFixed*freq ->  | D1: Volatility of n-period fwd rate | F1: 0.12 | Q1: PV Swap | R1: =SUM(W10:W129)+SUM(AH10:AH129) -> 0
D2: Volatility of index | F2: 0.1
A3: Calculations | D3: Correlation of fwd rate and index | F3: 0.7
A4: Current index | C4: =VLOOKUP(index,$A$10:$C$129,3,FALSE) -> 
A6: Calculation of forward par rates | J6: Calculation of G' & G''
B7: year Swap Rate after | D7: 1 | E7: Years= | F7: =freq*(VLOOKUP($D$7*12,$A$10:$D$129,4)-VLOOKUP($D$7*12+index,$A$10:$D$129,4))/(SUM($G$10:$G$129)) ->  | J7: G''/G' (y0)= | K7: =SUM(O10:O51)/SUM(N10:N51) -> 
AE8: Broken Period Calculation
A9: Maturity | B9: Par Rate | C9: Par ( at appropriate freq) | D9: df | E9: Spot | F9: Include | G9: Included df | J9: Maturity | K9: G' | L9: G'' | M9: Include | N9: G' | O9: G'' | Q9: Maturity | R9: Forward Par Rates | S9: Par Rates | T9: Adjusted Forward Swap Rates | U9: Expected Cash Flow | V9: Discount Factors | W9: Discounted Expected Cash Flow | Y9: temp1 | Z9: temp2 | AE9: Flag | AF9: Broken Period | AG9: Broken Period cash flow | AH9: PV of brokenperiod cash flow
A10: =Range!C48 ->  | B10: =IF(ISERROR(VLOOKUP(A10,'G-Sec Yield Curve'!$A$4:$E$123,5,FALSE)),"",VLOOKUP(A10,'G-Sec Yield Curve'!$A$4:$E$123,5,FALSE)) ->  | C10: =IF(ISERROR(NOMINAL(B10,freq)),"",NOMINAL(B10,freq)) ->  | D10: =IF(ISERROR(VLOOKUP(A10,'G-Sec Yield Curve'!$A$4:$D$123,4,FALSE)),"",VLOOKUP(A10,'G-Sec Yield Curve'!$A$4:$D$123,4,FALSE)) ->  | F10: =IF(AND(A10/12>$D$7,A10/12<=$D$7+index/12),1,0) ->  | G10: =IF(ISERROR(D10*F10),"",D10*F10) ->  | J10: =A10 ->  | K10: =IF(J10="","",IF(J10<>term,-(J10/12)*$C$4/((1+$C$4/freq)^(freq*(J10/12)+1)),-(J10/12)*(1+$C$4)/((1+$C$4/freq)^(freq*(J10/12)+1)))) ->  | L10: =IF(J10="","",IF(J10<>term,(J10/12)*$C$4*((J10/12)+1/freq)/(1+$C$4/freq)^(freq*(J10/12)+2),(J10/12)*(1+$C$4)*((J10/12)+1/freq)/(1+$C$4/freq)^(freq*(J10/12)+2))) ->  | M10: =IF(J10<=index,1,0) ->  | N10: =K10*M10 ->  | O10: =L10*M10 ->  | Q10: =A10 ->  | R10: 0.07634515585 | S10: =IF(ISERROR(B10),"",B10) ->  | T10: =IF(R10="",0,(R10-0.5*R10^2*sigy^2*(Q10/12)*$K$7-R10*S10*cor*sigy*sigr*(Q10/12)/(freq+S10))) ->  | U10: =IF(T10=0,0,(T10/freq)-CMTFixed) ->  | V10: =D10 ->  | W10: =IF(ISERROR(U10*V10),"",U10*V10) ->  | Y10: =IF(W10="",0,(W10-0.5*W10^2*sigy^2*(V10/12)*$K$7-W10*X10*cor*sigy*sigr*(V10/12)/(freq+X10))) -> 0 | Z10: =X10 -> 0 | AE10: 0 | AF10: =IF(AE10=1,term-Q10,0) -> 0 | AG10: =T10*AF10/12-(CMTFixed*freq)*AF10/12 ->  | AH10: =IF(ISERROR(AG10*D10),"",AG10*D10) -> 
A11: =A10+Range!$C$48 ->  | B11: =IF(ISERROR(VLOOKUP(A11,'G-Sec Yield Curve'!$A$4:$E$123,5,FALSE)),"",VLOOKUP(A11,'G-Sec Yield Curve'!$A$4:$E$123,5,FALSE)) ->  | D11: =IF(ISERROR(VLOOKUP(A11,'G-Sec Yield Curve'!$A$4:$D$123,4,FALSE)),"",VLOOKUP(A11,'G-Sec Yield Curve'!$A$4:$D$123,4,FALSE)) ->  | F11: =IF(AND(A11/12>$D$7,A11/12<=$D$7+index/12),1,0) ->  | G11: =IF(ISERROR(D11*F11),"",D11*F11) ->  | J11: =A11 ->  | K11: =IF(J11="","",IF(J11<>term,-(J11/12)*$C$4/((1+$C$4/freq)^(freq*(J11/12)+1)),-(J11/12)*(1+$C$4)/((1+$C$4/freq)^(freq*(J11/12)+1)))) ->  | L11: =IF(J11="","",IF(J11<>term,(J11/12)*$C$4*((J11/12)+1/freq)/(1+$C$4/freq)^(freq*(J11/12)+2),(J11/12)*(1+$C$4)*((J11/12)+1/freq)/(1+$C$4/freq)^(freq*(J11/12)+2))) ->  | N11: =K11*M11 ->  | O11: =L11*M11 ->  | Q11: =A11 ->  | R11: 0.08318237002 | S11: =IF(ISERROR(B11),"",B11) ->  | T11: =IF(R11="",0,(R11-0.5*R11^2*sigy^2*(Q11/12)*$K$7-R11*S11*cor*sigy*sigr*(Q11/12)/(freq+S11))) ->  | U11: =IF(T11=0,0,(T11/freq)-CMTFixed) ->  | V11: =D11 ->  | W11: =IF(ISERROR(U11*V11),"",U11*V11) ->  | Y11: =IF(W11="",0,(W11-0.5*W11^2*sigy^2*(V11/12)*$K$7-W11*X11*cor*sigy*sigr*(V11/12)/(freq+X11))) -> 0 | Z11: =X11 -> 0 | AE11: =IF(F10<F11,1,0) ->  | AF11: =IF(AE11=1,term-Q11,0) ->  | AG11: =T11*AF11/12-(CMTFixed*freq)*AF11/12 ->  | AH11: =IF(ISERROR(AG11*D11),"",AG11*D11) -> 
A12: =A11+Range!$C$48 ->  | B12: =IF(ISERROR(VLOOKUP(A12,'G-Sec Yield Curve'!$A$4:$E$123,5,FALSE)),"",VLOOKUP(A12,'G-Sec Yield Curve'!$A$4:$E$123,5,FALSE)) ->  | D12: =IF(ISERROR(VLOOKUP(A12,'G-Sec Yield Curve'!$A$4:$D$123,4,FALSE)),"",VLOOKUP(A12,'G-Sec Yield Curve'!$A$4:$D$123,4,FALSE)) ->  | T12: 0 | U12: 0 | Y12: 0 | Z12: 0 | AE12: =IF(F11<F12,1,0) -> 
A13: =A12+Range!$C$48 ->  | B13: =IF(ISERROR(VLOOKUP(A13,'G-Sec Yield Curve'!$A$4:$E$123,5,FALSE)),"",VLOOKUP(A13,'G-Sec Yield Curve'!$A$4:$E$123,5,FALSE)) ->  | D13: =IF(ISERROR(VLOOKUP(A13,'G-Sec Yield Curve'!$A$4:$D$123,4,FALSE)),"",VLOOKUP(A13,'G-Sec Yield Curve'!$A$4:$D$123,4,FALSE)) ->  | T13: 0 | U13: 0 | Y13: 0 | Z13: 0
A14: =A13+Range!$C$48 ->  | B14: =IF(ISERROR(VLOOKUP(A14,'G-Sec Yield Curve'!$A$4:$E$123,5,FALSE)),"",VLOOKUP(A14,'G-Sec Yield Curve'!$A$4:$E$123,5,FALSE)) ->  | D14: =IF(ISERROR(VLOOKUP(A14,'G-Sec Yield Curve'!$A$4:$D$123,4,FALSE)),"",VLOOKUP(A14,'G-Sec Yield Curve'!$A$4:$D$123,4,FALSE)) ->  | T14: 0 | U14: 0 | Y14: 0 | Z14: 0
A15: =A14+Range!$C$48 ->  | B15: =IF(ISERROR(VLOOKUP(A15,'G-Sec Yield Curve'!$A$4:$E$123,5,FALSE)),"",VLOOKUP(A15,'G-Sec Yield Curve'!$A$4:$E$123,5,FALSE)) ->  | D15: =IF(ISERROR(VLOOKUP(A15,'G-Sec Yield Curve'!$A$4:$D$123,4,FALSE)),"",VLOOKUP(A15,'G-Sec Yield Curve'!$A$4:$D$123,4,FALSE)) ->  | T15: 0 | U15: 0 | Y15: 0 | Z15: 0
A16: =A15+Range!$C$48 ->  | B16: =IF(ISERROR(VLOOKUP(A16,'G-Sec Yield Curve'!$A$4:$E$123,5,FALSE)),"",VLOOKUP(A16,'G-Sec Yield Curve'!$A$4:$E$123,5,FALSE)) ->  | D16: =IF(ISERROR(VLOOKUP(A16,'G-Sec Yield Curve'!$A$4:$D$123,4,FALSE)),"",VLOOKUP(A16,'G-Sec Yield Curve'!$A$4:$D$123,4,FALSE)) ->  | T16: 0 | U16: 0 | Y16: 0 | Z16: 0
A17: =A16+Range!$C$48 ->  | B17: =IF(ISERROR(VLOOKUP(A17,'G-Sec Yield Curve'!$A$4:$E$123,5,FALSE)),"",VLOOKUP(A17,'G-Sec Yield Curve'!$A$4:$E$123,5,FALSE)) ->  | D17: =IF(ISERROR(VLOOKUP(A17,'G-Sec Yield Curve'!$A$4:$D$123,4,FALSE)),"",VLOOKUP(A17,'G-Sec Yield Curve'!$A$4:$D$123,4,FALSE)) ->  | T17: 0 | U17: 0 | Y17: 0 | Z17: 0
A18: =A17+Range!$C$48 ->  | B18: =IF(ISERROR(VLOOKUP(A18,'G-Sec Yield Curve'!$A$4:$E$123,5,FALSE)),"",VLOOKUP(A18,'G-Sec Yield Curve'!$A$4:$E$123,5,FALSE)) ->  | D18: =IF(ISERROR(VLOOKUP(A18,'G-Sec Yield Curve'!$A$4:$D$123,4,FALSE)),"",VLOOKUP(A18,'G-Sec Yield Curve'!$A$4:$D$123,4,FALSE)) ->  | T18: 0 | U18: 0 | Y18: 0 | Z18: 0
A19: =A18+Range!$C$48 ->  | B19: =IF(ISERROR(VLOOKUP(A19,'G-Sec Yield Curve'!$A$4:$E$123,5,FALSE)),"",VLOOKUP(A19,'G-Sec Yield Curve'!$A$4:$E$123,5,FALSE)) ->  | D19: =IF(ISERROR(VLOOKUP(A19,'G-Sec Yield Curve'!$A$4:$D$123,4,FALSE)),"",VLOOKUP(A19,'G-Sec Yield Curve'!$A$4:$D$123,4,FALSE)) ->  | T19: 0 | U19: 0 | Y19: 0 | Z19: 0
A20: =A19+Range!$C$48 ->  | B20: =IF(ISERROR(VLOOKUP(A20,'G-Sec Yield Curve'!$A$4:$E$123,5,FALSE)),"",VLOOKUP(A20,'G-Sec Yield Curve'!$A$4:$E$123,5,FALSE)) ->  | D20: =IF(ISERROR(VLOOKUP(A20,'G-Sec Yield Curve'!$A$4:$D$123,4,FALSE)),"",VLOOKUP(A20,'G-Sec Yield Curve'!$A$4:$D$123,4,FALSE)) ->  | T20: 0 | U20: 0 | Y20: 0 | Z20: 0
A21: =A20+Range!$C$48 ->  | B21: =IF(ISERROR(VLOOKUP(A21,'G-Sec Yield Curve'!$A$4:$E$123,5,FALSE)),"",VLOOKUP(A21,'G-Sec Yield Curve'!$A$4:$E$123,5,FALSE)) ->  | D21: =IF(ISERROR(VLOOKUP(A21,'G-Sec Yield Curve'!$A$4:$D$123,4,FALSE)),"",VLOOKUP(A21,'G-Sec Yield Curve'!$A$4:$D$123,4,FALSE)) ->  | T21: 0 | U21: 0 | Y21: 0 | Z21: 0
A22: =A21+Range!$C$48 ->  | B22: =IF(ISERROR(VLOOKUP(A22,'G-Sec Yield Curve'!$A$4:$E$123,5,FALSE)),"",VLOOKUP(A22,'G-Sec Yield Curve'!$A$4:$E$123,5,FALSE)) ->  | D22: =IF(ISERROR(VLOOKUP(A22,'G-Sec Yield Curve'!$A$4:$D$123,4,FALSE)),"",VLOOKUP(A22,'G-Sec Yield Curve'!$A$4:$D$123,4,FALSE)) ->  | T22: 0 | U22: 0 | Y22: 0 | Z22: 0
A23: =A22+Range!$C$48 ->  | B23: =IF(ISERROR(VLOOKUP(A23,'G-Sec Yield Curve'!$A$4:$E$123,5,FALSE)),"",VLOOKUP(A23,'G-Sec Yield Curve'!$A$4:$E$123,5,FALSE)) ->  | D23: =IF(ISERROR(VLOOKUP(A23,'G-Sec Yield Curve'!$A$4:$D$123,4,FALSE)),"",VLOOKUP(A23,'G-Sec Yield Curve'!$A$4:$D$123,4,FALSE)) ->  | T23: 0 | U23: 0 | Y23: 0 | Z23: 0
A24: =A23+Range!$C$48 ->  | B24: =IF(ISERROR(VLOOKUP(A24,'G-Sec Yield Curve'!$A$4:$E$123,5,FALSE)),"",VLOOKUP(A24,'G-Sec Yield Curve'!$A$4:$E$123,5,FALSE)) ->  | D24: =IF(ISERROR(VLOOKUP(A24,'G-Sec Yield Curve'!$A$4:$D$123,4,FALSE)),"",VLOOKUP(A24,'G-Sec Yield Curve'!$A$4:$D$123,4,FALSE)) ->  | T24: 0 | U24: 0 | Y24: 0 | Z24: 0
A25: =A24+Range!$C$48 ->  | B25: =IF(ISERROR(VLOOKUP(A25,'G-Sec Yield Curve'!$A$4:$E$123,5,FALSE)),"",VLOOKUP(A25,'G-Sec Yield Curve'!$A$4:$E$123,5,FALSE)) ->  | D25: =IF(ISERROR(VLOOKUP(A25,'G-Sec Yield Curve'!$A$4:$D$123,4,FALSE)),"",VLOOKUP(A25,'G-Sec Yield Curve'!$A$4:$D$123,4,FALSE)) ->  | T25: 0 | U25: 0 | Y25: 0 | Z25: 0
A26: =A25+Range!$C$48 ->  | B26: =IF(ISERROR(VLOOKUP(A26,'G-Sec Yield Curve'!$A$4:$E$123,5,FALSE)),"",VLOOKUP(A26,'G-Sec Yield Curve'!$A$4:$E$123,5,FALSE)) ->  | D26: =IF(ISERROR(VLOOKUP(A26,'G-Sec Yield Curve'!$A$4:$D$123,4,FALSE)),"",VLOOKUP(A26,'G-Sec Yield Curve'!$A$4:$D$123,4,FALSE)) ->  | T26: 0 | U26: 0 | Y26: 0 | Z26: 0
A27: =A26+Range!$C$48 ->  | B27: =IF(ISERROR(VLOOKUP(A27,'G-Sec Yield Curve'!$A$4:$E$123,5,FALSE)),"",VLOOKUP(A27,'G-Sec Yield Curve'!$A$4:$E$123,5,FALSE)) ->  | D27: =IF(ISERROR(VLOOKUP(A27,'G-Sec Yield Curve'!$A$4:$D$123,4,FALSE)),"",VLOOKUP(A27,'G-Sec Yield Curve'!$A$4:$D$123,4,FALSE)) ->  | T27: 0 | U27: 0 | Y27: 0 | Z27: 0
A28: =A27+Range!$C$48 ->  | B28: =IF(ISERROR(VLOOKUP(A28,'G-Sec Yield Curve'!$A$4:$E$123,5,FALSE)),"",VLOOKUP(A28,'G-Sec Yield Curve'!$A$4:$E$123,5,FALSE)) ->  | D28: =IF(ISERROR(VLOOKUP(A28,'G-Sec Yield Curve'!$A$4:$D$123,4,FALSE)),"",VLOOKUP(A28,'G-Sec Yield Curve'!$A$4:$D$123,4,FALSE)) ->  | T28: 0 | U28: 0 | Y28: 0 | Z28: 0
A29: =A28+Range!$C$48 ->  | B29: =IF(ISERROR(VLOOKUP(A29,'G-Sec Yield Curve'!$A$4:$E$123,5,FALSE)),"",VLOOKUP(A29,'G-Sec Yield Curve'!$A$4:$E$123,5,FALSE)) ->  | D29: =IF(ISERROR(VLOOKUP(A29,'G-Sec Yield Curve'!$A$4:$D$123,4,FALSE)),"",VLOOKUP(A29,'G-Sec Yield Curve'!$A$4:$D$123,4,FALSE)) ->  | T29: 0 | U29: 0 | Y29: 0 | Z29: 0
A30: =A29+Range!$C$48 ->  | B30: =IF(ISERROR(VLOOKUP(A30,'G-Sec Yield Curve'!$A$4:$E$123,5,FALSE)),"",VLOOKUP(A30,'G-Sec Yield Curve'!$A$4:$E$123,5,FALSE)) ->  | D30: =IF(ISERROR(VLOOKUP(A30,'G-Sec Yield Curve'!$A$4:$D$123,4,FALSE)),"",VLOOKUP(A30,'G-Sec Yield Curve'!$A$4:$D$123,4,FALSE)) ->  | T30: 0 | U30: 0 | Y30: 0 | Z30: 0
A31: =A30+Range!$C$48 ->  | B31: =IF(ISERROR(VLOOKUP(A31,'G-Sec Yield Curve'!$A$4:$E$123,5,FALSE)),"",VLOOKUP(A31,'G-Sec Yield Curve'!$A$4:$E$123,5,FALSE)) ->  | D31: =IF(ISERROR(VLOOKUP(A31,'G-Sec Yield Curve'!$A$4:$D$123,4,FALSE)),"",VLOOKUP(A31,'G-Sec Yield Curve'!$A$4:$D$123,4,FALSE)) ->  | T31: 0 | U31: 0 | Y31: 0 | Z31: 0
A32: =A31+Range!$C$48 ->  | B32: =IF(ISERROR(VLOOKUP(A32,'G-Sec Yield Curve'!$A$4:$E$123,5,FALSE)),"",VLOOKUP(A32,'G-Sec Yield Curve'!$A$4:$E$123,5,FALSE)) ->  | D32: =IF(ISERROR(VLOOKUP(A32,'G-Sec Yield Curve'!$A$4:$D$123,4,FALSE)),"",VLOOKUP(A32,'G-Sec Yield Curve'!$A$4:$D$123,4,FALSE)) ->  | T32: 0 | U32: 0 | Y32: 0 | Z32: 0
A33: =A32+Range!$C$48 ->  | B33: =IF(ISERROR(VLOOKUP(A33,'G-Sec Yield Curve'!$A$4:$E$123,5,FALSE)),"",VLOOKUP(A33,'G-Sec Yield Curve'!$A$4:$E$123,5,FALSE)) ->  | D33: =IF(ISERROR(VLOOKUP(A33,'G-Sec Yield Curve'!$A$4:$D$123,4,FALSE)),"",VLOOKUP(A33,'G-Sec Yield Curve'!$A$4:$D$123,4,FALSE)) ->  | T33: 0 | U33: 0 | Y33: 0 | Z33: 0
A34: =A33+Range!$C$48 ->  | B34: =IF(ISERROR(VLOOKUP(A34,'G-Sec Yield Curve'!$A$4:$E$123,5,FALSE)),"",VLOOKUP(A34,'G-Sec Yield Curve'!$A$4:$E$123,5,FALSE)) ->  | D34: =IF(ISERROR(VLOOKUP(A34,'G-Sec Yield Curve'!$A$4:$D$123,4,FALSE)),"",VLOOKUP(A34,'G-Sec Yield Curve'!$A$4:$D$123,4,FALSE)) ->  | T34: 0 | U34: 0 | Y34: 0 | Z34: 0
A35: =A34+Range!$C$48 ->  | B35: =IF(ISERROR(VLOOKUP(A35,'G-Sec Yield Curve'!$A$4:$E$123,5,FALSE)),"",VLOOKUP(A35,'G-Sec Yield Curve'!$A$4:$E$123,5,FALSE)) ->  | D35: =IF(ISERROR(VLOOKUP(A35,'G-Sec Yield Curve'!$A$4:$D$123,4,FALSE)),"",VLOOKUP(A35,'G-Sec Yield Curve'!$A$4:$D$123,4,FALSE)) ->  | T35: 0 | U35: 0 | Y35: 0 | Z35: 0
A36: =A35+Range!$C$48 ->  | B36: =IF(ISERROR(VLOOKUP(A36,'G-Sec Yield Curve'!$A$4:$E$123,5,FALSE)),"",VLOOKUP(A36,'G-Sec Yield Curve'!$A$4:$E$123,5,FALSE)) ->  | D36: =IF(ISERROR(VLOOKUP(A36,'G-Sec Yield Curve'!$A$4:$D$123,4,FALSE)),"",VLOOKUP(A36,'G-Sec Yield Curve'!$A$4:$D$123,4,FALSE)) ->  | T36: 0 | U36: 0 | Y36: 0 | Z36: 0
A37: =A36+Range!$C$48 ->  | B37: =IF(ISERROR(VLOOKUP(A37,'G-Sec Yield Curve'!$A$4:$E$123,5,FALSE)),"",VLOOKUP(A37,'G-Sec Yield Curve'!$A$4:$E$123,5,FALSE)) ->  | D37: =IF(ISERROR(VLOOKUP(A37,'G-Sec Yield Curve'!$A$4:$D$123,4,FALSE)),"",VLOOKUP(A37,'G-Sec Yield Curve'!$A$4:$D$123,4,FALSE)) ->  | T37: 0 | U37: 0 | Y37: 0 | Z37: 0
A38: =A37+Range!$C$48 ->  | B38: =IF(ISERROR(VLOOKUP(A38,'G-Sec Yield Curve'!$A$4:$E$123,5,FALSE)),"",VLOOKUP(A38,'G-Sec Yield Curve'!$A$4:$E$123,5,FALSE)) ->  | D38: =IF(ISERROR(VLOOKUP(A38,'G-Sec Yield Curve'!$A$4:$D$123,4,FALSE)),"",VLOOKUP(A38,'G-Sec Yield Curve'!$A$4:$D$123,4,FALSE)) ->  | T38: 0 | U38: 0 | Y38: 0 | Z38: 0
A39: =A38+Range!$C$48 ->  | B39: =IF(ISERROR(VLOOKUP(A39,'G-Sec Yield Curve'!$A$4:$E$123,5,FALSE)),"",VLOOKUP(A39,'G-Sec Yield Curve'!$A$4:$E$123,5,FALSE)) ->  | D39: =IF(ISERROR(VLOOKUP(A39,'G-Sec Yield Curve'!$A$4:$D$123,4,FALSE)),"",VLOOKUP(A39,'G-Sec Yield Curve'!$A$4:$D$123,4,FALSE)) ->  | Q39: =A39 ->  | T39: 0 | U39: 0 | V39: =D39 ->  | Y39: 0 | Z39: 0
A40: =A39+Range!$C$48 ->  | B40: =IF(ISERROR(VLOOKUP(A40,'G-Sec Yield Curve'!$A$4:$E$123,5,FALSE)),"",VLOOKUP(A40,'G-Sec Yield Curve'!$A$4:$E$123,5,FALSE)) ->  | D40: =IF(ISERROR(VLOOKUP(A40,'G-Sec Yield Curve'!$A$4:$D$123,4,FALSE)),"",VLOOKUP(A40,'G-Sec Yield Curve'!$A$4:$D$123,4,FALSE)) ->  | T40: 0 | U40: 0 | Y40: 0 | Z40: 0
A41: =A40+Range!$C$48 ->  | B41: =IF(ISERROR(VLOOKUP(A41,'G-Sec Yield Curve'!$A$4:$E$123,5,FALSE)),"",VLOOKUP(A41,'G-Sec Yield Curve'!$A$4:$E$123,5,FALSE)) ->  | D41: =IF(ISERROR(VLOOKUP(A41,'G-Sec Yield Curve'!$A$4:$D$123,4,FALSE)),"",VLOOKUP(A41,'G-Sec Yield Curve'!$A$4:$D$123,4,FALSE)) ->  | T41: 0 | U41: 0 | Y41: 0 | Z41: 0
A42: =A41+Range!$C$48 ->  | B42: =IF(ISERROR(VLOOKUP(A42,'G-Sec Yield Curve'!$A$4:$E$123,5,FALSE)),"",VLOOKUP(A42,'G-Sec Yield Curve'!$A$4:$E$123,5,FALSE)) ->  | C42: =IF(ISERROR(NOMINAL(B42,freq)),"",NOMINAL(B42,freq)) ->  | D42: =IF(ISERROR(VLOOKUP(A42,'G-Sec Yield Curve'!$A$4:$D$123,4,FALSE)),"",VLOOKUP(A42,'G-Sec Yield Curve'!$A$4:$D$123,4,FALSE)) ->  | T42: 0 | U42: 0 | Y42: 0 | Z42: 0
A43: =A42+Range!$C$48 ->  | B43: =IF(ISERROR(VLOOKUP(A43,'G-Sec Yield Curve'!$A$4:$E$123,5,FALSE)),"",VLOOKUP(A43,'G-Sec Yield Curve'!$A$4:$E$123,5,FALSE)) ->  | D43: =IF(ISERROR(VLOOKUP(A43,'G-Sec Yield Curve'!$A$4:$D$123,4,FALSE)),"",VLOOKUP(A43,'G-Sec Yield Curve'!$A$4:$D$123,4,FALSE)) ->  | T43: 0 | U43: 0 | Y43: 0 | Z43: 0
A44: =A43+Range!$C$48 ->  | B44: =IF(ISERROR(VLOOKUP(A44,'G-Sec Yield Curve'!$A$4:$E$123,5,FALSE)),"",VLOOKUP(A44,'G-Sec Yield Curve'!$A$4:$E$123,5,FALSE)) ->  | D44: =IF(ISERROR(VLOOKUP(A44,'G-Sec Yield Curve'!$A$4:$D$123,4,FALSE)),"",VLOOKUP(A44,'G-Sec Yield Curve'!$A$4:$D$123,4,FALSE)) ->  | T44: 0 | U44: 0 | Y44: 0 | Z44: 0
A45: =A44+Range!$C$48 ->  | B45: =IF(ISERROR(VLOOKUP(A45,'G-Sec Yield Curve'!$A$4:$E$123,5,FALSE)),"",VLOOKUP(A45,'G-Sec Yield Curve'!$A$4:$E$123,5,FALSE)) ->  | D45: =IF(ISERROR(VLOOKUP(A45,'G-Sec Yield Curve'!$A$4:$D$123,4,FALSE)),"",VLOOKUP(A45,'G-Sec Yield Curve'!$A$4:$D$123,4,FALSE)) ->  | T45: 0 | U45: 0 | Y45: 0 | Z45: 0
A46: =A45+Range!$C$48 ->  | B46: =IF(ISERROR(VLOOKUP(A46,'G-Sec Yield Curve'!$A$4:$E$123,5,FALSE)),"",VLOOKUP(A46,'G-Sec Yield Curve'!$A$4:$E$123,5,FALSE)) ->  | D46: =IF(ISERROR(VLOOKUP(A46,'G-Sec Yield Curve'!$A$4:$D$123,4,FALSE)),"",VLOOKUP(A46,'G-Sec Yield Curve'!$A$4:$D$123,4,FALSE)) ->  | T46: 0 | U46: 0 | Y46: 0 | Z46: 0
A47: =A46+Range!$C$48 ->  | B47: =IF(ISERROR(VLOOKUP(A47,'G-Sec Yield Curve'!$A$4:$E$123,5,FALSE)),"",VLOOKUP(A47,'G-Sec Yield Curve'!$A$4:$E$123,5,FALSE)) ->  | D47: =IF(ISERROR(VLOOKUP(A47,'G-Sec Yield Curve'!$A$4:$D$123,4,FALSE)),"",VLOOKUP(A47,'G-Sec Yield Curve'!$A$4:$D$123,4,FALSE)) ->  | T47: 0 | U47: 0 | Y47: 0 | Z47: 0
A48: =A47+Range!$C$48 ->  | B48: =IF(ISERROR(VLOOKUP(A48,'G-Sec Yield Curve'!$A$4:$E$123,5,FALSE)),"",VLOOKUP(A48,'G-Sec Yield Curve'!$A$4:$E$123,5,FALSE)) ->  | D48: =IF(ISERROR(VLOOKUP(A48,'G-Sec Yield Curve'!$A$4:$D$123,4,FALSE)),"",VLOOKUP(A48,'G-Sec Yield Curve'!$A$4:$D$123,4,FALSE)) ->  | T48: 0 | U48: 0 | Y48: 0 | Z48: 0
A49: =A48+Range!$C$48 ->  | B49: =IF(ISERROR(VLOOKUP(A49,'G-Sec Yield Curve'!$A$4:$E$123,5,FALSE)),"",VLOOKUP(A49,'G-Sec Yield Curve'!$A$4:$E$123,5,FALSE)) ->  | D49: =IF(ISERROR(VLOOKUP(A49,'G-Sec Yield Curve'!$A$4:$D$123,4,FALSE)),"",VLOOKUP(A49,'G-Sec Yield Curve'!$A$4:$D$123,4,FALSE)) ->  | T49: 0 | U49: 0 | Y49: 0 | Z49: 0
A50: =A49+Range!$C$48 ->  | B50: =IF(ISERROR(VLOOKUP(A50,'G-Sec Yield Curve'!$A$4:$E$123,5,FALSE)),"",VLOOKUP(A50,'G-Sec Yield Curve'!$A$4:$E$123,5,FALSE)) ->  | D50: =IF(ISERROR(VLOOKUP(A50,'G-Sec Yield Curve'!$A$4:$D$123,4,FALSE)),"",VLOOKUP(A50,'G-Sec Yield Curve'!$A$4:$D$123,4,FALSE)) ->  | T50: 0 | U50: 0 | Y50: 0 | Z50: 0
A51: =A50+Range!$C$48 ->  | B51: =IF(ISERROR(VLOOKUP(A51,'G-Sec Yield Curve'!$A$4:$E$123,5,FALSE)),"",VLOOKUP(A51,'G-Sec Yield Curve'!$A$4:$E$123,5,FALSE)) ->  | D51: =IF(ISERROR(VLOOKUP(A51,'G-Sec Yield Curve'!$A$4:$D$123,4,FALSE)),"",VLOOKUP(A51,'G-Sec Yield Curve'!$A$4:$D$123,4,FALSE)) ->  | T51: 0 | U51: 0 | Y51: 0 | Z51: 0
A52: =A51+Range!$C$48 ->  | B52: =IF(ISERROR(VLOOKUP(A52,'G-Sec Yield Curve'!$A$4:$E$123,5,FALSE)),"",VLOOKUP(A52,'G-Sec Yield Curve'!$A$4:$E$123,5,FALSE)) ->  | D52: =IF(ISERROR(VLOOKUP(A52,'G-Sec Yield Curve'!$A$4:$D$123,4,FALSE)),"",VLOOKUP(A52,'G-Sec Yield Curve'!$A$4:$D$123,4,FALSE)) ->  | T52: 0 | U52: 0 | Y52: 0 | Z52: 0
A53: =A52+Range!$C$48 ->  | B53: =IF(ISERROR(VLOOKUP(A53,'G-Sec Yield Curve'!$A$4:$E$123,5,FALSE)),"",VLOOKUP(A53,'G-Sec Yield Curve'!$A$4:$E$123,5,FALSE)) ->  | D53: =IF(ISERROR(VLOOKUP(A53,'G-Sec Yield Curve'!$A$4:$D$123,4,FALSE)),"",VLOOKUP(A53,'G-Sec Yield Curve'!$A$4:$D$123,4,FALSE)) ->  | T53: 0 | U53: 0 | Y53: 0 | Z53: 0
A54: =A53+Range!$C$48 ->  | B54: =IF(ISERROR(VLOOKUP(A54,'G-Sec Yield Curve'!$A$4:$E$123,5,FALSE)),"",VLOOKUP(A54,'G-Sec Yield Curve'!$A$4:$E$123,5,FALSE)) ->  | D54: =IF(ISERROR(VLOOKUP(A54,'G-Sec Yield Curve'!$A$4:$D$123,4,FALSE)),"",VLOOKUP(A54,'G-Sec Yield Curve'!$A$4:$D$123,4,FALSE)) ->  | T54: 0 | U54: 0 | Y54: 0 | Z54: 0
A55: =A54+Range!$C$48 ->  | B55: =IF(ISERROR(VLOOKUP(A55,'G-Sec Yield Curve'!$A$4:$E$123,5,FALSE)),"",VLOOKUP(A55,'G-Sec Yield Curve'!$A$4:$E$123,5,FALSE)) ->  | D55: =IF(ISERROR(VLOOKUP(A55,'G-Sec Yield Curve'!$A$4:$D$123,4,FALSE)),"",VLOOKUP(A55,'G-Sec Yield Curve'!$A$4:$D$123,4,FALSE)) ->  | T55: 0 | U55: 0 | Y55: 0 | Z55: 0
A56: =A55+Range!$C$48 ->  | B56: =IF(ISERROR(VLOOKUP(A56,'G-Sec Yield Curve'!$A$4:$E$123,5,FALSE)),"",VLOOKUP(A56,'G-Sec Yield Curve'!$A$4:$E$123,5,FALSE)) ->  | D56: =IF(ISERROR(VLOOKUP(A56,'G-Sec Yield Curve'!$A$4:$D$123,4,FALSE)),"",VLOOKUP(A56,'G-Sec Yield Curve'!$A$4:$D$123,4,FALSE)) ->  | T56: 0 | U56: 0 | Y56: 0 | Z56: 0
A57: =A56+Range!$C$48 ->  | B57: =IF(ISERROR(VLOOKUP(A57,'G-Sec Yield Curve'!$A$4:$E$123,5,FALSE)),"",VLOOKUP(A57,'G-Sec Yield Curve'!$A$4:$E$123,5,FALSE)) ->  | D57: =IF(ISERROR(VLOOKUP(A57,'G-Sec Yield Curve'!$A$4:$D$123,4,FALSE)),"",VLOOKUP(A57,'G-Sec Yield Curve'!$A$4:$D$123,4,FALSE)) ->  | T57: 0 | U57: 0 | Y57: 0 | Z57: 0
A58: =A57+Range!$C$48 ->  | B58: =IF(ISERROR(VLOOKUP(A58,'G-Sec Yield Curve'!$A$4:$E$123,5,FALSE)),"",VLOOKUP(A58,'G-Sec Yield Curve'!$A$4:$E$123,5,FALSE)) ->  | D58: =IF(ISERROR(VLOOKUP(A58,'G-Sec Yield Curve'!$A$4:$D$123,4,FALSE)),"",VLOOKUP(A58,'G-Sec Yield Curve'!$A$4:$D$123,4,FALSE)) ->  | T58: 0 | U58: 0 | Y58: 0 | Z58: 0
A59: =A58+Range!$C$48 ->  | B59: =IF(ISERROR(VLOOKUP(A59,'G-Sec Yield Curve'!$A$4:$E$123,5,FALSE)),"",VLOOKUP(A59,'G-Sec Yield Curve'!$A$4:$E$123,5,FALSE)) ->  | D59: =IF(ISERROR(VLOOKUP(A59,'G-Sec Yield Curve'!$A$4:$D$123,4,FALSE)),"",VLOOKUP(A59,'G-Sec Yield Curve'!$A$4:$D$123,4,FALSE)) ->  | T59: 0 | U59: 0 | Y59: 0 | Z59: 0
A60: =A59+Range!$C$48 ->  | B60: =IF(ISERROR(VLOOKUP(A60,'G-Sec Yield Curve'!$A$4:$E$123,5,FALSE)),"",VLOOKUP(A60,'G-Sec Yield Curve'!$A$4:$E$123,5,FALSE)) ->  | D60: =IF(ISERROR(VLOOKUP(A60,'G-Sec Yield Curve'!$A$4:$D$123,4,FALSE)),"",VLOOKUP(A60,'G-Sec Yield Curve'!$A$4:$D$123,4,FALSE)) ->  | T60: 0 | U60: 0 | Y60: 0 | Z60: 0
A61: =A60+Range!$C$48 ->  | B61: =IF(ISERROR(VLOOKUP(A61,'G-Sec Yield Curve'!$A$4:$E$123,5,FALSE)),"",VLOOKUP(A61,'G-Sec Yield Curve'!$A$4:$E$123,5,FALSE)) ->  | D61: =IF(ISERROR(VLOOKUP(A61,'G-Sec Yield Curve'!$A$4:$D$123,4,FALSE)),"",VLOOKUP(A61,'G-Sec Yield Curve'!$A$4:$D$123,4,FALSE)) ->  | T61: 0 | U61: 0 | Y61: 0 | Z61: 0
A62: =A61+Range!$C$48 ->  | B62: =IF(ISERROR(VLOOKUP(A62,'G-Sec Yield Curve'!$A$4:$E$123,5,FALSE)),"",VLOOKUP(A62,'G-Sec Yield Curve'!$A$4:$E$123,5,FALSE)) ->  | D62: =IF(ISERROR(VLOOKUP(A62,'G-Sec Yield Curve'!$A$4:$D$123,4,FALSE)),"",VLOOKUP(A62,'G-Sec Yield Curve'!$A$4:$D$123,4,FALSE)) ->  | T62: 0 | U62: 0 | Y62: 0 | Z62: 0
A63: =A62+Range!$C$48 ->  | B63: =IF(ISERROR(VLOOKUP(A63,'G-Sec Yield Curve'!$A$4:$E$123,5,FALSE)),"",VLOOKUP(A63,'G-Sec Yield Curve'!$A$4:$E$123,5,FALSE)) ->  | D63: =IF(ISERROR(VLOOKUP(A63,'G-Sec Yield Curve'!$A$4:$D$123,4,FALSE)),"",VLOOKUP(A63,'G-Sec Yield Curve'!$A$4:$D$123,4,FALSE)) ->  | T63: 0 | U63: 0 | Y63: 0 | Z63: 0
A64: =A63+Range!$C$48 ->  | B64: =IF(ISERROR(VLOOKUP(A64,'G-Sec Yield Curve'!$A$4:$E$123,5,FALSE)),"",VLOOKUP(A64,'G-Sec Yield Curve'!$A$4:$E$123,5,FALSE)) ->  | D64: =IF(ISERROR(VLOOKUP(A64,'G-Sec Yield Curve'!$A$4:$D$123,4,FALSE)),"",VLOOKUP(A64,'G-Sec Yield Curve'!$A$4:$D$123,4,FALSE)) ->  | T64: 0 | U64: 0 | Y64: 0 | Z64: 0
A65: =A64+Range!$C$48 ->  | B65: =IF(ISERROR(VLOOKUP(A65,'G-Sec Yield Curve'!$A$4:$E$123,5,FALSE)),"",VLOOKUP(A65,'G-Sec Yield Curve'!$A$4:$E$123,5,FALSE)) ->  | D65: =IF(ISERROR(VLOOKUP(A65,'G-Sec Yield Curve'!$A$4:$D$123,4,FALSE)),"",VLOOKUP(A65,'G-Sec Yield Curve'!$A$4:$D$123,4,FALSE)) ->  | Q65: =A65 ->  | T65: 0 | U65: 0 | V65: =D65 ->  | Y65: 0 | Z65: 0
A66: =A65+Range!$C$48 ->  | B66: =IF(ISERROR(VLOOKUP(A66,'G-Sec Yield Curve'!$A$4:$E$123,5,FALSE)),"",VLOOKUP(A66,'G-Sec Yield Curve'!$A$4:$E$123,5,FALSE)) ->  | D66: =IF(ISERROR(VLOOKUP(A66,'G-Sec Yield Curve'!$A$4:$D$123,4,FALSE)),"",VLOOKUP(A66,'G-Sec Yield Curve'!$A$4:$D$123,4,FALSE)) ->  | Q66: =A66 ->  | T66: 0 | U66: 0 | V66: =D66 ->  | Y66: 0 | Z66: 0
A67: =A66+Range!$C$48 ->  | B67: =IF(ISERROR(VLOOKUP(A67,'G-Sec Yield Curve'!$A$4:$E$123,5,FALSE)),"",VLOOKUP(A67,'G-Sec Yield Curve'!$A$4:$E$123,5,FALSE)) ->  | D67: =IF(ISERROR(VLOOKUP(A67,'G-Sec Yield Curve'!$A$4:$D$123,4,FALSE)),"",VLOOKUP(A67,'G-Sec Yield Curve'!$A$4:$D$123,4,FALSE)) ->  | T67: 0 | U67: 0 | Y67: 0 | Z67: 0
A68: =A67+Range!$C$48 ->  | B68: =IF(ISERROR(VLOOKUP(A68,'G-Sec Yield Curve'!$A$4:$E$123,5,FALSE)),"",VLOOKUP(A68,'G-Sec Yield Curve'!$A$4:$E$123,5,FALSE)) ->  | D68: =IF(ISERROR(VLOOKUP(A68,'G-Sec Yield Curve'!$A$4:$D$123,4,FALSE)),"",VLOOKUP(A68,'G-Sec Yield Curve'!$A$4:$D$123,4,FALSE)) ->  | T68: 0 | U68: 0 | Y68: 0 | Z68: 0
A69: =A68+Range!$C$48 ->  | B69: =IF(ISERROR(VLOOKUP(A69,'G-Sec Yield Curve'!$A$4:$E$123,5,FALSE)),"",VLOOKUP(A69,'G-Sec Yield Curve'!$A$4:$E$123,5,FALSE)) ->  | D69: =IF(ISERROR(VLOOKUP(A69,'G-Sec Yield Curve'!$A$4:$D$123,4,FALSE)),"",VLOOKUP(A69,'G-Sec Yield Curve'!$A$4:$D$123,4,FALSE)) ->  | T69: 0 | U69: 0 | Y69: 0 | Z69: 0
A70: =A69+Range!$C$48 ->  | B70: =IF(ISERROR(VLOOKUP(A70,'G-Sec Yield Curve'!$A$4:$E$123,5,FALSE)),"",VLOOKUP(A70,'G-Sec Yield Curve'!$A$4:$E$123,5,FALSE)) ->  | D70: =IF(ISERROR(VLOOKUP(A70,'G-Sec Yield Curve'!$A$4:$D$123,4,FALSE)),"",VLOOKUP(A70,'G-Sec Yield Curve'!$A$4:$D$123,4,FALSE)) ->  | T70: 0 | U70: 0 | Y70: 0 | Z70: 0
A71: =A70+Range!$C$48 ->  | B71: =IF(ISERROR(VLOOKUP(A71,'G-Sec Yield Curve'!$A$4:$E$123,5,FALSE)),"",VLOOKUP(A71,'G-Sec Yield Curve'!$A$4:$E$123,5,FALSE)) ->  | D71: =IF(ISERROR(VLOOKUP(A71,'G-Sec Yield Curve'!$A$4:$D$123,4,FALSE)),"",VLOOKUP(A71,'G-Sec Yield Curve'!$A$4:$D$123,4,FALSE)) ->  | T71: 0 | U71: 0 | Y71: 0 | Z71: 0
A72: =A71+Range!$C$48 ->  | B72: =IF(ISERROR(VLOOKUP(A72,'G-Sec Yield Curve'!$A$4:$E$123,5,FALSE)),"",VLOOKUP(A72,'G-Sec Yield Curve'!$A$4:$E$123,5,FALSE)) ->  | D72: =IF(ISERROR(VLOOKUP(A72,'G-Sec Yield Curve'!$A$4:$D$123,4,FALSE)),"",VLOOKUP(A72,'G-Sec Yield Curve'!$A$4:$D$123,4,FALSE)) ->  | T72: 0 | U72: 0 | Y72: 0 | Z72: 0
A73: =A72+Range!$C$48 ->  | B73: =IF(ISERROR(VLOOKUP(A73,'G-Sec Yield Curve'!$A$4:$E$123,5,FALSE)),"",VLOOKUP(A73,'G-Sec Yield Curve'!$A$4:$E$123,5,FALSE)) ->  | D73: =IF(ISERROR(VLOOKUP(A73,'G-Sec Yield Curve'!$A$4:$D$123,4,FALSE)),"",VLOOKUP(A73,'G-Sec Yield Curve'!$A$4:$D$123,4,FALSE)) ->  | T73: 0 | U73: 0 | Y73: 0 | Z73: 0
A74: =A73+Range!$C$48 ->  | B74: =IF(ISERROR(VLOOKUP(A74,'G-Sec Yield Curve'!$A$4:$E$123,5,FALSE)),"",VLOOKUP(A74,'G-Sec Yield Curve'!$A$4:$E$123,5,FALSE)) ->  | C74: =IF(ISERROR(NOMINAL(B74,freq)),"",NOMINAL(B74,freq)) ->  | D74: =IF(ISERROR(VLOOKUP(A74,'G-Sec Yield Curve'!$A$4:$D$123,4,FALSE)),"",VLOOKUP(A74,'G-Sec Yield Curve'!$A$4:$D$123,4,FALSE)) ->  | M74: =IF(J74<=index,1,0) ->  | T74: 0 | U74: 0 | Y74: 0 | Z74: 0
A75: =A74+Range!$C$48 ->  | B75: =IF(ISERROR(VLOOKUP(A75,'G-Sec Yield Curve'!$A$4:$E$123,5,FALSE)),"",VLOOKUP(A75,'G-Sec Yield Curve'!$A$4:$E$123,5,FALSE)) ->  | D75: =IF(ISERROR(VLOOKUP(A75,'G-Sec Yield Curve'!$A$4:$D$123,4,FALSE)),"",VLOOKUP(A75,'G-Sec Yield Curve'!$A$4:$D$123,4,FALSE)) ->  | F75: =IF(AND(A75/12>$D$7,A75/12<=$D$7+index/12),1,0) ->  | G75: =IF(ISERROR(D75*F75),"",D75*F75) ->  | J75: =A75 ->  | K75: =IF(J75="","",IF(J75<>term,-(J75/12)*$C$4/((1+$C$4/freq)^(freq*(J75/12)+1)),-(J75/12)*(1+$C$4)/((1+$C$4/freq)^(freq*(J75/12)+1)))) ->  | L75: =IF(J75="","",IF(J75<>term,(J75/12)*$C$4*((J75/12)+1/freq)/(1+$C$4/freq)^(freq*(J75/12)+2),(J75/12)*(1+$C$4)*((J75/12)+1/freq)/(1+$C$4/freq)^(freq*(J75/12)+2))) ->  | N75: =K75*M75 ->  | O75: =L75*M75 ->  | S75: =IF(ISERROR(B75),"",B75) ->  | T75: =IF(R75="",0,(R75-0.5*R75^2*sigy^2*(Q75/12)*$K$7-R75*S75*cor*sigy*sigr*(Q75/12)/(freq+S75))) -> 0 | U75: =IF(T75=0,0,(T75/freq)-CMTFixed) -> 0 | W75: =IF(ISERROR(U75*V75),"",U75*V75) ->  | Y75: =IF(W75="",0,(W75-0.5*W75^2*sigy^2*(V75/12)*$K$7-W75*X75*cor*sigy*sigr*(V75/12)/(freq+X75))) -> 0 | Z75: =X75 -> 0 | AF75: =IF(AE75=1,term-Q75,0) ->  | AG75: =T75*AF75/12-(CMTFixed*freq)*AF75/12 ->  | AH75: =IF(ISERROR(AG75*D75),"",AG75*D75) -> 
A76: =A75+Range!$C$48 ->  | B76: =IF(ISERROR(VLOOKUP(A76,'G-Sec Yield Curve'!$A$4:$E$123,5,FALSE)),"",VLOOKUP(A76,'G-Sec Yield Curve'!$A$4:$E$123,5,FALSE)) ->  | D76: =IF(ISERROR(VLOOKUP(A76,'G-Sec Yield Curve'!$A$4:$D$123,4,FALSE)),"",VLOOKUP(A76,'G-Sec Yield Curve'!$A$4:$D$123,4,FALSE)) ->  | T76: 0 | U76: 0 | Y76: 0 | Z76: 0 | AE76: =IF(F75<F76,1,0) -> 
A77: =A76+Range!$C$48 ->  | B77: =IF(ISERROR(VLOOKUP(A77,'G-Sec Yield Curve'!$A$4:$E$123,5,FALSE)),"",VLOOKUP(A77,'G-Sec Yield Curve'!$A$4:$E$123,5,FALSE)) ->  | D77: =IF(ISERROR(VLOOKUP(A77,'G-Sec Yield Curve'!$A$4:$D$123,4,FALSE)),"",VLOOKUP(A77,'G-Sec Yield Curve'!$A$4:$D$123,4,FALSE)) ->  | T77: 0 | U77: 0 | Y77: 0 | Z77: 0
A78: =A77+Range!$C$48 ->  | B78: =IF(ISERROR(VLOOKUP(A78,'G-Sec Yield Curve'!$A$4:$E$123,5,FALSE)),"",VLOOKUP(A78,'G-Sec Yield Curve'!$A$4:$E$123,5,FALSE)) ->  | D78: =IF(ISERROR(VLOOKUP(A78,'G-Sec Yield Curve'!$A$4:$D$123,4,FALSE)),"",VLOOKUP(A78,'G-Sec Yield Curve'!$A$4:$D$123,4,FALSE)) ->  | T78: 0 | U78: 0 | Y78: 0 | Z78: 0
A79: =A78+Range!$C$48 ->  | B79: =IF(ISERROR(VLOOKUP(A79,'G-Sec Yield Curve'!$A$4:$E$123,5,FALSE)),"",VLOOKUP(A79,'G-Sec Yield Curve'!$A$4:$E$123,5,FALSE)) ->  | D79: =IF(ISERROR(VLOOKUP(A79,'G-Sec Yield Curve'!$A$4:$D$123,4,FALSE)),"",VLOOKUP(A79,'G-Sec Yield Curve'!$A$4:$D$123,4,FALSE)) ->  | T79: 0 | U79: 0 | Y79: 0 | Z79: 0
A80: =A79+Range!$C$48 ->  | B80: =IF(ISERROR(VLOOKUP(A80,'G-Sec Yield Curve'!$A$4:$E$123,5,FALSE)),"",VLOOKUP(A80,'G-Sec Yield Curve'!$A$4:$E$123,5,FALSE)) ->  | D80: =IF(ISERROR(VLOOKUP(A80,'G-Sec Yield Curve'!$A$4:$D$123,4,FALSE)),"",VLOOKUP(A80,'G-Sec Yield Curve'!$A$4:$D$123,4,FALSE)) ->  | T80: 0 | U80: 0 | Y80: 0 | Z80: 0
A81: =A80+Range!$C$48 ->  | B81: =IF(ISERROR(VLOOKUP(A81,'G-Sec Yield Curve'!$A$4:$E$123,5,FALSE)),"",VLOOKUP(A81,'G-Sec Yield Curve'!$A$4:$E$123,5,FALSE)) ->  | D81: =IF(ISERROR(VLOOKUP(A81,'G-Sec Yield Curve'!$A$4:$D$123,4,FALSE)),"",VLOOKUP(A81,'G-Sec Yield Curve'!$A$4:$D$123,4,FALSE)) ->  | T81: 0 | U81: 0 | Y81: 0 | Z81: 0
A82: =A81+Range!$C$48 ->  | B82: =IF(ISERROR(VLOOKUP(A82,'G-Sec Yield Curve'!$A$4:$E$123,5,FALSE)),"",VLOOKUP(A82,'G-Sec Yield Curve'!$A$4:$E$123,5,FALSE)) ->  | D82: =IF(ISERROR(VLOOKUP(A82,'G-Sec Yield Curve'!$A$4:$D$123,4,FALSE)),"",VLOOKUP(A82,'G-Sec Yield Curve'!$A$4:$D$123,4,FALSE)) ->  | T82: 0 | U82: 0 | Y82: 0 | Z82: 0
A83: =A82+Range!$C$48 ->  | B83: =IF(ISERROR(VLOOKUP(A83,'G-Sec Yield Curve'!$A$4:$E$123,5,FALSE)),"",VLOOKUP(A83,'G-Sec Yield Curve'!$A$4:$E$123,5,FALSE)) ->  | D83: =IF(ISERROR(VLOOKUP(A83,'G-Sec Yield Curve'!$A$4:$D$123,4,FALSE)),"",VLOOKUP(A83,'G-Sec Yield Curve'!$A$4:$D$123,4,FALSE)) ->  | T83: 0 | U83: 0 | Y83: 0 | Z83: 0
A84: =A83+Range!$C$48 ->  | B84: =IF(ISERROR(VLOOKUP(A84,'G-Sec Yield Curve'!$A$4:$E$123,5,FALSE)),"",VLOOKUP(A84,'G-Sec Yield Curve'!$A$4:$E$123,5,FALSE)) ->  | D84: =IF(ISERROR(VLOOKUP(A84,'G-Sec Yield Curve'!$A$4:$D$123,4,FALSE)),"",VLOOKUP(A84,'G-Sec Yield Curve'!$A$4:$D$123,4,FALSE)) ->  | T84: 0 | U84: 0 | Y84: 0 | Z84: 0
A85: =A84+Range!$C$48 ->  | B85: =IF(ISERROR(VLOOKUP(A85,'G-Sec Yield Curve'!$A$4:$E$123,5,FALSE)),"",VLOOKUP(A85,'G-Sec Yield Curve'!$A$4:$E$123,5,FALSE)) ->  | D85: =IF(ISERROR(VLOOKUP(A85,'G-Sec Yield Curve'!$A$4:$D$123,4,FALSE)),"",VLOOKUP(A85,'G-Sec Yield Curve'!$A$4:$D$123,4,FALSE)) ->  | T85: 0 | U85: 0 | Y85: 0 | Z85: 0
A86: =A85+Range!$C$48 ->  | B86: =IF(ISERROR(VLOOKUP(A86,'G-Sec Yield Curve'!$A$4:$E$123,5,FALSE)),"",VLOOKUP(A86,'G-Sec Yield Curve'!$A$4:$E$123,5,FALSE)) ->  | D86: =IF(ISERROR(VLOOKUP(A86,'G-Sec Yield Curve'!$A$4:$D$123,4,FALSE)),"",VLOOKUP(A86,'G-Sec Yield Curve'!$A$4:$D$123,4,FALSE)) ->  | T86: 0 | U86: 0 | Y86: 0 | Z86: 0
A87: =A86+Range!$C$48 ->  | B87: =IF(ISERROR(VLOOKUP(A87,'G-Sec Yield Curve'!$A$4:$E$123,5,FALSE)),"",VLOOKUP(A87,'G-Sec Yield Curve'!$A$4:$E$123,5,FALSE)) ->  | D87: =IF(ISERROR(VLOOKUP(A87,'G-Sec Yield Curve'!$A$4:$D$123,4,FALSE)),"",VLOOKUP(A87,'G-Sec Yield Curve'!$A$4:$D$123,4,FALSE)) ->  | T87: 0 | U87: 0 | Y87: 0 | Z87: 0
A88: =A87+Range!$C$48 ->  | B88: =IF(ISERROR(VLOOKUP(A88,'G-Sec Yield Curve'!$A$4:$E$123,5,FALSE)),"",VLOOKUP(A88,'G-Sec Yield Curve'!$A$4:$E$123,5,FALSE)) ->  | D88: =IF(ISERROR(VLOOKUP(A88,'G-Sec Yield Curve'!$A$4:$D$123,4,FALSE)),"",VLOOKUP(A88,'G-Sec Yield Curve'!$A$4:$D$123,4,FALSE)) ->  | T88: 0 | U88: 0 | Y88: 0 | Z88: 0
A89: =A88+Range!$C$48 ->  | B89: =IF(ISERROR(VLOOKUP(A89,'G-Sec Yield Curve'!$A$4:$E$123,5,FALSE)),"",VLOOKUP(A89,'G-Sec Yield Curve'!$A$4:$E$123,5,FALSE)) ->  | D89: =IF(ISERROR(VLOOKUP(A89,'G-Sec Yield Curve'!$A$4:$D$123,4,FALSE)),"",VLOOKUP(A89,'G-Sec Yield Curve'!$A$4:$D$123,4,FALSE)) ->  | T89: 0 | U89: 0 | Y89: 0 | Z89: 0
A90: =A89+Range!$C$48 ->  | B90: =IF(ISERROR(VLOOKUP(A90,'G-Sec Yield Curve'!$A$4:$E$123,5,FALSE)),"",VLOOKUP(A90,'G-Sec Yield Curve'!$A$4:$E$123,5,FALSE)) ->  | D90: =IF(ISERROR(VLOOKUP(A90,'G-Sec Yield Curve'!$A$4:$D$123,4,FALSE)),"",VLOOKUP(A90,'G-Sec Yield Curve'!$A$4:$D$123,4,FALSE)) ->  | T90: 0 | U90: 0 | Y90: 0 | Z90: 0
A91: =A90+Range!$C$48 ->  | B91: =IF(ISERROR(VLOOKUP(A91,'G-Sec Yield Curve'!$A$4:$E$123,5,FALSE)),"",VLOOKUP(A91,'G-Sec Yield Curve'!$A$4:$E$123,5,FALSE)) ->  | D91: =IF(ISERROR(VLOOKUP(A91,'G-Sec Yield Curve'!$A$4:$D$123,4,FALSE)),"",VLOOKUP(A91,'G-Sec Yield Curve'!$A$4:$D$123,4,FALSE)) ->  | T91: 0 | U91: 0 | Y91: 0 | Z91: 0
A92: =A91+Range!$C$48 ->  | B92: =IF(ISERROR(VLOOKUP(A92,'G-Sec Yield Curve'!$A$4:$E$123,5,FALSE)),"",VLOOKUP(A92,'G-Sec Yield Curve'!$A$4:$E$123,5,FALSE)) ->  | D92: =IF(ISERROR(VLOOKUP(A92,'G-Sec Yield Curve'!$A$4:$D$123,4,FALSE)),"",VLOOKUP(A92,'G-Sec Yield Curve'!$A$4:$D$123,4,FALSE)) ->  | T92: 0 | U92: 0 | Y92: 0 | Z92: 0
A93: =A92+Range!$C$48 ->  | B93: =IF(ISERROR(VLOOKUP(A93,'G-Sec Yield Curve'!$A$4:$E$123,5,FALSE)),"",VLOOKUP(A93,'G-Sec Yield Curve'!$A$4:$E$123,5,FALSE)) ->  | D93: =IF(ISERROR(VLOOKUP(A93,'G-Sec Yield Curve'!$A$4:$D$123,4,FALSE)),"",VLOOKUP(A93,'G-Sec Yield Curve'!$A$4:$D$123,4,FALSE)) ->  | T93: 0 | U93: 0 | Y93: 0 | Z93: 0
A94: =A93+Range!$C$48 ->  | B94: =IF(ISERROR(VLOOKUP(A94,'G-Sec Yield Curve'!$A$4:$E$123,5,FALSE)),"",VLOOKUP(A94,'G-Sec Yield Curve'!$A$4:$E$123,5,FALSE)) ->  | D94: =IF(ISERROR(VLOOKUP(A94,'G-Sec Yield Curve'!$A$4:$D$123,4,FALSE)),"",VLOOKUP(A94,'G-Sec Yield Curve'!$A$4:$D$123,4,FALSE)) ->  | T94: 0 | U94: 0 | Y94: 0 | Z94: 0
A95: =A94+Range!$C$48 ->  | B95: =IF(ISERROR(VLOOKUP(A95,'G-Sec Yield Curve'!$A$4:$E$123,5,FALSE)),"",VLOOKUP(A95,'G-Sec Yield Curve'!$A$4:$E$123,5,FALSE)) ->  | D95: =IF(ISERROR(VLOOKUP(A95,'G-Sec Yield Curve'!$A$4:$D$123,4,FALSE)),"",VLOOKUP(A95,'G-Sec Yield Curve'!$A$4:$D$123,4,FALSE)) ->  | T95: 0 | U95: 0 | Y95: 0 | Z95: 0
A96: =A95+Range!$C$48 ->  | B96: =IF(ISERROR(VLOOKUP(A96,'G-Sec Yield Curve'!$A$4:$E$123,5,FALSE)),"",VLOOKUP(A96,'G-Sec Yield Curve'!$A$4:$E$123,5,FALSE)) ->  | D96: =IF(ISERROR(VLOOKUP(A96,'G-Sec Yield Curve'!$A$4:$D$123,4,FALSE)),"",VLOOKUP(A96,'G-Sec Yield Curve'!$A$4:$D$123,4,FALSE)) ->  | T96: 0 | U96: 0 | Y96: 0 | Z96: 0
A97: =A96+Range!$C$48 ->  | B97: =IF(ISERROR(VLOOKUP(A97,'G-Sec Yield Curve'!$A$4:$E$123,5,FALSE)),"",VLOOKUP(A97,'G-Sec Yield Curve'!$A$4:$E$123,5,FALSE)) ->  | D97: =IF(ISERROR(VLOOKUP(A97,'G-Sec Yield Curve'!$A$4:$D$123,4,FALSE)),"",VLOOKUP(A97,'G-Sec Yield Curve'!$A$4:$D$123,4,FALSE)) ->  | T97: 0 | U97: 0 | Y97: 0 | Z97: 0
A98: =A97+Range!$C$48 ->  | B98: =IF(ISERROR(VLOOKUP(A98,'G-Sec Yield Curve'!$A$4:$E$123,5,FALSE)),"",VLOOKUP(A98,'G-Sec Yield Curve'!$A$4:$E$123,5,FALSE)) ->  | D98: =IF(ISERROR(VLOOKUP(A98,'G-Sec Yield Curve'!$A$4:$D$123,4,FALSE)),"",VLOOKUP(A98,'G-Sec Yield Curve'!$A$4:$D$123,4,FALSE)) ->  | T98: 0 | U98: 0 | Y98: 0 | Z98: 0
A99: =A98+Range!$C$48 ->  | B99: =IF(ISERROR(VLOOKUP(A99,'G-Sec Yield Curve'!$A$4:$E$123,5,FALSE)),"",VLOOKUP(A99,'G-Sec Yield Curve'!$A$4:$E$123,5,FALSE)) ->  | D99: =IF(ISERROR(VLOOKUP(A99,'G-Sec Yield Curve'!$A$4:$D$123,4,FALSE)),"",VLOOKUP(A99,'G-Sec Yield Curve'!$A$4:$D$123,4,FALSE)) ->  | T99: 0 | U99: 0 | Y99: 0 | Z99: 0
A100: =A99+Range!$C$48 ->  | B100: =IF(ISERROR(VLOOKUP(A100,'G-Sec Yield Curve'!$A$4:$E$123,5,FALSE)),"",VLOOKUP(A100,'G-Sec Yield Curve'!$A$4:$E$123,5,FALSE)) ->  | D100: =IF(ISERROR(VLOOKUP(A100,'G-Sec Yield Curve'!$A$4:$D$123,4,FALSE)),"",VLOOKUP(A100,'G-Sec Yield Curve'!$A$4:$D$123,4,FALSE)) ->  | T100: 0 | U100: 0 | Y100: 0 | Z100: 0
A101: =A100+Range!$C$48 ->  | B101: =IF(ISERROR(VLOOKUP(A101,'G-Sec Yield Curve'!$A$4:$E$123,5,FALSE)),"",VLOOKUP(A101,'G-Sec Yield Curve'!$A$4:$E$123,5,FALSE)) ->  | D101: =IF(ISERROR(VLOOKUP(A101,'G-Sec Yield Curve'!$A$4:$D$123,4,FALSE)),"",VLOOKUP(A101,'G-Sec Yield Curve'!$A$4:$D$123,4,FALSE)) ->  | T101: 0 | U101: 0 | Y101: 0 | Z101: 0
A102: =A101+Range!$C$48 ->  | B102: =IF(ISERROR(VLOOKUP(A102,'G-Sec Yield Curve'!$A$4:$E$123,5,FALSE)),"",VLOOKUP(A102,'G-Sec Yield Curve'!$A$4:$E$123,5,FALSE)) ->  | D102: =IF(ISERROR(VLOOKUP(A102,'G-Sec Yield Curve'!$A$4:$D$123,4,FALSE)),"",VLOOKUP(A102,'G-Sec Yield Curve'!$A$4:$D$123,4,FALSE)) ->  | T102: 0 | U102: 0 | Y102: 0 | Z102: 0
A103: =A102+Range!$C$48 ->  | B103: =IF(ISERROR(VLOOKUP(A103,'G-Sec Yield Curve'!$A$4:$E$123,5,FALSE)),"",VLOOKUP(A103,'G-Sec Yield Curve'!$A$4:$E$123,5,FALSE)) ->  | D103: =IF(ISERROR(VLOOKUP(A103,'G-Sec Yield Curve'!$A$4:$D$123,4,FALSE)),"",VLOOKUP(A103,'G-Sec Yield Curve'!$A$4:$D$123,4,FALSE)) ->  | T103: 0 | U103: 0 | Y103: 0 | Z103: 0
A104: =A103+Range!$C$48 ->  | B104: =IF(ISERROR(VLOOKUP(A104,'G-Sec Yield Curve'!$A$4:$E$123,5,FALSE)),"",VLOOKUP(A104,'G-Sec Yield Curve'!$A$4:$E$123,5,FALSE)) ->  | D104: =IF(ISERROR(VLOOKUP(A104,'G-Sec Yield Curve'!$A$4:$D$123,4,FALSE)),"",VLOOKUP(A104,'G-Sec Yield Curve'!$A$4:$D$123,4,FALSE)) ->  | T104: 0 | U104: 0 | Y104: 0 | Z104: 0
A105: =A104+Range!$C$48 ->  | B105: =IF(ISERROR(VLOOKUP(A105,'G-Sec Yield Curve'!$A$4:$E$123,5,FALSE)),"",VLOOKUP(A105,'G-Sec Yield Curve'!$A$4:$E$123,5,FALSE)) ->  | D105: =IF(ISERROR(VLOOKUP(A105,'G-Sec Yield Curve'!$A$4:$D$123,4,FALSE)),"",VLOOKUP(A105,'G-Sec Yield Curve'!$A$4:$D$123,4,FALSE)) ->  | T105: 0 | U105: 0 | Y105: 0 | Z105: 0
A106: =A105+Range!$C$48 ->  | B106: =IF(ISERROR(VLOOKUP(A106,'G-Sec Yield Curve'!$A$4:$E$123,5,FALSE)),"",VLOOKUP(A106,'G-Sec Yield Curve'!$A$4:$E$123,5,FALSE)) ->  | C106: =IF(ISERROR(NOMINAL(B106,freq)),"",NOMINAL(B106,freq)) ->  | D106: =IF(ISERROR(VLOOKUP(A106,'G-Sec Yield Curve'!$A$4:$D$123,4,FALSE)),"",VLOOKUP(A106,'G-Sec Yield Curve'!$A$4:$D$123,4,FALSE)) ->  | T106: 0 | U106: 0 | Y106: 0 | Z106: 0
A107: =A106+Range!$C$48 ->  | B107: =IF(ISERROR(VLOOKUP(A107,'G-Sec Yield Curve'!$A$4:$E$123,5,FALSE)),"",VLOOKUP(A107,'G-Sec Yield Curve'!$A$4:$E$123,5,FALSE)) ->  | D107: =IF(ISERROR(VLOOKUP(A107,'G-Sec Yield Curve'!$A$4:$D$123,4,FALSE)),"",VLOOKUP(A107,'G-Sec Yield Curve'!$A$4:$D$123,4,FALSE)) ->  | T107: 0 | U107: 0 | Y107: 0 | Z107: 0
A108: =A107+Range!$C$48 ->  | B108: =IF(ISERROR(VLOOKUP(A108,'G-Sec Yield Curve'!$A$4:$E$123,5,FALSE)),"",VLOOKUP(A108,'G-Sec Yield Curve'!$A$4:$E$123,5,FALSE)) ->  | D108: =IF(ISERROR(VLOOKUP(A108,'G-Sec Yield Curve'!$A$4:$D$123,4,FALSE)),"",VLOOKUP(A108,'G-Sec Yield Curve'!$A$4:$D$123,4,FALSE)) ->  | T108: 0 | U108: 0 | Y108: 0 | Z108: 0
A109: =A108+Range!$C$48 ->  | B109: =IF(ISERROR(VLOOKUP(A109,'G-Sec Yield Curve'!$A$4:$E$123,5,FALSE)),"",VLOOKUP(A109,'G-Sec Yield Curve'!$A$4:$E$123,5,FALSE)) ->  | D109: =IF(ISERROR(VLOOKUP(A109,'G-Sec Yield Curve'!$A$4:$D$123,4,FALSE)),"",VLOOKUP(A109,'G-Sec Yield Curve'!$A$4:$D$123,4,FALSE)) ->  | T109: 0 | U109: 0 | Y109: 0 | Z109: 0
A110: =A109+Range!$C$48 ->  | B110: =IF(ISERROR(VLOOKUP(A110,'G-Sec Yield Curve'!$A$4:$E$123,5,FALSE)),"",VLOOKUP(A110,'G-Sec Yield Curve'!$A$4:$E$123,5,FALSE)) ->  | D110: =IF(ISERROR(VLOOKUP(A110,'G-Sec Yield Curve'!$A$4:$D$123,4,FALSE)),"",VLOOKUP(A110,'G-Sec Yield Curve'!$A$4:$D$123,4,FALSE)) ->  | T110: 0 | U110: 0 | Y110: 0 | Z110: 0
A111: =A110+Range!$C$48 ->  | B111: =IF(ISERROR(VLOOKUP(A111,'G-Sec Yield Curve'!$A$4:$E$123,5,FALSE)),"",VLOOKUP(A111,'G-Sec Yield Curve'!$A$4:$E$123,5,FALSE)) ->  | D111: =IF(ISERROR(VLOOKUP(A111,'G-Sec Yield Curve'!$A$4:$D$123,4,FALSE)),"",VLOOKUP(A111,'G-Sec Yield Curve'!$A$4:$D$123,4,FALSE)) ->  | T111: 0 | U111: 0 | Y111: 0 | Z111: 0
A112: =A111+Range!$C$48 ->  | B112: =IF(ISERROR(VLOOKUP(A112,'G-Sec Yield Curve'!$A$4:$E$123,5,FALSE)),"",VLOOKUP(A112,'G-Sec Yield Curve'!$A$4:$E$123,5,FALSE)) ->  | D112: =IF(ISERROR(VLOOKUP(A112,'G-Sec Yield Curve'!$A$4:$D$123,4,FALSE)),"",VLOOKUP(A112,'G-Sec Yield Curve'!$A$4:$D$123,4,FALSE)) ->  | T112: 0 | U112: 0 | Y112: 0 | Z112: 0
A113: =A112+Range!$C$48 ->  | B113: =IF(ISERROR(VLOOKUP(A113,'G-Sec Yield Curve'!$A$4:$E$123,5,FALSE)),"",VLOOKUP(A113,'G-Sec Yield Curve'!$A$4:$E$123,5,FALSE)) ->  | D113: =IF(ISERROR(VLOOKUP(A113,'G-Sec Yield Curve'!$A$4:$D$123,4,FALSE)),"",VLOOKUP(A113,'G-Sec Yield Curve'!$A$4:$D$123,4,FALSE)) ->  | T113: 0 | U113: 0 | Y113: 0 | Z113: 0
A114: =A113+Range!$C$48 ->  | B114: =IF(ISERROR(VLOOKUP(A114,'G-Sec Yield Curve'!$A$4:$E$123,5,FALSE)),"",VLOOKUP(A114,'G-Sec Yield Curve'!$A$4:$E$123,5,FALSE)) ->  | D114: =IF(ISERROR(VLOOKUP(A114,'G-Sec Yield Curve'!$A$4:$D$123,4,FALSE)),"",VLOOKUP(A114,'G-Sec Yield Curve'!$A$4:$D$123,4,FALSE)) ->  | T114: 0 | U114: 0 | Y114: 0 | Z114: 0
A115: =A114+Range!$C$48 ->  | B115: =IF(ISERROR(VLOOKUP(A115,'G-Sec Yield Curve'!$A$4:$E$123,5,FALSE)),"",VLOOKUP(A115,'G-Sec Yield Curve'!$A$4:$E$123,5,FALSE)) ->  | D115: =IF(ISERROR(VLOOKUP(A115,'G-Sec Yield Curve'!$A$4:$D$123,4,FALSE)),"",VLOOKUP(A115,'G-Sec Yield Curve'!$A$4:$D$123,4,FALSE)) ->  | T115: 0 | U115: 0 | Y115: 0 | Z115: 0
A116: =A115+Range!$C$48 ->  | B116: =IF(ISERROR(VLOOKUP(A116,'G-Sec Yield Curve'!$A$4:$E$123,5,FALSE)),"",VLOOKUP(A116,'G-Sec Yield Curve'!$A$4:$E$123,5,FALSE)) ->  | D116: =IF(ISERROR(VLOOKUP(A116,'G-Sec Yield Curve'!$A$4:$D$123,4,FALSE)),"",VLOOKUP(A116,'G-Sec Yield Curve'!$A$4:$D$123,4,FALSE)) ->  | T116: 0 | U116: 0 | Y116: 0 | Z116: 0
A117: =A116+Range!$C$48 ->  | B117: =IF(ISERROR(VLOOKUP(A117,'G-Sec Yield Curve'!$A$4:$E$123,5,FALSE)),"",VLOOKUP(A117,'G-Sec Yield Curve'!$A$4:$E$123,5,FALSE)) ->  | D117: =IF(ISERROR(VLOOKUP(A117,'G-Sec Yield Curve'!$A$4:$D$123,4,FALSE)),"",VLOOKUP(A117,'G-Sec Yield Curve'!$A$4:$D$123,4,FALSE)) ->  | T117: 0 | U117: 0 | Y117: 0 | Z117: 0
A118: =A117+Range!$C$48 ->  | B118: =IF(ISERROR(VLOOKUP(A118,'G-Sec Yield Curve'!$A$4:$E$123,5,FALSE)),"",VLOOKUP(A118,'G-Sec Yield Curve'!$A$4:$E$123,5,FALSE)) ->  | D118: =IF(ISERROR(VLOOKUP(A118,'G-Sec Yield Curve'!$A$4:$D$123,4,FALSE)),"",VLOOKUP(A118,'G-Sec Yield Curve'!$A$4:$D$123,4,FALSE)) ->  | T118: 0 | U118: 0 | Y118: 0 | Z118: 0
A119: =A118+Range!$C$48 ->  | B119: =IF(ISERROR(VLOOKUP(A119,'G-Sec Yield Curve'!$A$4:$E$123,5,FALSE)),"",VLOOKUP(A119,'G-Sec Yield Curve'!$A$4:$E$123,5,FALSE)) ->  | D119: =IF(ISERROR(VLOOKUP(A119,'G-Sec Yield Curve'!$A$4:$D$123,4,FALSE)),"",VLOOKUP(A119,'G-Sec Yield Curve'!$A$4:$D$123,4,FALSE)) ->  | T119: 0 | U119: 0 | Y119: 0 | Z119: 0
A120: =A119+Range!$C$48 ->  | B120: =IF(ISERROR(VLOOKUP(A120,'G-Sec Yield Curve'!$A$4:$E$123,5,FALSE)),"",VLOOKUP(A120,'G-Sec Yield Curve'!$A$4:$E$123,5,FALSE)) ->  | D120: =IF(ISERROR(VLOOKUP(A120,'G-Sec Yield Curve'!$A$4:$D$123,4,FALSE)),"",VLOOKUP(A120,'G-Sec Yield Curve'!$A$4:$D$123,4,FALSE)) ->  | T120: 0 | U120: 0 | Y120: 0 | Z120: 0
A121: =A120+Range!$C$48 ->  | B121: =IF(ISERROR(VLOOKUP(A121,'G-Sec Yield Curve'!$A$4:$E$123,5,FALSE)),"",VLOOKUP(A121,'G-Sec Yield Curve'!$A$4:$E$123,5,FALSE)) ->  | D121: =IF(ISERROR(VLOOKUP(A121,'G-Sec Yield Curve'!$A$4:$D$123,4,FALSE)),"",VLOOKUP(A121,'G-Sec Yield Curve'!$A$4:$D$123,4,FALSE)) ->  | T121: =IF(R121="",0,(R121-0.5*R121^2*sigy^2*(Q121/12)*$K$7-R121*S121*cor*sigy*sigr*(Q121/12)/(freq+S121))) -> 0 | U121: 0 | Y121: 0 | Z121: 0
A122: =A121+Range!$C$48 ->  | B122: =IF(ISERROR(VLOOKUP(A122,'G-Sec Yield Curve'!$A$4:$E$123,5,FALSE)),"",VLOOKUP(A122,'G-Sec Yield Curve'!$A$4:$E$123,5,FALSE)) ->  | D122: =IF(ISERROR(VLOOKUP(A122,'G-Sec Yield Curve'!$A$4:$D$123,4,FALSE)),"",VLOOKUP(A122,'G-Sec Yield Curve'!$A$4:$D$123,4,FALSE)) ->  | T122: 0 | U122: 0 | Y122: 0 | Z122: 0
A123: =A122+Range!$C$48 ->  | B123: =IF(ISERROR(VLOOKUP(A123,'G-Sec Yield Curve'!$A$4:$E$123,5,FALSE)),"",VLOOKUP(A123,'G-Sec Yield Curve'!$A$4:$E$123,5,FALSE)) ->  | D123: =IF(ISERROR(VLOOKUP(A123,'G-Sec Yield Curve'!$A$4:$D$123,4,FALSE)),"",VLOOKUP(A123,'G-Sec Yield Curve'!$A$4:$D$123,4,FALSE)) ->  | T123: 0 | U123: 0 | Y123: 0 | Z123: 0
A124: =A123+Range!$C$48 ->  | B124: =IF(ISERROR(VLOOKUP(A124,'G-Sec Yield Curve'!$A$4:$E$123,5,FALSE)),"",VLOOKUP(A124,'G-Sec Yield Curve'!$A$4:$E$123,5,FALSE)) ->  | D124: =IF(ISERROR(VLOOKUP(A124,'G-Sec Yield Curve'!$A$4:$D$123,4,FALSE)),"",VLOOKUP(A124,'G-Sec Yield Curve'!$A$4:$D$123,4,FALSE)) ->  | T124: 0 | U124: 0 | Y124: 0 | Z124: 0
A125: =A124+Range!$C$48 ->  | B125: =IF(ISERROR(VLOOKUP(A125,'G-Sec Yield Curve'!$A$4:$E$123,5,FALSE)),"",VLOOKUP(A125,'G-Sec Yield Curve'!$A$4:$E$123,5,FALSE)) ->  | D125: =IF(ISERROR(VLOOKUP(A125,'G-Sec Yield Curve'!$A$4:$D$123,4,FALSE)),"",VLOOKUP(A125,'G-Sec Yield Curve'!$A$4:$D$123,4,FALSE)) ->  | T125: 0 | U125: 0 | Y125: 0 | Z125: 0
A126: =A125+Range!$C$48 ->  | B126: =IF(ISERROR(VLOOKUP(A126,'G-Sec Yield Curve'!$A$4:$E$123,5,FALSE)),"",VLOOKUP(A126,'G-Sec Yield Curve'!$A$4:$E$123,5,FALSE)) ->  | D126: =IF(ISERROR(VLOOKUP(A126,'G-Sec Yield Curve'!$A$4:$D$123,4,FALSE)),"",VLOOKUP(A126,'G-Sec Yield Curve'!$A$4:$D$123,4,FALSE)) ->  | T126: 0 | U126: 0 | Y126: 0 | Z126: 0
A127: =A126+Range!$C$48 ->  | B127: =IF(ISERROR(VLOOKUP(A127,'G-Sec Yield Curve'!$A$4:$E$123,5,FALSE)),"",VLOOKUP(A127,'G-Sec Yield Curve'!$A$4:$E$123,5,FALSE)) ->  | D127: =IF(ISERROR(VLOOKUP(A127,'G-Sec Yield Curve'!$A$4:$D$123,4,FALSE)),"",VLOOKUP(A127,'G-Sec Yield Curve'!$A$4:$D$123,4,FALSE)) ->  | T127: 0 | U127: 0 | Y127: 0 | Z127: 0
A128: =A127+Range!$C$48 ->  | B128: =IF(ISERROR(VLOOKUP(A128,'G-Sec Yield Curve'!$A$4:$E$123,5,FALSE)),"",VLOOKUP(A128,'G-Sec Yield Curve'!$A$4:$E$123,5,FALSE)) ->  | D128: =IF(ISERROR(VLOOKUP(A128,'G-Sec Yield Curve'!$A$4:$D$123,4,FALSE)),"",VLOOKUP(A128,'G-Sec Yield Curve'!$A$4:$D$123,4,FALSE)) ->  | T128: 0 | U128: 0 | Y128: 0 | Z128: 0
A129: =A128+Range!$C$48 ->  | B129: =IF(ISERROR(VLOOKUP(A129,'G-Sec Yield Curve'!$A$4:$E$123,5,FALSE)),"",VLOOKUP(A129,'G-Sec Yield Curve'!$A$4:$E$123,5,FALSE)) ->  | D129: =IF(ISERROR(VLOOKUP(A129,'G-Sec Yield Curve'!$A$4:$D$123,4,FALSE)),"",VLOOKUP(A129,'G-Sec Yield Curve'!$A$4:$D$123,4,FALSE)) ->  | T129: 0 | U129: 0 | Y129: 0 | Z129: 0

Sheet IRS Calculation (hidden)
A1: Fixed Rate | B1: 0.0739115971 | H1: PV Swap | I1: =SUM(I4:I122)+SUM(N4:N122) -> 0
K2: Calculation for PV of Broken Period
A3: Maturity (months) | B3: Par Rate | C3: Par ( at appropriate freq) | D3: df | E3: Spot | F3: Fwd | G3: Include | H3: CF | I3: PV of CF | K3: Flag | L3: Months in Broken Period | M3: Broken Period cash flow | N3: PV of Broken Period Cash flow
A4: =Range!C48 ->  | B4: =IF(ISERROR(VLOOKUP(A4,$N$4:$P$21,2)),$O$4+$P$4*(A4-$N$4),VLOOKUP(A4,$N$4:$P$21,2)+VLOOKUP(A4,$N$4:$P$21,3)*(A4-VLOOKUP(A4,$N$4:$P$21,1))) ->  | C4: =EFFECT(B4,freq) ->  | D4: =IF(ISERROR(IF(Range!$C$23=1,VLOOKUP('IRS Calculation'!A4,'G-Sec Yield Curve'!$A$4:$D$123,4,FALSE),IF(Range!$C$23=2,VLOOKUP(A4,'Overnight curve'!$H$3:$J$62,3,FALSE),IF(Range!$C$23=3, VLOOKUP(A4,'MIFOR curve'!$H$3:$J$62,3,FALSE),"")))),"",IF(Range!$C$23=1,VLOOKUP('IRS Calculation'!A4,'G-Sec Yield Curve'!$A$4:$D$123,4,FALSE),IF(Range!$C$23=2,VLOOKUP(A4,'Overnight curve'!$H$3:$J$62,3,FALSE),IF(Range!$C$23=3, VLOOKUP(A4,'MIFOR curve'!$H$3:$J$62,3,FALSE),"")))) ->  | E4: =IF(ISERROR((1/D4)^(12/A4)-1),"",(1/D4)^(12/A4)-1) ->  | F4: =E4 ->  | G4: =IF(A4<='Clients input'!$B$8,1,0) ->  | H4: =IF(G4=0,0,((1+F4)^(1/freq)-1-IRSFixed/freq)) ->  | I4: =IF(ISERROR(H4*D4),"",H4*D4) ->  | K4: =IF(G4=G5,0,1) ->  | L4: =IF(K4=0,0,term-'IRS Calculation'!A4) ->  | M4: =IF(ISERROR((L4/Range!$C$48)*(F4-IRSFixed)),"",(L4/Range!$C$48)*(F4-IRSFixed)) ->  | N4: =IF(ISERROR(M4*D4),0,M4*D4) -> 0
A5: =A4+Range!$C$48 ->  | D5: =IF(ISERROR(IF(Range!$C$23=1,VLOOKUP('IRS Calculation'!A5,'G-Sec Yield Curve'!$A$4:$D$123,4,FALSE),IF(Range!$C$23=2,VLOOKUP(A5,'Overnight curve'!$H$3:$J$62,3,FALSE),IF(Range!$C$23=3, VLOOKUP(A5,'MIFOR curve'!$H$3:$J$62,3,FALSE),"")))),"",IF(Range!$C$23=1,VLOOKUP('IRS Calculation'!A5,'G-Sec Yield Curve'!$A$4:$D$123,4,FALSE),IF(Range!$C$23=2,VLOOKUP(A5,'Overnight curve'!$H$3:$J$62,3,FALSE),IF(Range!$C$23=3, VLOOKUP(A5,'MIFOR curve'!$H$3:$J$62,3,FALSE),"")))) ->  | E5: =IF(ISERROR((1/D5)^(12/A5)-1),"",(1/D5)^(12/A5)-1) ->  | F5: =IF(ISERROR(((D4/D5)^(12/Range!$C$48)-1)),"",(D4/D5)^(12/Range!$C$48)-1) ->  | G5: =IF(A5<='Clients input'!$B$8,1,0) ->  | H5: =IF(G5=0,0,((1+F5)^(1/freq)-1-IRSFixed/freq)) ->  | I5: =IF(ISERROR(H5*D5),"",H5*D5) ->  | K5: =IF(G5=G6,0,1) ->  | L5: =IF(K5=0,0,term-'IRS Calculation'!A5) ->  | M5: =IF(ISERROR((L5/Range!$C$48)*(F5-IRSFixed)),"",(L5/Range!$C$48)*(F5-IRSFixed)) ->  | N5: =IF(ISERROR(M5*D5),0,M5*D5) -> 0
A6: =A5+Range!$C$48 ->  | D6: =IF(ISERROR(IF(Range!$C$23=1,VLOOKUP('IRS Calculation'!A6,'G-Sec Yield Curve'!$A$4:$D$123,4,FALSE),IF(Range!$C$23=2,VLOOKUP(A6,'Overnight curve'!$H$3:$J$62,3,FALSE),IF(Range!$C$23=3, VLOOKUP(A6,'MIFOR curve'!$H$3:$J$62,3,FALSE),"")))),"",IF(Range!$C$23=1,VLOOKUP('IRS Calculation'!A6,'G-Sec Yield Curve'!$A$4:$D$123,4,FALSE),IF(Range!$C$23=2,VLOOKUP(A6,'Overnight curve'!$H$3:$J$62,3,FALSE),IF(Range!$C$23=3, VLOOKUP(A6,'MIFOR curve'!$H$3:$J$62,3,FALSE),"")))) ->  | F6: =IF(ISERROR(((D5/D6)^(12/Range!$C$48)-1)),"",(D5/D6)^(12/Range!$C$48)-1) ->  | G6: =IF(A6<='Clients input'!$B$8,1,0) ->  | L6: =IF(K6=0,0,term-'IRS Calculation'!A6) ->  | M6: =IF(ISERROR((L6/Range!$C$48)*(F6-IRSFixed)),"",(L6/Range!$C$48)*(F6-IRSFixed)) ->  | N6: 0
A7: =A6+Range!$C$48 ->  | D7: =IF(ISERROR(IF(Range!$C$23=1,VLOOKUP('IRS Calculation'!A7,'G-Sec Yield Curve'!$A$4:$D$123,4,FALSE),IF(Range!$C$23=2,VLOOKUP(A7,'Overnight curve'!$H$3:$J$62,3,FALSE),IF(Range!$C$23=3, VLOOKUP(A7,'MIFOR curve'!$H$3:$J$62,3,FALSE),"")))),"",IF(Range!$C$23=1,VLOOKUP('IRS Calculation'!A7,'G-Sec Yield Curve'!$A$4:$D$123,4,FALSE),IF(Range!$C$23=2,VLOOKUP(A7,'Overnight curve'!$H$3:$J$62,3,FALSE),IF(Range!$C$23=3, VLOOKUP(A7,'MIFOR curve'!$H$3:$J$62,3,FALSE),"")))) ->  | F7: =IF(ISERROR(((D6/D7)^(12/Range!$C$48)-1)),"",(D6/D7)^(12/Range!$C$48)-1) ->  | G7: =IF(A7<='Clients input'!$B$8,1,0) ->  | L7: =IF(K7=0,0,term-'IRS Calculation'!A7) ->  | M7: =IF(ISERROR((L7/Range!$C$48)*(F7-IRSFixed)),"",(L7/Range!$C$48)*(F7-IRSFixed)) ->  | N7: 0
A8: =A7+Range!$C$48 ->  | D8: =IF(ISERROR(IF(Range!$C$23=1,VLOOKUP('IRS Calculation'!A8,'G-Sec Yield Curve'!$A$4:$D$123,4,FALSE),IF(Range!$C$23=2,VLOOKUP(A8,'Overnight curve'!$H$3:$J$62,3,FALSE),IF(Range!$C$23=3, VLOOKUP(A8,'MIFOR curve'!$H$3:$J$62,3,FALSE),"")))),"",IF(Range!$C$23=1,VLOOKUP('IRS Calculation'!A8,'G-Sec Yield Curve'!$A$4:$D$123,4,FALSE),IF(Range!$C$23=2,VLOOKUP(A8,'Overnight curve'!$H$3:$J$62,3,FALSE),IF(Range!$C$23=3, VLOOKUP(A8,'MIFOR curve'!$H$3:$J$62,3,FALSE),"")))) ->  | F8: =IF(ISERROR(((D7/D8)^(12/Range!$C$48)-1)),"",(D7/D8)^(12/Range!$C$48)-1) ->  | G8: =IF(A8<='Clients input'!$B$8,1,0) ->  | L8: =IF(K8=0,0,term-'IRS Calculation'!A8) ->  | M8: =IF(ISERROR((L8/Range!$C$48)*(F8-IRSFixed)),"",(L8/Range!$C$48)*(F8-IRSFixed)) ->  | N8: 0
A9: =A8+Range!$C$48 ->  | D9: =IF(ISERROR(IF(Range!$C$23=1,VLOOKUP('IRS Calculation'!A9,'G-Sec Yield Curve'!$A$4:$D$123,4,FALSE),IF(Range!$C$23=2,VLOOKUP(A9,'Overnight curve'!$H$3:$J$62,3,FALSE),IF(Range!$C$23=3, VLOOKUP(A9,'MIFOR curve'!$H$3:$J$62,3,FALSE),"")))),"",IF(Range!$C$23=1,VLOOKUP('IRS Calculation'!A9,'G-Sec Yield Curve'!$A$4:$D$123,4,FALSE),IF(Range!$C$23=2,VLOOKUP(A9,'Overnight curve'!$H$3:$J$62,3,FALSE),IF(Range!$C$23=3, VLOOKUP(A9,'MIFOR curve'!$H$3:$J$62,3,FALSE),"")))) ->  | F9: =IF(ISERROR(((D8/D9)^(12/Range!$C$48)-1)),"",(D8/D9)^(12/Range!$C$48)-1) ->  | G9: =IF(A9<='Clients input'!$B$8,1,0) ->  | L9: =IF(K9=0,0,term-'IRS Calculation'!A9) ->  | M9: =IF(ISERROR((L9/Range!$C$48)*(F9-IRSFixed)),"",(L9/Range!$C$48)*(F9-IRSFixed)) ->  | N9: 0
A10: =A9+Range!$C$48 ->  | D10: =IF(ISERROR(IF(Range!$C$23=1,VLOOKUP('IRS Calculation'!A10,'G-Sec Yield Curve'!$A$4:$D$123,4,FALSE),IF(Range!$C$23=2,VLOOKUP(A10,'Overnight curve'!$H$3:$J$62,3,FALSE),IF(Range!$C$23=3, VLOOKUP(A10,'MIFOR curve'!$H$3:$J$62,3,FALSE),"")))),"",IF(Range!$C$23=1,VLOOKUP('IRS Calculation'!A10,'G-Sec Yield Curve'!$A$4:$D$123,4,FALSE),IF(Range!$C$23=2,VLOOKUP(A10,'Overnight curve'!$H$3:$J$62,3,FALSE),IF(Range!$C$23=3, VLOOKUP(A10,'MIFOR curve'!$H$3:$J$62,3,FALSE),"")))) ->  | F10: =IF(ISERROR(((D9/D10)^(12/Range!$C$48)-1)),"",(D9/D10)^(12/Range!$C$48)-1) ->  | G10: =IF(A10<='Clients input'!$B$8,1,0) ->  | L10: =IF(K10=0,0,term-'IRS Calculation'!A10) ->  | M10: =IF(ISERROR((L10/Range!$C$48)*(F10-IRSFixed)),"",(L10/Range!$C$48)*(F10-IRSFixed)) ->  | N10: 0
A11: =A10+Range!$C$48 ->  | D11: =IF(ISERROR(IF(Range!$C$23=1,VLOOKUP('IRS Calculation'!A11,'G-Sec Yield Curve'!$A$4:$D$123,4,FALSE),IF(Range!$C$23=2,VLOOKUP(A11,'Overnight curve'!$H$3:$J$62,3,FALSE),IF(Range!$C$23=3, VLOOKUP(A11,'MIFOR curve'!$H$3:$J$62,3,FALSE),"")))),"",IF(Range!$C$23=1,VLOOKUP('IRS Calculation'!A11,'G-Sec Yield Curve'!$A$4:$D$123,4,FALSE),IF(Range!$C$23=2,VLOOKUP(A11,'Overnight curve'!$H$3:$J$62,3,FALSE),IF(Range!$C$23=3, VLOOKUP(A11,'MIFOR curve'!$H$3:$J$62,3,FALSE),"")))) ->  | F11: =IF(ISERROR(((D10/D11)^(12/Range!$C$48)-1)),"",(D10/D11)^(12/Range!$C$48)-1) ->  | G11: =IF(A11<='Clients input'!$B$8,1,0) ->  | L11: =IF(K11=0,0,term-'IRS Calculation'!A11) ->  | M11: =IF(ISERROR((L11/Range!$C$48)*(F11-IRSFixed)),"",(L11/Range!$C$48)*(F11-IRSFixed)) ->  | N11: 0
A12: =A11+Range!$C$48 ->  | D12: =IF(ISERROR(IF(Range!$C$23=1,VLOOKUP('IRS Calculation'!A12,'G-Sec Yield Curve'!$A$4:$D$123,4,FALSE),IF(Range!$C$23=2,VLOOKUP(A12,'Overnight curve'!$H$3:$J$62,3,FALSE),IF(Range!$C$23=3, VLOOKUP(A12,'MIFOR curve'!$H$3:$J$62,3,FALSE),"")))),"",IF(Range!$C$23=1,VLOOKUP('IRS Calculation'!A12,'G-Sec Yield Curve'!$A$4:$D$123,4,FALSE),IF(Range!$C$23=2,VLOOKUP(A12,'Overnight curve'!$H$3:$J$62,3,FALSE),IF(Range!$C$23=3, VLOOKUP(A12,'MIFOR curve'!$H$3:$J$62,3,FALSE),"")))) ->  | F12: =IF(ISERROR(((D11/D12)^(12/Range!$C$48)-1)),"",(D11/D12)^(12/Range!$C$48)-1) ->  | G12: =IF(A12<='Clients input'!$B$8,1,0) ->  | L12: =IF(K12=0,0,term-'IRS Calculation'!A12) ->  | M12: =IF(ISERROR((L12/Range!$C$48)*(F12-IRSFixed)),"",(L12/Range!$C$48)*(F12-IRSFixed)) ->  | N12: 0
A13: =A12+Range!$C$48 ->  | D13: =IF(ISERROR(IF(Range!$C$23=1,VLOOKUP('IRS Calculation'!A13,'G-Sec Yield Curve'!$A$4:$D$123,4,FALSE),IF(Range!$C$23=2,VLOOKUP(A13,'Overnight curve'!$H$3:$J$62,3,FALSE),IF(Range!$C$23=3, VLOOKUP(A13,'MIFOR curve'!$H$3:$J$62,3,FALSE),"")))),"",IF(Range!$C$23=1,VLOOKUP('IRS Calculation'!A13,'G-Sec Yield Curve'!$A$4:$D$123,4,FALSE),IF(Range!$C$23=2,VLOOKUP(A13,'Overnight curve'!$H$3:$J$62,3,FALSE),IF(Range!$C$23=3, VLOOKUP(A13,'MIFOR curve'!$H$3:$J$62,3,FALSE),"")))) ->  | F13: =IF(ISERROR(((D12/D13)^(12/Range!$C$48)-1)),"",(D12/D13)^(12/Range!$C$48)-1) ->  | G13: =IF(A13<='Clients input'!$B$8,1,0) ->  | L13: =IF(K13=0,0,term-'IRS Calculation'!A13) ->  | M13: =IF(ISERROR((L13/Range!$C$48)*(F13-IRSFixed)),"",(L13/Range!$C$48)*(F13-IRSFixed)) ->  | N13: 0
A14: =A13+Range!$C$48 ->  | D14: =IF(ISERROR(IF(Range!$C$23=1,VLOOKUP('IRS Calculation'!A14,'G-Sec Yield Curve'!$A$4:$D$123,4,FALSE),IF(Range!$C$23=2,VLOOKUP(A14,'Overnight curve'!$H$3:$J$62,3,FALSE),IF(Range!$C$23=3, VLOOKUP(A14,'MIFOR curve'!$H$3:$J$62,3,FALSE),"")))),"",IF(Range!$C$23=1,VLOOKUP('IRS Calculation'!A14,'G-Sec Yield Curve'!$A$4:$D$123,4,FALSE),IF(Range!$C$23=2,VLOOKUP(A14,'Overnight curve'!$H$3:$J$62,3,FALSE),IF(Range!$C$23=3, VLOOKUP(A14,'MIFOR curve'!$H$3:$J$62,3,FALSE),"")))) ->  | F14: =IF(ISERROR(((D13/D14)^(12/Range!$C$48)-1)),"",(D13/D14)^(12/Range!$C$48)-1) ->  | G14: =IF(A14<='Clients input'!$B$8,1,0) ->  | L14: =IF(K14=0,0,term-'IRS Calculation'!A14) ->  | M14: =IF(ISERROR((L14/Range!$C$48)*(F14-IRSFixed)),"",(L14/Range!$C$48)*(F14-IRSFixed)) ->  | N14: 0
A15: =A14+Range!$C$48 ->  | D15: =IF(ISERROR(IF(Range!$C$23=1,VLOOKUP('IRS Calculation'!A15,'G-Sec Yield Curve'!$A$4:$D$123,4,FALSE),IF(Range!$C$23=2,VLOOKUP(A15,'Overnight curve'!$H$3:$J$62,3,FALSE),IF(Range!$C$23=3, VLOOKUP(A15,'MIFOR curve'!$H$3:$J$62,3,FALSE),"")))),"",IF(Range!$C$23=1,VLOOKUP('IRS Calculation'!A15,'G-Sec Yield Curve'!$A$4:$D$123,4,FALSE),IF(Range!$C$23=2,VLOOKUP(A15,'Overnight curve'!$H$3:$J$62,3,FALSE),IF(Range!$C$23=3, VLOOKUP(A15,'MIFOR curve'!$H$3:$J$62,3,FALSE),"")))) ->  | F15: =IF(ISERROR(((D14/D15)^(12/Range!$C$48)-1)),"",(D14/D15)^(12/Range!$C$48)-1) ->  | G15: =IF(A15<='Clients input'!$B$8,1,0) ->  | L15: =IF(K15=0,0,term-'IRS Calculation'!A15) ->  | M15: =IF(ISERROR((L15/Range!$C$48)*(F15-IRSFixed)),"",(L15/Range!$C$48)*(F15-IRSFixed)) ->  | N15: 0
A16: =A15+Range!$C$48 ->  | D16: =IF(ISERROR(IF(Range!$C$23=1,VLOOKUP('IRS Calculation'!A16,'G-Sec Yield Curve'!$A$4:$D$123,4,FALSE),IF(Range!$C$23=2,VLOOKUP(A16,'Overnight curve'!$H$3:$J$62,3,FALSE),IF(Range!$C$23=3, VLOOKUP(A16,'MIFOR curve'!$H$3:$J$62,3,FALSE),"")))),"",IF(Range!$C$23=1,VLOOKUP('IRS Calculation'!A16,'G-Sec Yield Curve'!$A$4:$D$123,4,FALSE),IF(Range!$C$23=2,VLOOKUP(A16,'Overnight curve'!$H$3:$J$62,3,FALSE),IF(Range!$C$23=3, VLOOKUP(A16,'MIFOR curve'!$H$3:$J$62,3,FALSE),"")))) ->  | F16: =IF(ISERROR(((D15/D16)^(12/Range!$C$48)-1)),"",(D15/D16)^(12/Range!$C$48)-1) ->  | G16: =IF(A16<='Clients input'!$B$8,1,0) ->  | L16: =IF(K16=0,0,term-'IRS Calculation'!A16) ->  | M16: =IF(ISERROR((L16/Range!$C$48)*(F16-IRSFixed)),"",(L16/Range!$C$48)*(F16-IRSFixed)) ->  | N16: 0
A17: =A16+Range!$C$48 ->  | D17: =IF(ISERROR(IF(Range!$C$23=1,VLOOKUP('IRS Calculation'!A17,'G-Sec Yield Curve'!$A$4:$D$123,4,FALSE),IF(Range!$C$23=2,VLOOKUP(A17,'Overnight curve'!$H$3:$J$62,3,FALSE),IF(Range!$C$23=3, VLOOKUP(A17,'MIFOR curve'!$H$3:$J$62,3,FALSE),"")))),"",IF(Range!$C$23=1,VLOOKUP('IRS Calculation'!A17,'G-Sec Yield Curve'!$A$4:$D$123,4,FALSE),IF(Range!$C$23=2,VLOOKUP(A17,'Overnight curve'!$H$3:$J$62,3,FALSE),IF(Range!$C$23=3, VLOOKUP(A17,'MIFOR curve'!$H$3:$J$62,3,FALSE),"")))) ->  | F17: =IF(ISERROR(((D16/D17)^(12/Range!$C$48)-1)),"",(D16/D17)^(12/Range!$C$48)-1) ->  | G17: =IF(A17<='Clients input'!$B$8,1,0) ->  | L17: =IF(K17=0,0,term-'IRS Calculation'!A17) ->  | M17: =IF(ISERROR((L17/Range!$C$48)*(F17-IRSFixed)),"",(L17/Range!$C$48)*(F17-IRSFixed)) ->  | N17: 0
A18: =A17+Range!$C$48 ->  | D18: =IF(ISERROR(IF(Range!$C$23=1,VLOOKUP('IRS Calculation'!A18,'G-Sec Yield Curve'!$A$4:$D$123,4,FALSE),IF(Range!$C$23=2,VLOOKUP(A18,'Overnight curve'!$H$3:$J$62,3,FALSE),IF(Range!$C$23=3, VLOOKUP(A18,'MIFOR curve'!$H$3:$J$62,3,FALSE),"")))),"",IF(Range!$C$23=1,VLOOKUP('IRS Calculation'!A18,'G-Sec Yield Curve'!$A$4:$D$123,4,FALSE),IF(Range!$C$23=2,VLOOKUP(A18,'Overnight curve'!$H$3:$J$62,3,FALSE),IF(Range!$C$23=3, VLOOKUP(A18,'MIFOR curve'!$H$3:$J$62,3,FALSE),"")))) ->  | F18: =IF(ISERROR(((D17/D18)^(12/Range!$C$48)-1)),"",(D17/D18)^(12/Range!$C$48)-1) ->  | G18: =IF(A18<='Clients input'!$B$8,1,0) ->  | L18: =IF(K18=0,0,term-'IRS Calculation'!A18) ->  | M18: =IF(ISERROR((L18/Range!$C$48)*(F18-IRSFixed)),"",(L18/Range!$C$48)*(F18-IRSFixed)) ->  | N18: 0
A19: =A18+Range!$C$48 ->  | D19: =IF(ISERROR(IF(Range!$C$23=1,VLOOKUP('IRS Calculation'!A19,'G-Sec Yield Curve'!$A$4:$D$123,4,FALSE),IF(Range!$C$23=2,VLOOKUP(A19,'Overnight curve'!$H$3:$J$62,3,FALSE),IF(Range!$C$23=3, VLOOKUP(A19,'MIFOR curve'!$H$3:$J$62,3,FALSE),"")))),"",IF(Range!$C$23=1,VLOOKUP('IRS Calculation'!A19,'G-Sec Yield Curve'!$A$4:$D$123,4,FALSE),IF(Range!$C$23=2,VLOOKUP(A19,'Overnight curve'!$H$3:$J$62,3,FALSE),IF(Range!$C$23=3, VLOOKUP(A19,'MIFOR curve'!$H$3:$J$62,3,FALSE),"")))) ->  | F19: =IF(ISERROR(((D18/D19)^(12/Range!$C$48)-1)),"",(D18/D19)^(12/Range!$C$48)-1) ->  | G19: =IF(A19<='Clients input'!$B$8,1,0) ->  | L19: =IF(K19=0,0,term-'IRS Calculation'!A19) ->  | M19: =IF(ISERROR((L19/Range!$C$48)*(F19-IRSFixed)),"",(L19/Range!$C$48)*(F19-IRSFixed)) ->  | N19: 0
A20: =A19+Range!$C$48 ->  | D20: =IF(ISERROR(IF(Range!$C$23=1,VLOOKUP('IRS Calculation'!A20,'G-Sec Yield Curve'!$A$4:$D$123,4,FALSE),IF(Range!$C$23=2,VLOOKUP(A20,'Overnight curve'!$H$3:$J$62,3,FALSE),IF(Range!$C$23=3, VLOOKUP(A20,'MIFOR curve'!$H$3:$J$62,3,FALSE),"")))),"",IF(Range!$C$23=1,VLOOKUP('IRS Calculation'!A20,'G-Sec Yield Curve'!$A$4:$D$123,4,FALSE),IF(Range!$C$23=2,VLOOKUP(A20,'Overnight curve'!$H$3:$J$62,3,FALSE),IF(Range!$C$23=3, VLOOKUP(A20,'MIFOR curve'!$H$3:$J$62,3,FALSE),"")))) ->  | F20: =IF(ISERROR(((D19/D20)^(12/Range!$C$48)-1)),"",(D19/D20)^(12/Range!$C$48)-1) ->  | G20: =IF(A20<='Clients input'!$B$8,1,0) ->  | L20: =IF(K20=0,0,term-'IRS Calculation'!A20) ->  | M20: =IF(ISERROR((L20/Range!$C$48)*(F20-IRSFixed)),"",(L20/Range!$C$48)*(F20-IRSFixed)) ->  | N20: 0
A21: =A20+Range!$C$48 ->  | D21: =IF(ISERROR(IF(Range!$C$23=1,VLOOKUP('IRS Calculation'!A21,'G-Sec Yield Curve'!$A$4:$D$123,4,FALSE),IF(Range!$C$23=2,VLOOKUP(A21,'Overnight curve'!$H$3:$J$62,3,FALSE),IF(Range!$C$23=3, VLOOKUP(A21,'MIFOR curve'!$H$3:$J$62,3,FALSE),"")))),"",IF(Range!$C$23=1,VLOOKUP('IRS Calculation'!A21,'G-Sec Yield Curve'!$A$4:$D$123,4,FALSE),IF(Range!$C$23=2,VLOOKUP(A21,'Overnight curve'!$H$3:$J$62,3,FALSE),IF(Range!$C$23=3, VLOOKUP(A21,'MIFOR curve'!$H$3:$J$62,3,FALSE),"")))) ->  | F21: =IF(ISERROR(((D20/D21)^(12/Range!$C$48)-1)),"",(D20/D21)^(12/Range!$C$48)-1) ->  | G21: =IF(A21<='Clients input'!$B$8,1,0) ->  | L21: =IF(K21=0,0,term-'IRS Calculation'!A21) ->  | M21: =IF(ISERROR((L21/Range!$C$48)*(F21-IRSFixed)),"",(L21/Range!$C$48)*(F21-IRSFixed)) ->  | N21: 0
A22: =A21+Range!$C$48 ->  | D22: =IF(ISERROR(IF(Range!$C$23=1,VLOOKUP('IRS Calculation'!A22,'G-Sec Yield Curve'!$A$4:$D$123,4,FALSE),IF(Range!$C$23=2,VLOOKUP(A22,'Overnight curve'!$H$3:$J$62,3,FALSE),IF(Range!$C$23=3, VLOOKUP(A22,'MIFOR curve'!$H$3:$J$62,3,FALSE),"")))),"",IF(Range!$C$23=1,VLOOKUP('IRS Calculation'!A22,'G-Sec Yield Curve'!$A$4:$D$123,4,FALSE),IF(Range!$C$23=2,VLOOKUP(A22,'Overnight curve'!$H$3:$J$62,3,FALSE),IF(Range!$C$23=3, VLOOKUP(A22,'MIFOR curve'!$H$3:$J$62,3,FALSE),"")))) ->  | F22: =IF(ISERROR(((D21/D22)^(12/Range!$C$48)-1)),"",(D21/D22)^(12/Range!$C$48)-1) ->  | G22: =IF(A22<='Clients input'!$B$8,1,0) ->  | L22: =IF(K22=0,0,term-'IRS Calculation'!A22) ->  | M22: =IF(ISERROR((L22/Range!$C$48)*(F22-IRSFixed)),"",(L22/Range!$C$48)*(F22-IRSFixed)) ->  | N22: 0
A23: =A22+Range!$C$48 ->  | D23: =IF(ISERROR(IF(Range!$C$23=1,VLOOKUP('IRS Calculation'!A23,'G-Sec Yield Curve'!$A$4:$D$123,4,FALSE),IF(Range!$C$23=2,VLOOKUP(A23,'Overnight curve'!$H$3:$J$62,3,FALSE),IF(Range!$C$23=3, VLOOKUP(A23,'MIFOR curve'!$H$3:$J$62,3,FALSE),"")))),"",IF(Range!$C$23=1,VLOOKUP('IRS Calculation'!A23,'G-Sec Yield Curve'!$A$4:$D$123,4,FALSE),IF(Range!$C$23=2,VLOOKUP(A23,'Overnight curve'!$H$3:$J$62,3,FALSE),IF(Range!$C$23=3, VLOOKUP(A23,'MIFOR curve'!$H$3:$J$62,3,FALSE),"")))) ->  | F23: =IF(ISERROR(((D22/D23)^(12/Range!$C$48)-1)),"",(D22/D23)^(12/Range!$C$48)-1) ->  | G23: =IF(A23<='Clients input'!$B$8,1,0) ->  | L23: =IF(K23=0,0,term-'IRS Calculation'!A23) ->  | M23: =IF(ISERROR((L23/Range!$C$48)*(F23-IRSFixed)),"",(L23/Range!$C$48)*(F23-IRSFixed)) ->  | N23: 0
A24: =A23+Range!$C$48 ->  | D24: =IF(ISERROR(IF(Range!$C$23=1,VLOOKUP('IRS Calculation'!A24,'G-Sec Yield Curve'!$A$4:$D$123,4,FALSE),IF(Range!$C$23=2,VLOOKUP(A24,'Overnight curve'!$H$3:$J$62,3,FALSE),IF(Range!$C$23=3, VLOOKUP(A24,'MIFOR curve'!$H$3:$J$62,3,FALSE),"")))),"",IF(Range!$C$23=1,VLOOKUP('IRS Calculation'!A24,'G-Sec Yield Curve'!$A$4:$D$123,4,FALSE),IF(Range!$C$23=2,VLOOKUP(A24,'Overnight curve'!$H$3:$J$62,3,FALSE),IF(Range!$C$23=3, VLOOKUP(A24,'MIFOR curve'!$H$3:$J$62,3,FALSE),"")))) ->  | F24: =IF(ISERROR(((D23/D24)^(12/Range!$C$48)-1)),"",(D23/D24)^(12/Range!$C$48)-1) ->  | G24: =IF(A24<='Clients input'!$B$8,1,0) ->  | L24: =IF(K24=0,0,term-'IRS Calculation'!A24) ->  | M24: =IF(ISERROR((L24/Range!$C$48)*(F24-IRSFixed)),"",(L24/Range!$C$48)*(F24-IRSFixed)) ->  | N24: 0
A25: =A24+Range!$C$48 ->  | D25: =IF(ISERROR(IF(Range!$C$23=1,VLOOKUP('IRS Calculation'!A25,'G-Sec Yield Curve'!$A$4:$D$123,4,FALSE),IF(Range!$C$23=2,VLOOKUP(A25,'Overnight curve'!$H$3:$J$62,3,FALSE),IF(Range!$C$23=3, VLOOKUP(A25,'MIFOR curve'!$H$3:$J$62,3,FALSE),"")))),"",IF(Range!$C$23=1,VLOOKUP('IRS Calculation'!A25,'G-Sec Yield Curve'!$A$4:$D$123,4,FALSE),IF(Range!$C$23=2,VLOOKUP(A25,'Overnight curve'!$H$3:$J$62,3,FALSE),IF(Range!$C$23=3, VLOOKUP(A25,'MIFOR curve'!$H$3:$J$62,3,FALSE),"")))) ->  | F25: =IF(ISERROR(((D24/D25)^(12/Range!$C$48)-1)),"",(D24/D25)^(12/Range!$C$48)-1) ->  | G25: =IF(A25<='Clients input'!$B$8,1,0) ->  | L25: =IF(K25=0,0,term-'IRS Calculation'!A25) ->  | M25: =IF(ISERROR((L25/Range!$C$48)*(F25-IRSFixed)),"",(L25/Range!$C$48)*(F25-IRSFixed)) ->  | N25: 0
A26: =A25+Range!$C$48 ->  | D26: =IF(ISERROR(IF(Range!$C$23=1,VLOOKUP('IRS Calculation'!A26,'G-Sec Yield Curve'!$A$4:$D$123,4,FALSE),IF(Range!$C$23=2,VLOOKUP(A26,'Overnight curve'!$H$3:$J$62,3,FALSE),IF(Range!$C$23=3, VLOOKUP(A26,'MIFOR curve'!$H$3:$J$62,3,FALSE),"")))),"",IF(Range!$C$23=1,VLOOKUP('IRS Calculation'!A26,'G-Sec Yield Curve'!$A$4:$D$123,4,FALSE),IF(Range!$C$23=2,VLOOKUP(A26,'Overnight curve'!$H$3:$J$62,3,FALSE),IF(Range!$C$23=3, VLOOKUP(A26,'MIFOR curve'!$H$3:$J$62,3,FALSE),"")))) ->  | F26: =IF(ISERROR(((D25/D26)^(12/Range!$C$48)-1)),"",(D25/D26)^(12/Range!$C$48)-1) ->  | G26: =IF(A26<='Clients input'!$B$8,1,0) ->  | L26: =IF(K26=0,0,term-'IRS Calculation'!A26) ->  | M26: =IF(ISERROR((L26/Range!$C$48)*(F26-IRSFixed)),"",(L26/Range!$C$48)*(F26-IRSFixed)) ->  | N26: 0
A27: =A26+Range!$C$48 ->  | D27: =IF(ISERROR(IF(Range!$C$23=1,VLOOKUP('IRS Calculation'!A27,'G-Sec Yield Curve'!$A$4:$D$123,4,FALSE),IF(Range!$C$23=2,VLOOKUP(A27,'Overnight curve'!$H$3:$J$62,3,FALSE),IF(Range!$C$23=3, VLOOKUP(A27,'MIFOR curve'!$H$3:$J$62,3,FALSE),"")))),"",IF(Range!$C$23=1,VLOOKUP('IRS Calculation'!A27,'G-Sec Yield Curve'!$A$4:$D$123,4,FALSE),IF(Range!$C$23=2,VLOOKUP(A27,'Overnight curve'!$H$3:$J$62,3,FALSE),IF(Range!$C$23=3, VLOOKUP(A27,'MIFOR curve'!$H$3:$J$62,3,FALSE),"")))) ->  | F27: =IF(ISERROR(((D26/D27)^(12/Range!$C$48)-1)),"",(D26/D27)^(12/Range!$C$48)-1) ->  | G27: =IF(A27<='Clients input'!$B$8,1,0) ->  | L27: =IF(K27=0,0,term-'IRS Calculation'!A27) ->  | M27: =IF(ISERROR((L27/Range!$C$48)*(F27-IRSFixed)),"",(L27/Range!$C$48)*(F27-IRSFixed)) ->  | N27: 0
A28: =A27+Range!$C$48 ->  | D28: =IF(ISERROR(IF(Range!$C$23=1,VLOOKUP('IRS Calculation'!A28,'G-Sec Yield Curve'!$A$4:$D$123,4,FALSE),IF(Range!$C$23=2,VLOOKUP(A28,'Overnight curve'!$H$3:$J$62,3,FALSE),IF(Range!$C$23=3, VLOOKUP(A28,'MIFOR curve'!$H$3:$J$62,3,FALSE),"")))),"",IF(Range!$C$23=1,VLOOKUP('IRS Calculation'!A28,'G-Sec Yield Curve'!$A$4:$D$123,4,FALSE),IF(Range!$C$23=2,VLOOKUP(A28,'Overnight curve'!$H$3:$J$62,3,FALSE),IF(Range!$C$23=3, VLOOKUP(A28,'MIFOR curve'!$H$3:$J$62,3,FALSE),"")))) ->  | F28: =IF(ISERROR(((D27/D28)^(12/Range!$C$48)-1)),"",(D27/D28)^(12/Range!$C$48)-1) ->  | G28: =IF(A28<='Clients input'!$B$8,1,0) ->  | L28: =IF(K28=0,0,term-'IRS Calculation'!A28) ->  | M28: =IF(ISERROR((L28/Range!$C$48)*(F28-IRSFixed)),"",(L28/Range!$C$48)*(F28-IRSFixed)) ->  | N28: 0
A29: =A28+Range!$C$48 ->  | D29: =IF(ISERROR(IF(Range!$C$23=1,VLOOKUP('IRS Calculation'!A29,'G-Sec Yield Curve'!$A$4:$D$123,4,FALSE),IF(Range!$C$23=2,VLOOKUP(A29,'Overnight curve'!$H$3:$J$62,3,FALSE),IF(Range!$C$23=3, VLOOKUP(A29,'MIFOR curve'!$H$3:$J$62,3,FALSE),"")))),"",IF(Range!$C$23=1,VLOOKUP('IRS Calculation'!A29,'G-Sec Yield Curve'!$A$4:$D$123,4,FALSE),IF(Range!$C$23=2,VLOOKUP(A29,'Overnight curve'!$H$3:$J$62,3,FALSE),IF(Range!$C$23=3, VLOOKUP(A29,'MIFOR curve'!$H$3:$J$62,3,FALSE),"")))) ->  | F29: =IF(ISERROR(((D28/D29)^(12/Range!$C$48)-1)),"",(D28/D29)^(12/Range!$C$48)-1) ->  | G29: =IF(A29<='Clients input'!$B$8,1,0) ->  | L29: =IF(K29=0,0,term-'IRS Calculation'!A29) ->  | M29: =IF(ISERROR((L29/Range!$C$48)*(F29-IRSFixed)),"",(L29/Range!$C$48)*(F29-IRSFixed)) ->  | N29: 0
A30: =A29+Range!$C$48 ->  | D30: =IF(ISERROR(IF(Range!$C$23=1,VLOOKUP('IRS Calculation'!A30,'G-Sec Yield Curve'!$A$4:$D$123,4,FALSE),IF(Range!$C$23=2,VLOOKUP(A30,'Overnight curve'!$H$3:$J$62,3,FALSE),IF(Range!$C$23=3, VLOOKUP(A30,'MIFOR curve'!$H$3:$J$62,3,FALSE),"")))),"",IF(Range!$C$23=1,VLOOKUP('IRS Calculation'!A30,'G-Sec Yield Curve'!$A$4:$D$123,4,FALSE),IF(Range!$C$23=2,VLOOKUP(A30,'Overnight curve'!$H$3:$J$62,3,FALSE),IF(Range!$C$23=3, VLOOKUP(A30,'MIFOR curve'!$H$3:$J$62,3,FALSE),"")))) ->  | F30: =IF(ISERROR(((D29/D30)^(12/Range!$C$48)-1)),"",(D29/D30)^(12/Range!$C$48)-1) ->  | G30: =IF(A30<='Clients input'!$B$8,1,0) ->  | L30: =IF(K30=0,0,term-'IRS Calculation'!A30) ->  | M30: =IF(ISERROR((L30/Range!$C$48)*(F30-IRSFixed)),"",(L30/Range!$C$48)*(F30-IRSFixed)) ->  | N30: 0
A31: =A30+Range!$C$48 ->  | D31: =IF(ISERROR(IF(Range!$C$23=1,VLOOKUP('IRS Calculation'!A31,'G-Sec Yield Curve'!$A$4:$D$123,4,FALSE),IF(Range!$C$23=2,VLOOKUP(A31,'Overnight curve'!$H$3:$J$62,3,FALSE),IF(Range!$C$23=3, VLOOKUP(A31,'MIFOR curve'!$H$3:$J$62,3,FALSE),"")))),"",IF(Range!$C$23=1,VLOOKUP('IRS Calculation'!A31,'G-Sec Yield Curve'!$A$4:$D$123,4,FALSE),IF(Range!$C$23=2,VLOOKUP(A31,'Overnight curve'!$H$3:$J$62,3,FALSE),IF(Range!$C$23=3, VLOOKUP(A31,'MIFOR curve'!$H$3:$J$62,3,FALSE),"")))) ->  | F31: =IF(ISERROR(((D30/D31)^(12/Range!$C$48)-1)),"",(D30/D31)^(12/Range!$C$48)-1) ->  | G31: =IF(A31<='Clients input'!$B$8,1,0) ->  | L31: =IF(K31=0,0,term-'IRS Calculation'!A31) ->  | M31: =IF(ISERROR((L31/Range!$C$48)*(F31-IRSFixed)),"",(L31/Range!$C$48)*(F31-IRSFixed)) ->  | N31: 0
A32: =A31+Range!$C$48 ->  | D32: =IF(ISERROR(IF(Range!$C$23=1,VLOOKUP('IRS Calculation'!A32,'G-Sec Yield Curve'!$A$4:$D$123,4,FALSE),IF(Range!$C$23=2,VLOOKUP(A32,'Overnight curve'!$H$3:$J$62,3,FALSE),IF(Range!$C$23=3, VLOOKUP(A32,'MIFOR curve'!$H$3:$J$62,3,FALSE),"")))),"",IF(Range!$C$23=1,VLOOKUP('IRS Calculation'!A32,'G-Sec Yield Curve'!$A$4:$D$123,4,FALSE),IF(Range!$C$23=2,VLOOKUP(A32,'Overnight curve'!$H$3:$J$62,3,FALSE),IF(Range!$C$23=3, VLOOKUP(A32,'MIFOR curve'!$H$3:$J$62,3,FALSE),"")))) ->  | F32: =IF(ISERROR(((D31/D32)^(12/Range!$C$48)-1)),"",(D31/D32)^(12/Range!$C$48)-1) ->  | G32: =IF(A32<='Clients input'!$B$8,1,0) ->  | L32: =IF(K32=0,0,term-'IRS Calculation'!A32) ->  | M32: =IF(ISERROR((L32/Range!$C$48)*(F32-IRSFixed)),"",(L32/Range!$C$48)*(F32-IRSFixed)) ->  | N32: 0
A33: =A32+Range!$C$48 ->  | D33: =IF(ISERROR(IF(Range!$C$23=1,VLOOKUP('IRS Calculation'!A33,'G-Sec Yield Curve'!$A$4:$D$123,4,FALSE),IF(Range!$C$23=2,VLOOKUP(A33,'Overnight curve'!$H$3:$J$62,3,FALSE),IF(Range!$C$23=3, VLOOKUP(A33,'MIFOR curve'!$H$3:$J$62,3,FALSE),"")))),"",IF(Range!$C$23=1,VLOOKUP('IRS Calculation'!A33,'G-Sec Yield Curve'!$A$4:$D$123,4,FALSE),IF(Range!$C$23=2,VLOOKUP(A33,'Overnight curve'!$H$3:$J$62,3,FALSE),IF(Range!$C$23=3, VLOOKUP(A33,'MIFOR curve'!$H$3:$J$62,3,FALSE),"")))) ->  | F33: =IF(ISERROR(((D32/D33)^(12/Range!$C$48)-1)),"",(D32/D33)^(12/Range!$C$48)-1) ->  | G33: =IF(A33<='Clients input'!$B$8,1,0) ->  | L33: =IF(K33=0,0,term-'IRS Calculation'!A33) ->  | M33: =IF(ISERROR((L33/Range!$C$48)*(F33-IRSFixed)),"",(L33/Range!$C$48)*(F33-IRSFixed)) ->  | N33: 0
A34: =A33+Range!$C$48 ->  | D34: =IF(ISERROR(IF(Range!$C$23=1,VLOOKUP('IRS Calculation'!A34,'G-Sec Yield Curve'!$A$4:$D$123,4,FALSE),IF(Range!$C$23=2,VLOOKUP(A34,'Overnight curve'!$H$3:$J$62,3,FALSE),IF(Range!$C$23=3, VLOOKUP(A34,'MIFOR curve'!$H$3:$J$62,3,FALSE),"")))),"",IF(Range!$C$23=1,VLOOKUP('IRS Calculation'!A34,'G-Sec Yield Curve'!$A$4:$D$123,4,FALSE),IF(Range!$C$23=2,VLOOKUP(A34,'Overnight curve'!$H$3:$J$62,3,FALSE),IF(Range!$C$23=3, VLOOKUP(A34,'MIFOR curve'!$H$3:$J$62,3,FALSE),"")))) ->  | F34: =IF(ISERROR(((D33/D34)^(12/Range!$C$48)-1)),"",(D33/D34)^(12/Range!$C$48)-1) ->  | G34: =IF(A34<='Clients input'!$B$8,1,0) ->  | L34: =IF(K34=0,0,term-'IRS Calculation'!A34) ->  | M34: =IF(ISERROR((L34/Range!$C$48)*(F34-IRSFixed)),"",(L34/Range!$C$48)*(F34-IRSFixed)) ->  | N34: 0
A35: =A34+Range!$C$48 ->  | D35: =IF(ISERROR(IF(Range!$C$23=1,VLOOKUP('IRS Calculation'!A35,'G-Sec Yield Curve'!$A$4:$D$123,4,FALSE),IF(Range!$C$23=2,VLOOKUP(A35,'Overnight curve'!$H$3:$J$62,3,FALSE),IF(Range!$C$23=3, VLOOKUP(A35,'MIFOR curve'!$H$3:$J$62,3,FALSE),"")))),"",IF(Range!$C$23=1,VLOOKUP('IRS Calculation'!A35,'G-Sec Yield Curve'!$A$4:$D$123,4,FALSE),IF(Range!$C$23=2,VLOOKUP(A35,'Overnight curve'!$H$3:$J$62,3,FALSE),IF(Range!$C$23=3, VLOOKUP(A35,'MIFOR curve'!$H$3:$J$62,3,FALSE),"")))) ->  | F35: =IF(ISERROR(((D34/D35)^(12/Range!$C$48)-1)),"",(D34/D35)^(12/Range!$C$48)-1) ->  | G35: =IF(A35<='Clients input'!$B$8,1,0) ->  | L35: =IF(K35=0,0,term-'IRS Calculation'!A35) ->  | M35: =IF(ISERROR((L35/Range!$C$48)*(F35-IRSFixed)),"",(L35/Range!$C$48)*(F35-IRSFixed)) ->  | N35: 0
A36: =A35+Range!$C$48 ->  | D36: =IF(ISERROR(IF(Range!$C$23=1,VLOOKUP('IRS Calculation'!A36,'G-Sec Yield Curve'!$A$4:$D$123,4,FALSE),IF(Range!$C$23=2,VLOOKUP(A36,'Overnight curve'!$H$3:$J$62,3,FALSE),IF(Range!$C$23=3, VLOOKUP(A36,'MIFOR curve'!$H$3:$J$62,3,FALSE),"")))),"",IF(Range!$C$23=1,VLOOKUP('IRS Calculation'!A36,'G-Sec Yield Curve'!$A$4:$D$123,4,FALSE),IF(Range!$C$23=2,VLOOKUP(A36,'Overnight curve'!$H$3:$J$62,3,FALSE),IF(Range!$C$23=3, VLOOKUP(A36,'MIFOR curve'!$H$3:$J$62,3,FALSE),"")))) ->  | F36: =IF(ISERROR(((D35/D36)^(12/Range!$C$48)-1)),"",(D35/D36)^(12/Range!$C$48)-1) ->  | G36: =IF(A36<='Clients input'!$B$8,1,0) ->  | L36: =IF(K36=0,0,term-'IRS Calculation'!A36) ->  | M36: =IF(ISERROR((L36/Range!$C$48)*(F36-IRSFixed)),"",(L36/Range!$C$48)*(F36-IRSFixed)) ->  | N36: 0
A37: =A36+Range!$C$48 ->  | D37: =IF(ISERROR(IF(Range!$C$23=1,VLOOKUP('IRS Calculation'!A37,'G-Sec Yield Curve'!$A$4:$D$123,4,FALSE),IF(Range!$C$23=2,VLOOKUP(A37,'Overnight curve'!$H$3:$J$62,3,FALSE),IF(Range!$C$23=3, VLOOKUP(A37,'MIFOR curve'!$H$3:$J$62,3,FALSE),"")))),"",IF(Range!$C$23=1,VLOOKUP('IRS Calculation'!A37,'G-Sec Yield Curve'!$A$4:$D$123,4,FALSE),IF(Range!$C$23=2,VLOOKUP(A37,'Overnight curve'!$H$3:$J$62,3,FALSE),IF(Range!$C$23=3, VLOOKUP(A37,'MIFOR curve'!$H$3:$J$62,3,FALSE),"")))) ->  | F37: =IF(ISERROR(((D36/D37)^(12/Range!$C$48)-1)),"",(D36/D37)^(12/Range!$C$48)-1) ->  | G37: =IF(A37<='Clients input'!$B$8,1,0) ->  | L37: =IF(K37=0,0,term-'IRS Calculation'!A37) ->  | M37: =IF(ISERROR((L37/Range!$C$48)*(F37-IRSFixed)),"",(L37/Range!$C$48)*(F37-IRSFixed)) ->  | N37: 0
A38: =A37+Range!$C$48 ->  | D38: =IF(ISERROR(IF(Range!$C$23=1,VLOOKUP('IRS Calculation'!A38,'G-Sec Yield Curve'!$A$4:$D$123,4,FALSE),IF(Range!$C$23=2,VLOOKUP(A38,'Overnight curve'!$H$3:$J$62,3,FALSE),IF(Range!$C$23=3, VLOOKUP(A38,'MIFOR curve'!$H$3:$J$62,3,FALSE),"")))),"",IF(Range!$C$23=1,VLOOKUP('IRS Calculation'!A38,'G-Sec Yield Curve'!$A$4:$D$123,4,FALSE),IF(Range!$C$23=2,VLOOKUP(A38,'Overnight curve'!$H$3:$J$62,3,FALSE),IF(Range!$C$23=3, VLOOKUP(A38,'MIFOR curve'!$H$3:$J$62,3,FALSE),"")))) ->  | F38: =IF(ISERROR(((D37/D38)^(12/Range!$C$48)-1)),"",(D37/D38)^(12/Range!$C$48)-1) ->  | G38: =IF(A38<='Clients input'!$B$8,1,0) ->  | L38: =IF(K38=0,0,term-'IRS Calculation'!A38) ->  | M38: =IF(ISERROR((L38/Range!$C$48)*(F38-IRSFixed)),"",(L38/Range!$C$48)*(F38-IRSFixed)) ->  | N38: 0
A39: =A38+Range!$C$48 ->  | D39: =IF(ISERROR(IF(Range!$C$23=1,VLOOKUP('IRS Calculation'!A39,'G-Sec Yield Curve'!$A$4:$D$123,4,FALSE),IF(Range!$C$23=2,VLOOKUP(A39,'Overnight curve'!$H$3:$J$62,3,FALSE),IF(Range!$C$23=3, VLOOKUP(A39,'MIFOR curve'!$H$3:$J$62,3,FALSE),"")))),"",IF(Range!$C$23=1,VLOOKUP('IRS Calculation'!A39,'G-Sec Yield Curve'!$A$4:$D$123,4,FALSE),IF(Range!$C$23=2,VLOOKUP(A39,'Overnight curve'!$H$3:$J$62,3,FALSE),IF(Range!$C$23=3, VLOOKUP(A39,'MIFOR curve'!$H$3:$J$62,3,FALSE),"")))) ->  | F39: =IF(ISERROR(((D38/D39)^(12/Range!$C$48)-1)),"",(D38/D39)^(12/Range!$C$48)-1) ->  | G39: =IF(A39<='Clients input'!$B$8,1,0) ->  | L39: =IF(K39=0,0,term-'IRS Calculation'!A39) ->  | M39: =IF(ISERROR((L39/Range!$C$48)*(F39-IRSFixed)),"",(L39/Range!$C$48)*(F39-IRSFixed)) ->  | N39: 0
A40: =A39+Range!$C$48 ->  | D40: =IF(ISERROR(IF(Range!$C$23=1,VLOOKUP('IRS Calculation'!A40,'G-Sec Yield Curve'!$A$4:$D$123,4,FALSE),IF(Range!$C$23=2,VLOOKUP(A40,'Overnight curve'!$H$3:$J$62,3,FALSE),IF(Range!$C$23=3, VLOOKUP(A40,'MIFOR curve'!$H$3:$J$62,3,FALSE),"")))),"",IF(Range!$C$23=1,VLOOKUP('IRS Calculation'!A40,'G-Sec Yield Curve'!$A$4:$D$123,4,FALSE),IF(Range!$C$23=2,VLOOKUP(A40,'Overnight curve'!$H$3:$J$62,3,FALSE),IF(Range!$C$23=3, VLOOKUP(A40,'MIFOR curve'!$H$3:$J$62,3,FALSE),"")))) ->  | F40: =IF(ISERROR(((D39/D40)^(12/Range!$C$48)-1)),"",(D39/D40)^(12/Range!$C$48)-1) ->  | G40: =IF(A40<='Clients input'!$B$8,1,0) ->  | L40: =IF(K40=0,0,term-'IRS Calculation'!A40) ->  | M40: =IF(ISERROR((L40/Range!$C$48)*(F40-IRSFixed)),"",(L40/Range!$C$48)*(F40-IRSFixed)) ->  | N40: 0
A41: =A40+Range!$C$48 ->  | D41: =IF(ISERROR(IF(Range!$C$23=1,VLOOKUP('IRS Calculation'!A41,'G-Sec Yield Curve'!$A$4:$D$123,4,FALSE),IF(Range!$C$23=2,VLOOKUP(A41,'Overnight curve'!$H$3:$J$62,3,FALSE),IF(Range!$C$23=3, VLOOKUP(A41,'MIFOR curve'!$H$3:$J$62,3,FALSE),"")))),"",IF(Range!$C$23=1,VLOOKUP('IRS Calculation'!A41,'G-Sec Yield Curve'!$A$4:$D$123,4,FALSE),IF(Range!$C$23=2,VLOOKUP(A41,'Overnight curve'!$H$3:$J$62,3,FALSE),IF(Range!$C$23=3, VLOOKUP(A41,'MIFOR curve'!$H$3:$J$62,3,FALSE),"")))) ->  | F41: =IF(ISERROR(((D40/D41)^(12/Range!$C$48)-1)),"",(D40/D41)^(12/Range!$C$48)-1) ->  | G41: =IF(A41<='Clients input'!$B$8,1,0) ->  | L41: =IF(K41=0,0,term-'IRS Calculation'!A41) ->  | M41: =IF(ISERROR((L41/Range!$C$48)*(F41-IRSFixed)),"",(L41/Range!$C$48)*(F41-IRSFixed)) ->  | N41: 0
A42: =A41+Range!$C$48 ->  | D42: =IF(ISERROR(IF(Range!$C$23=1,VLOOKUP('IRS Calculation'!A42,'G-Sec Yield Curve'!$A$4:$D$123,4,FALSE),IF(Range!$C$23=2,VLOOKUP(A42,'Overnight curve'!$H$3:$J$62,3,FALSE),IF(Range!$C$23=3, VLOOKUP(A42,'MIFOR curve'!$H$3:$J$62,3,FALSE),"")))),"",IF(Range!$C$23=1,VLOOKUP('IRS Calculation'!A42,'G-Sec Yield Curve'!$A$4:$D$123,4,FALSE),IF(Range!$C$23=2,VLOOKUP(A42,'Overnight curve'!$H$3:$J$62,3,FALSE),IF(Range!$C$23=3, VLOOKUP(A42,'MIFOR curve'!$H$3:$J$62,3,FALSE),"")))) ->  | F42: =IF(ISERROR(((D41/D42)^(12/Range!$C$48)-1)),"",(D41/D42)^(12/Range!$C$48)-1) ->  | G42: =IF(A42<='Clients input'!$B$8,1,0) ->  | L42: =IF(K42=0,0,term-'IRS Calculation'!A42) ->  | M42: =IF(ISERROR((L42/Range!$C$48)*(F42-IRSFixed)),"",(L42/Range!$C$48)*(F42-IRSFixed)) ->  | N42: 0
A43: =A42+Range!$C$48 ->  | D43: =IF(ISERROR(IF(Range!$C$23=1,VLOOKUP('IRS Calculation'!A43,'G-Sec Yield Curve'!$A$4:$D$123,4,FALSE),IF(Range!$C$23=2,VLOOKUP(A43,'Overnight curve'!$H$3:$J$62,3,FALSE),IF(Range!$C$23=3, VLOOKUP(A43,'MIFOR curve'!$H$3:$J$62,3,FALSE),"")))),"",IF(Range!$C$23=1,VLOOKUP('IRS Calculation'!A43,'G-Sec Yield Curve'!$A$4:$D$123,4,FALSE),IF(Range!$C$23=2,VLOOKUP(A43,'Overnight curve'!$H$3:$J$62,3,FALSE),IF(Range!$C$23=3, VLOOKUP(A43,'MIFOR curve'!$H$3:$J$62,3,FALSE),"")))) ->  | F43: =IF(ISERROR(((D42/D43)^(12/Range!$C$48)-1)),"",(D42/D43)^(12/Range!$C$48)-1) ->  | G43: =IF(A43<='Clients input'!$B$8,1,0) ->  | L43: =IF(K43=0,0,term-'IRS Calculation'!A43) ->  | M43: =IF(ISERROR((L43/Range!$C$48)*(F43-IRSFixed)),"",(L43/Range!$C$48)*(F43-IRSFixed)) ->  | N43: 0
A44: =A43+Range!$C$48 ->  | D44: =IF(ISERROR(IF(Range!$C$23=1,VLOOKUP('IRS Calculation'!A44,'G-Sec Yield Curve'!$A$4:$D$123,4,FALSE),IF(Range!$C$23=2,VLOOKUP(A44,'Overnight curve'!$H$3:$J$62,3,FALSE),IF(Range!$C$23=3, VLOOKUP(A44,'MIFOR curve'!$H$3:$J$62,3,FALSE),"")))),"",IF(Range!$C$23=1,VLOOKUP('IRS Calculation'!A44,'G-Sec Yield Curve'!$A$4:$D$123,4,FALSE),IF(Range!$C$23=2,VLOOKUP(A44,'Overnight curve'!$H$3:$J$62,3,FALSE),IF(Range!$C$23=3, VLOOKUP(A44,'MIFOR curve'!$H$3:$J$62,3,FALSE),"")))) ->  | F44: =IF(ISERROR(((D43/D44)^(12/Range!$C$48)-1)),"",(D43/D44)^(12/Range!$C$48)-1) ->  | G44: =IF(A44<='Clients input'!$B$8,1,0) ->  | L44: =IF(K44=0,0,term-'IRS Calculation'!A44) ->  | M44: =IF(ISERROR((L44/Range!$C$48)*(F44-IRSFixed)),"",(L44/Range!$C$48)*(F44-IRSFixed)) ->  | N44: 0
A45: =A44+Range!$C$48 ->  | D45: =IF(ISERROR(IF(Range!$C$23=1,VLOOKUP('IRS Calculation'!A45,'G-Sec Yield Curve'!$A$4:$D$123,4,FALSE),IF(Range!$C$23=2,VLOOKUP(A45,'Overnight curve'!$H$3:$J$62,3,FALSE),IF(Range!$C$23=3, VLOOKUP(A45,'MIFOR curve'!$H$3:$J$62,3,FALSE),"")))),"",IF(Range!$C$23=1,VLOOKUP('IRS Calculation'!A45,'G-Sec Yield Curve'!$A$4:$D$123,4,FALSE),IF(Range!$C$23=2,VLOOKUP(A45,'Overnight curve'!$H$3:$J$62,3,FALSE),IF(Range!$C$23=3, VLOOKUP(A45,'MIFOR curve'!$H$3:$J$62,3,FALSE),"")))) ->  | F45: =IF(ISERROR(((D44/D45)^(12/Range!$C$48)-1)),"",(D44/D45)^(12/Range!$C$48)-1) ->  | G45: =IF(A45<='Clients input'!$B$8,1,0) ->  | L45: =IF(K45=0,0,term-'IRS Calculation'!A45) ->  | M45: =IF(ISERROR((L45/Range!$C$48)*(F45-IRSFixed)),"",(L45/Range!$C$48)*(F45-IRSFixed)) ->  | N45: 0
A46: =A45+Range!$C$48 ->  | D46: =IF(ISERROR(IF(Range!$C$23=1,VLOOKUP('IRS Calculation'!A46,'G-Sec Yield Curve'!$A$4:$D$123,4,FALSE),IF(Range!$C$23=2,VLOOKUP(A46,'Overnight curve'!$H$3:$J$62,3,FALSE),IF(Range!$C$23=3, VLOOKUP(A46,'MIFOR curve'!$H$3:$J$62,3,FALSE),"")))),"",IF(Range!$C$23=1,VLOOKUP('IRS Calculation'!A46,'G-Sec Yield Curve'!$A$4:$D$123,4,FALSE),IF(Range!$C$23=2,VLOOKUP(A46,'Overnight curve'!$H$3:$J$62,3,FALSE),IF(Range!$C$23=3, VLOOKUP(A46,'MIFOR curve'!$H$3:$J$62,3,FALSE),"")))) ->  | F46: =IF(ISERROR(((D45/D46)^(12/Range!$C$48)-1)),"",(D45/D46)^(12/Range!$C$48)-1) ->  | G46: =IF(A46<='Clients input'!$B$8,1,0) ->  | L46: =IF(K46=0,0,term-'IRS Calculation'!A46) ->  | M46: =IF(ISERROR((L46/Range!$C$48)*(F46-IRSFixed)),"",(L46/Range!$C$48)*(F46-IRSFixed)) ->  | N46: 0
A47: =A46+Range!$C$48 ->  | D47: =IF(ISERROR(IF(Range!$C$23=1,VLOOKUP('IRS Calculation'!A47,'G-Sec Yield Curve'!$A$4:$D$123,4,FALSE),IF(Range!$C$23=2,VLOOKUP(A47,'Overnight curve'!$H$3:$J$62,3,FALSE),IF(Range!$C$23=3, VLOOKUP(A47,'MIFOR curve'!$H$3:$J$62,3,FALSE),"")))),"",IF(Range!$C$23=1,VLOOKUP('IRS Calculation'!A47,'G-Sec Yield Curve'!$A$4:$D$123,4,FALSE),IF(Range!$C$23=2,VLOOKUP(A47,'Overnight curve'!$H$3:$J$62,3,FALSE),IF(Range!$C$23=3, VLOOKUP(A47,'MIFOR curve'!$H$3:$J$62,3,FALSE),"")))) ->  | F47: =IF(ISERROR(((D46/D47)^(12/Range!$C$48)-1)),"",(D46/D47)^(12/Range!$C$48)-1) ->  | G47: =IF(A47<='Clients input'!$B$8,1,0) ->  | L47: =IF(K47=0,0,term-'IRS Calculation'!A47) ->  | M47: =IF(ISERROR((L47/Range!$C$48)*(F47-IRSFixed)),"",(L47/Range!$C$48)*(F47-IRSFixed)) ->  | N47: 0
A48: =A47+Range!$C$48 ->  | D48: =IF(ISERROR(IF(Range!$C$23=1,VLOOKUP('IRS Calculation'!A48,'G-Sec Yield Curve'!$A$4:$D$123,4,FALSE),IF(Range!$C$23=2,VLOOKUP(A48,'Overnight curve'!$H$3:$J$62,3,FALSE),IF(Range!$C$23=3, VLOOKUP(A48,'MIFOR curve'!$H$3:$J$62,3,FALSE),"")))),"",IF(Range!$C$23=1,VLOOKUP('IRS Calculation'!A48,'G-Sec Yield Curve'!$A$4:$D$123,4,FALSE),IF(Range!$C$23=2,VLOOKUP(A48,'Overnight curve'!$H$3:$J$62,3,FALSE),IF(Range!$C$23=3, VLOOKUP(A48,'MIFOR curve'!$H$3:$J$62,3,FALSE),"")))) ->  | F48: =IF(ISERROR(((D47/D48)^(12/Range!$C$48)-1)),"",(D47/D48)^(12/Range!$C$48)-1) ->  | G48: =IF(A48<='Clients input'!$B$8,1,0) ->  | L48: =IF(K48=0,0,term-'IRS Calculation'!A48) ->  | M48: =IF(ISERROR((L48/Range!$C$48)*(F48-IRSFixed)),"",(L48/Range!$C$48)*(F48-IRSFixed)) ->  | N48: 0
A49: =A48+Range!$C$48 ->  | D49: =IF(ISERROR(IF(Range!$C$23=1,VLOOKUP('IRS Calculation'!A49,'G-Sec Yield Curve'!$A$4:$D$123,4,FALSE),IF(Range!$C$23=2,VLOOKUP(A49,'Overnight curve'!$H$3:$J$62,3,FALSE),IF(Range!$C$23=3, VLOOKUP(A49,'MIFOR curve'!$H$3:$J$62,3,FALSE),"")))),"",IF(Range!$C$23=1,VLOOKUP('IRS Calculation'!A49,'G-Sec Yield Curve'!$A$4:$D$123,4,FALSE),IF(Range!$C$23=2,VLOOKUP(A49,'Overnight curve'!$H$3:$J$62,3,FALSE),IF(Range!$C$23=3, VLOOKUP(A49,'MIFOR curve'!$H$3:$J$62,3,FALSE),"")))) ->  | F49: =IF(ISERROR(((D48/D49)^(12/Range!$C$48)-1)),"",(D48/D49)^(12/Range!$C$48)-1) ->  | G49: =IF(A49<='Clients input'!$B$8,1,0) ->  | L49: =IF(K49=0,0,term-'IRS Calculation'!A49) ->  | M49: =IF(ISERROR((L49/Range!$C$48)*(F49-IRSFixed)),"",(L49/Range!$C$48)*(F49-IRSFixed)) ->  | N49: 0
A50: =A49+Range!$C$48 ->  | D50: =IF(ISERROR(IF(Range!$C$23=1,VLOOKUP('IRS Calculation'!A50,'G-Sec Yield Curve'!$A$4:$D$123,4,FALSE),IF(Range!$C$23=2,VLOOKUP(A50,'Overnight curve'!$H$3:$J$62,3,FALSE),IF(Range!$C$23=3, VLOOKUP(A50,'MIFOR curve'!$H$3:$J$62,3,FALSE),"")))),"",IF(Range!$C$23=1,VLOOKUP('IRS Calculation'!A50,'G-Sec Yield Curve'!$A$4:$D$123,4,FALSE),IF(Range!$C$23=2,VLOOKUP(A50,'Overnight curve'!$H$3:$J$62,3,FALSE),IF(Range!$C$23=3, VLOOKUP(A50,'MIFOR curve'!$H$3:$J$62,3,FALSE),"")))) ->  | F50: =IF(ISERROR(((D49/D50)^(12/Range!$C$48)-1)),"",(D49/D50)^(12/Range!$C$48)-1) ->  | G50: =IF(A50<='Clients input'!$B$8,1,0) ->  | L50: =IF(K50=0,0,term-'IRS Calculation'!A50) ->  | M50: =IF(ISERROR((L50/Range!$C$48)*(F50-IRSFixed)),"",(L50/Range!$C$48)*(F50-IRSFixed)) ->  | N50: 0
A51: =A50+Range!$C$48 ->  | D51: =IF(ISERROR(IF(Range!$C$23=1,VLOOKUP('IRS Calculation'!A51,'G-Sec Yield Curve'!$A$4:$D$123,4,FALSE),IF(Range!$C$23=2,VLOOKUP(A51,'Overnight curve'!$H$3:$J$62,3,FALSE),IF(Range!$C$23=3, VLOOKUP(A51,'MIFOR curve'!$H$3:$J$62,3,FALSE),"")))),"",IF(Range!$C$23=1,VLOOKUP('IRS Calculation'!A51,'G-Sec Yield Curve'!$A$4:$D$123,4,FALSE),IF(Range!$C$23=2,VLOOKUP(A51,'Overnight curve'!$H$3:$J$62,3,FALSE),IF(Range!$C$23=3, VLOOKUP(A51,'MIFOR curve'!$H$3:$J$62,3,FALSE),"")))) ->  | F51: =IF(ISERROR(((D50/D51)^(12/Range!$C$48)-1)),"",(D50/D51)^(12/Range!$C$48)-1) ->  | G51: =IF(A51<='Clients input'!$B$8,1,0) ->  | L51: =IF(K51=0,0,term-'IRS Calculation'!A51) ->  | M51: =IF(ISERROR((L51/Range!$C$48)*(F51-IRSFixed)),"",(L51/Range!$C$48)*(F51-IRSFixed)) ->  | N51: 0
A52: =A51+Range!$C$48 ->  | D52: =IF(ISERROR(IF(Range!$C$23=1,VLOOKUP('IRS Calculation'!A52,'G-Sec Yield Curve'!$A$4:$D$123,4,FALSE),IF(Range!$C$23=2,VLOOKUP(A52,'Overnight curve'!$H$3:$J$62,3,FALSE),IF(Range!$C$23=3, VLOOKUP(A52,'MIFOR curve'!$H$3:$J$62,3,FALSE),"")))),"",IF(Range!$C$23=1,VLOOKUP('IRS Calculation'!A52,'G-Sec Yield Curve'!$A$4:$D$123,4,FALSE),IF(Range!$C$23=2,VLOOKUP(A52,'Overnight curve'!$H$3:$J$62,3,FALSE),IF(Range!$C$23=3, VLOOKUP(A52,'MIFOR curve'!$H$3:$J$62,3,FALSE),"")))) ->  | F52: =IF(ISERROR(((D51/D52)^(12/Range!$C$48)-1)),"",(D51/D52)^(12/Range!$C$48)-1) ->  | G52: =IF(A52<='Clients input'!$B$8,1,0) ->  | L52: =IF(K52=0,0,term-'IRS Calculation'!A52) ->  | M52: =IF(ISERROR((L52/Range!$C$48)*(F52-IRSFixed)),"",(L52/Range!$C$48)*(F52-IRSFixed)) ->  | N52: 0
A53: =A52+Range!$C$48 ->  | D53: =IF(ISERROR(IF(Range!$C$23=1,VLOOKUP('IRS Calculation'!A53,'G-Sec Yield Curve'!$A$4:$D$123,4,FALSE),IF(Range!$C$23=2,VLOOKUP(A53,'Overnight curve'!$H$3:$J$62,3,FALSE),IF(Range!$C$23=3, VLOOKUP(A53,'MIFOR curve'!$H$3:$J$62,3,FALSE),"")))),"",IF(Range!$C$23=1,VLOOKUP('IRS Calculation'!A53,'G-Sec Yield Curve'!$A$4:$D$123,4,FALSE),IF(Range!$C$23=2,VLOOKUP(A53,'Overnight curve'!$H$3:$J$62,3,FALSE),IF(Range!$C$23=3, VLOOKUP(A53,'MIFOR curve'!$H$3:$J$62,3,FALSE),"")))) ->  | F53: =IF(ISERROR(((D52/D53)^(12/Range!$C$48)-1)),"",(D52/D53)^(12/Range!$C$48)-1) ->  | G53: =IF(A53<='Clients input'!$B$8,1,0) ->  | L53: =IF(K53=0,0,term-'IRS Calculation'!A53) ->  | M53: =IF(ISERROR((L53/Range!$C$48)*(F53-IRSFixed)),"",(L53/Range!$C$48)*(F53-IRSFixed)) ->  | N53: 0
A54: =A53+Range!$C$48 ->  | D54: =IF(ISERROR(IF(Range!$C$23=1,VLOOKUP('IRS Calculation'!A54,'G-Sec Yield Curve'!$A$4:$D$123,4,FALSE),IF(Range!$C$23=2,VLOOKUP(A54,'Overnight curve'!$H$3:$J$62,3,FALSE),IF(Range!$C$23=3, VLOOKUP(A54,'MIFOR curve'!$H$3:$J$62,3,FALSE),"")))),"",IF(Range!$C$23=1,VLOOKUP('IRS Calculation'!A54,'G-Sec Yield Curve'!$A$4:$D$123,4,FALSE),IF(Range!$C$23=2,VLOOKUP(A54,'Overnight curve'!$H$3:$J$62,3,FALSE),IF(Range!$C$23=3, VLOOKUP(A54,'MIFOR curve'!$H$3:$J$62,3,FALSE),"")))) ->  | F54: =IF(ISERROR(((D53/D54)^(12/Range!$C$48)-1)),"",(D53/D54)^(12/Range!$C$48)-1) ->  | G54: =IF(A54<='Clients input'!$B$8,1,0) ->  | L54: =IF(K54=0,0,term-'IRS Calculation'!A54) ->  | M54: =IF(ISERROR((L54/Range!$C$48)*(F54-IRSFixed)),"",(L54/Range!$C$48)*(F54-IRSFixed)) ->  | N54: 0
A55: =A54+Range!$C$48 ->  | D55: =IF(ISERROR(IF(Range!$C$23=1,VLOOKUP('IRS Calculation'!A55,'G-Sec Yield Curve'!$A$4:$D$123,4,FALSE),IF(Range!$C$23=2,VLOOKUP(A55,'Overnight curve'!$H$3:$J$62,3,FALSE),IF(Range!$C$23=3, VLOOKUP(A55,'MIFOR curve'!$H$3:$J$62,3,FALSE),"")))),"",IF(Range!$C$23=1,VLOOKUP('IRS Calculation'!A55,'G-Sec Yield Curve'!$A$4:$D$123,4,FALSE),IF(Range!$C$23=2,VLOOKUP(A55,'Overnight curve'!$H$3:$J$62,3,FALSE),IF(Range!$C$23=3, VLOOKUP(A55,'MIFOR curve'!$H$3:$J$62,3,FALSE),"")))) ->  | F55: =IF(ISERROR(((D54/D55)^(12/Range!$C$48)-1)),"",(D54/D55)^(12/Range!$C$48)-1) ->  | G55: =IF(A55<='Clients input'!$B$8,1,0) ->  | L55: =IF(K55=0,0,term-'IRS Calculation'!A55) ->  | M55: =IF(ISERROR((L55/Range!$C$48)*(F55-IRSFixed)),"",(L55/Range!$C$48)*(F55-IRSFixed)) ->  | N55: 0
A56: =A55+Range!$C$48 ->  | D56: =IF(ISERROR(IF(Range!$C$23=1,VLOOKUP('IRS Calculation'!A56,'G-Sec Yield Curve'!$A$4:$D$123,4,FALSE),IF(Range!$C$23=2,VLOOKUP(A56,'Overnight curve'!$H$3:$J$62,3,FALSE),IF(Range!$C$23=3, VLOOKUP(A56,'MIFOR curve'!$H$3:$J$62,3,FALSE),"")))),"",IF(Range!$C$23=1,VLOOKUP('IRS Calculation'!A56,'G-Sec Yield Curve'!$A$4:$D$123,4,FALSE),IF(Range!$C$23=2,VLOOKUP(A56,'Overnight curve'!$H$3:$J$62,3,FALSE),IF(Range!$C$23=3, VLOOKUP(A56,'MIFOR curve'!$H$3:$J$62,3,FALSE),"")))) ->  | F56: =IF(ISERROR(((D55/D56)^(12/Range!$C$48)-1)),"",(D55/D56)^(12/Range!$C$48)-1) ->  | G56: =IF(A56<='Clients input'!$B$8,1,0) ->  | L56: =IF(K56=0,0,term-'IRS Calculation'!A56) ->  | M56: =IF(ISERROR((L56/Range!$C$48)*(F56-IRSFixed)),"",(L56/Range!$C$48)*(F56-IRSFixed)) ->  | N56: 0
A57: =A56+Range!$C$48 ->  | D57: =IF(ISERROR(IF(Range!$C$23=1,VLOOKUP('IRS Calculation'!A57,'G-Sec Yield Curve'!$A$4:$D$123,4,FALSE),IF(Range!$C$23=2,VLOOKUP(A57,'Overnight curve'!$H$3:$J$62,3,FALSE),IF(Range!$C$23=3, VLOOKUP(A57,'MIFOR curve'!$H$3:$J$62,3,FALSE),"")))),"",IF(Range!$C$23=1,VLOOKUP('IRS Calculation'!A57,'G-Sec Yield Curve'!$A$4:$D$123,4,FALSE),IF(Range!$C$23=2,VLOOKUP(A57,'Overnight curve'!$H$3:$J$62,3,FALSE),IF(Range!$C$23=3, VLOOKUP(A57,'MIFOR curve'!$H$3:$J$62,3,FALSE),"")))) ->  | F57: =IF(ISERROR(((D56/D57)^(12/Range!$C$48)-1)),"",(D56/D57)^(12/Range!$C$48)-1) ->  | G57: =IF(A57<='Clients input'!$B$8,1,0) ->  | L57: =IF(K57=0,0,term-'IRS Calculation'!A57) ->  | M57: =IF(ISERROR((L57/Range!$C$48)*(F57-IRSFixed)),"",(L57/Range!$C$48)*(F57-IRSFixed)) ->  | N57: 0
A58: =A57+Range!$C$48 ->  | D58: =IF(ISERROR(IF(Range!$C$23=1,VLOOKUP('IRS Calculation'!A58,'G-Sec Yield Curve'!$A$4:$D$123,4,FALSE),IF(Range!$C$23=2,VLOOKUP(A58,'Overnight curve'!$H$3:$J$62,3,FALSE),IF(Range!$C$23=3, VLOOKUP(A58,'MIFOR curve'!$H$3:$J$62,3,FALSE),"")))),"",IF(Range!$C$23=1,VLOOKUP('IRS Calculation'!A58,'G-Sec Yield Curve'!$A$4:$D$123,4,FALSE),IF(Range!$C$23=2,VLOOKUP(A58,'Overnight curve'!$H$3:$J$62,3,FALSE),IF(Range!$C$23=3, VLOOKUP(A58,'MIFOR curve'!$H$3:$J$62,3,FALSE),"")))) ->  | F58: =IF(ISERROR(((D57/D58)^(12/Range!$C$48)-1)),"",(D57/D58)^(12/Range!$C$48)-1) ->  | G58: =IF(A58<='Clients input'!$B$8,1,0) ->  | L58: =IF(K58=0,0,term-'IRS Calculation'!A58) ->  | M58: =IF(ISERROR((L58/Range!$C$48)*(F58-IRSFixed)),"",(L58/Range!$C$48)*(F58-IRSFixed)) ->  | N58: 0
A59: =A58+Range!$C$48 ->  | D59: =IF(ISERROR(IF(Range!$C$23=1,VLOOKUP('IRS Calculation'!A59,'G-Sec Yield Curve'!$A$4:$D$123,4,FALSE),IF(Range!$C$23=2,VLOOKUP(A59,'Overnight curve'!$H$3:$J$62,3,FALSE),IF(Range!$C$23=3, VLOOKUP(A59,'MIFOR curve'!$H$3:$J$62,3,FALSE),"")))),"",IF(Range!$C$23=1,VLOOKUP('IRS Calculation'!A59,'G-Sec Yield Curve'!$A$4:$D$123,4,FALSE),IF(Range!$C$23=2,VLOOKUP(A59,'Overnight curve'!$H$3:$J$62,3,FALSE),IF(Range!$C$23=3, VLOOKUP(A59,'MIFOR curve'!$H$3:$J$62,3,FALSE),"")))) ->  | F59: =IF(ISERROR(((D58/D59)^(12/Range!$C$48)-1)),"",(D58/D59)^(12/Range!$C$48)-1) ->  | G59: =IF(A59<='Clients input'!$B$8,1,0) ->  | L59: =IF(K59=0,0,term-'IRS Calculation'!A59) ->  | M59: =IF(ISERROR((L59/Range!$C$48)*(F59-IRSFixed)),"",(L59/Range!$C$48)*(F59-IRSFixed)) ->  | N59: 0
A60: =A59+Range!$C$48 ->  | D60: =IF(ISERROR(IF(Range!$C$23=1,VLOOKUP('IRS Calculation'!A60,'G-Sec Yield Curve'!$A$4:$D$123,4,FALSE),IF(Range!$C$23=2,VLOOKUP(A60,'Overnight curve'!$H$3:$J$62,3,FALSE),IF(Range!$C$23=3, VLOOKUP(A60,'MIFOR curve'!$H$3:$J$62,3,FALSE),"")))),"",IF(Range!$C$23=1,VLOOKUP('IRS Calculation'!A60,'G-Sec Yield Curve'!$A$4:$D$123,4,FALSE),IF(Range!$C$23=2,VLOOKUP(A60,'Overnight curve'!$H$3:$J$62,3,FALSE),IF(Range!$C$23=3, VLOOKUP(A60,'MIFOR curve'!$H$3:$J$62,3,FALSE),"")))) ->  | F60: =IF(ISERROR(((D59/D60)^(12/Range!$C$48)-1)),"",(D59/D60)^(12/Range!$C$48)-1) ->  | G60: =IF(A60<='Clients input'!$B$8,1,0) ->  | L60: =IF(K60=0,0,term-'IRS Calculation'!A60) ->  | M60: =IF(ISERROR((L60/Range!$C$48)*(F60-IRSFixed)),"",(L60/Range!$C$48)*(F60-IRSFixed)) ->  | N60: 0
A61: =A60+Range!$C$48 ->  | D61: =IF(ISERROR(IF(Range!$C$23=1,VLOOKUP('IRS Calculation'!A61,'G-Sec Yield Curve'!$A$4:$D$123,4,FALSE),IF(Range!$C$23=2,VLOOKUP(A61,'Overnight curve'!$H$3:$J$62,3,FALSE),IF(Range!$C$23=3, VLOOKUP(A61,'MIFOR curve'!$H$3:$J$62,3,FALSE),"")))),"",IF(Range!$C$23=1,VLOOKUP('IRS Calculation'!A61,'G-Sec Yield Curve'!$A$4:$D$123,4,FALSE),IF(Range!$C$23=2,VLOOKUP(A61,'Overnight curve'!$H$3:$J$62,3,FALSE),IF(Range!$C$23=3, VLOOKUP(A61,'MIFOR curve'!$H$3:$J$62,3,FALSE),"")))) ->  | F61: =IF(ISERROR(((D60/D61)^(12/Range!$C$48)-1)),"",(D60/D61)^(12/Range!$C$48)-1) ->  | G61: =IF(A61<='Clients input'!$B$8,1,0) ->  | L61: =IF(K61=0,0,term-'IRS Calculation'!A61) ->  | M61: =IF(ISERROR((L61/Range!$C$48)*(F61-IRSFixed)),"",(L61/Range!$C$48)*(F61-IRSFixed)) ->  | N61: 0
A62: =A61+Range!$C$48 ->  | D62: =IF(ISERROR(IF(Range!$C$23=1,VLOOKUP('IRS Calculation'!A62,'G-Sec Yield Curve'!$A$4:$D$123,4,FALSE),IF(Range!$C$23=2,VLOOKUP(A62,'Overnight curve'!$H$3:$J$62,3,FALSE),IF(Range!$C$23=3, VLOOKUP(A62,'MIFOR curve'!$H$3:$J$62,3,FALSE),"")))),"",IF(Range!$C$23=1,VLOOKUP('IRS Calculation'!A62,'G-Sec Yield Curve'!$A$4:$D$123,4,FALSE),IF(Range!$C$23=2,VLOOKUP(A62,'Overnight curve'!$H$3:$J$62,3,FALSE),IF(Range!$C$23=3, VLOOKUP(A62,'MIFOR curve'!$H$3:$J$62,3,FALSE),"")))) ->  | F62: =IF(ISERROR(((D61/D62)^(12/Range!$C$48)-1)),"",(D61/D62)^(12/Range!$C$48)-1) ->  | G62: =IF(A62<='Clients input'!$B$8,1,0) ->  | L62: =IF(K62=0,0,term-'IRS Calculation'!A62) ->  | M62: =IF(ISERROR((L62/Range!$C$48)*(F62-IRSFixed)),"",(L62/Range!$C$48)*(F62-IRSFixed)) ->  | N62: 0
A63: =A62+Range!$C$48 ->  | D63: =IF(ISERROR(IF(Range!$C$23=1,VLOOKUP('IRS Calculation'!A63,'G-Sec Yield Curve'!$A$4:$D$123,4,FALSE),IF(Range!$C$23=2,VLOOKUP(A63,'Overnight curve'!$H$3:$J$62,3,FALSE),IF(Range!$C$23=3, VLOOKUP(A63,'MIFOR curve'!$H$3:$J$62,3,FALSE),"")))),"",IF(Range!$C$23=1,VLOOKUP('IRS Calculation'!A63,'G-Sec Yield Curve'!$A$4:$D$123,4,FALSE),IF(Range!$C$23=2,VLOOKUP(A63,'Overnight curve'!$H$3:$J$62,3,FALSE),IF(Range!$C$23=3, VLOOKUP(A63,'MIFOR curve'!$H$3:$J$62,3,FALSE),"")))) ->  | F63: =IF(ISERROR(((D62/D63)^(12/Range!$C$48)-1)),"",(D62/D63)^(12/Range!$C$48)-1) ->  | G63: =IF(A63<='Clients input'!$B$8,1,0) ->  | L63: =IF(K63=0,0,term-'IRS Calculation'!A63) ->  | M63: =IF(ISERROR((L63/Range!$C$48)*(F63-IRSFixed)),"",(L63/Range!$C$48)*(F63-IRSFixed)) ->  | N63: 0
A64: =A63+Range!$C$48 ->  | D64: =IF(ISERROR(IF(Range!$C$23=1,VLOOKUP('IRS Calculation'!A64,'G-Sec Yield Curve'!$A$4:$D$123,4,FALSE),IF(Range!$C$23=2,VLOOKUP(A64,'Overnight curve'!$H$3:$J$62,3,FALSE),IF(Range!$C$23=3, VLOOKUP(A64,'MIFOR curve'!$H$3:$J$62,3,FALSE),"")))),"",IF(Range!$C$23=1,VLOOKUP('IRS Calculation'!A64,'G-Sec Yield Curve'!$A$4:$D$123,4,FALSE),IF(Range!$C$23=2,VLOOKUP(A64,'Overnight curve'!$H$3:$J$62,3,FALSE),IF(Range!$C$23=3, VLOOKUP(A64,'MIFOR curve'!$H$3:$J$62,3,FALSE),"")))) ->  | F64: =IF(ISERROR(((D63/D64)^(12/Range!$C$48)-1)),"",(D63/D64)^(12/Range!$C$48)-1) ->  | G64: =IF(A64<='Clients input'!$B$8,1,0) ->  | L64: =IF(K64=0,0,term-'IRS Calculation'!A64) ->  | M64: =IF(ISERROR((L64/Range!$C$48)*(F64-IRSFixed)),"",(L64/Range!$C$48)*(F64-IRSFixed)) ->  | N64: 0
A65: =A64+Range!$C$48 ->  | D65: =IF(ISERROR(IF(Range!$C$23=1,VLOOKUP('IRS Calculation'!A65,'G-Sec Yield Curve'!$A$4:$D$123,4,FALSE),IF(Range!$C$23=2,VLOOKUP(A65,'Overnight curve'!$H$3:$J$62,3,FALSE),IF(Range!$C$23=3, VLOOKUP(A65,'MIFOR curve'!$H$3:$J$62,3,FALSE),"")))),"",IF(Range!$C$23=1,VLOOKUP('IRS Calculation'!A65,'G-Sec Yield Curve'!$A$4:$D$123,4,FALSE),IF(Range!$C$23=2,VLOOKUP(A65,'Overnight curve'!$H$3:$J$62,3,FALSE),IF(Range!$C$23=3, VLOOKUP(A65,'MIFOR curve'!$H$3:$J$62,3,FALSE),"")))) ->  | F65: =IF(ISERROR(((D64/D65)^(12/Range!$C$48)-1)),"",(D64/D65)^(12/Range!$C$48)-1) ->  | G65: =IF(A65<='Clients input'!$B$8,1,0) ->  | L65: =IF(K65=0,0,term-'IRS Calculation'!A65) ->  | M65: =IF(ISERROR((L65/Range!$C$48)*(F65-IRSFixed)),"",(L65/Range!$C$48)*(F65-IRSFixed)) ->  | N65: 0
A66: =A65+Range!$C$48 ->  | D66: =IF(ISERROR(IF(Range!$C$23=1,VLOOKUP('IRS Calculation'!A66,'G-Sec Yield Curve'!$A$4:$D$123,4,FALSE),IF(Range!$C$23=2,VLOOKUP(A66,'Overnight curve'!$H$3:$J$62,3,FALSE),IF(Range!$C$23=3, VLOOKUP(A66,'MIFOR curve'!$H$3:$J$62,3,FALSE),"")))),"",IF(Range!$C$23=1,VLOOKUP('IRS Calculation'!A66,'G-Sec Yield Curve'!$A$4:$D$123,4,FALSE),IF(Range!$C$23=2,VLOOKUP(A66,'Overnight curve'!$H$3:$J$62,3,FALSE),IF(Range!$C$23=3, VLOOKUP(A66,'MIFOR curve'!$H$3:$J$62,3,FALSE),"")))) ->  | F66: =IF(ISERROR(((D65/D66)^(12/Range!$C$48)-1)),"",(D65/D66)^(12/Range!$C$48)-1) ->  | G66: =IF(A66<='Clients input'!$B$8,1,0) ->  | L66: =IF(K66=0,0,term-'IRS Calculation'!A66) ->  | M66: =IF(ISERROR((L66/Range!$C$48)*(F66-IRSFixed)),"",(L66/Range!$C$48)*(F66-IRSFixed)) ->  | N66: 0
A67: =A66+Range!$C$48 ->  | D67: =IF(ISERROR(IF(Range!$C$23=1,VLOOKUP('IRS Calculation'!A67,'G-Sec Yield Curve'!$A$4:$D$123,4,FALSE),IF(Range!$C$23=2,VLOOKUP(A67,'Overnight curve'!$H$3:$J$62,3,FALSE),IF(Range!$C$23=3, VLOOKUP(A67,'MIFOR curve'!$H$3:$J$62,3,FALSE),"")))),"",IF(Range!$C$23=1,VLOOKUP('IRS Calculation'!A67,'G-Sec Yield Curve'!$A$4:$D$123,4,FALSE),IF(Range!$C$23=2,VLOOKUP(A67,'Overnight curve'!$H$3:$J$62,3,FALSE),IF(Range!$C$23=3, VLOOKUP(A67,'MIFOR curve'!$H$3:$J$62,3,FALSE),"")))) ->  | F67: =IF(ISERROR(((D66/D67)^(12/Range!$C$48)-1)),"",(D66/D67)^(12/Range!$C$48)-1) ->  | G67: =IF(A67<='Clients input'!$B$8,1,0) ->  | L67: =IF(K67=0,0,term-'IRS Calculation'!A67) ->  | M67: =IF(ISERROR((L67/Range!$C$48)*(F67-IRSFixed)),"",(L67/Range!$C$48)*(F67-IRSFixed)) ->  | N67: 0
A68: =A67+Range!$C$48 ->  | B68: =IF(ISERROR(VLOOKUP(A68,$N$4:$P$21,2)),$O$4+$P$4*(A68-$N$4),VLOOKUP(A68,$N$4:$P$21,2)+VLOOKUP(A68,$N$4:$P$21,3)*(A68-VLOOKUP(A68,$N$4:$P$21,1))) ->  | D68: =IF(ISERROR(IF(Range!$C$23=1,VLOOKUP('IRS Calculation'!A68,'G-Sec Yield Curve'!$A$4:$D$123,4,FALSE),IF(Range!$C$23=2,VLOOKUP(A68,'Overnight curve'!$H$3:$J$62,3,FALSE),IF(Range!$C$23=3, VLOOKUP(A68,'MIFOR curve'!$H$3:$J$62,3,FALSE),"")))),"",IF(Range!$C$23=1,VLOOKUP('IRS Calculation'!A68,'G-Sec Yield Curve'!$A$4:$D$123,4,FALSE),IF(Range!$C$23=2,VLOOKUP(A68,'Overnight curve'!$H$3:$J$62,3,FALSE),IF(Range!$C$23=3, VLOOKUP(A68,'MIFOR curve'!$H$3:$J$62,3,FALSE),"")))) ->  | F68: =IF(ISERROR(((D67/D68)^(12/Range!$C$48)-1)),"",(D67/D68)^(12/Range!$C$48)-1) ->  | G68: =IF(A68<='Clients input'!$B$8,1,0) ->  | L68: =IF(K68=0,0,term-'IRS Calculation'!A68) ->  | M68: =IF(ISERROR((L68/Range!$C$48)*(F68-IRSFixed)),"",(L68/Range!$C$48)*(F68-IRSFixed)) ->  | N68: 0
A69: =A68+Range!$C$48 ->  | D69: =IF(ISERROR(IF(Range!$C$23=1,VLOOKUP('IRS Calculation'!A69,'G-Sec Yield Curve'!$A$4:$D$123,4,FALSE),IF(Range!$C$23=2,VLOOKUP(A69,'Overnight curve'!$H$3:$J$62,3,FALSE),IF(Range!$C$23=3, VLOOKUP(A69,'MIFOR curve'!$H$3:$J$62,3,FALSE),"")))),"",IF(Range!$C$23=1,VLOOKUP('IRS Calculation'!A69,'G-Sec Yield Curve'!$A$4:$D$123,4,FALSE),IF(Range!$C$23=2,VLOOKUP(A69,'Overnight curve'!$H$3:$J$62,3,FALSE),IF(Range!$C$23=3, VLOOKUP(A69,'MIFOR curve'!$H$3:$J$62,3,FALSE),"")))) ->  | E69: =IF(ISERROR((1/D69)^(12/A69)-1),"",(1/D69)^(12/A69)-1) ->  | F69: =IF(ISERROR(((D68/D69)^(12/Range!$C$48)-1)),"",(D68/D69)^(12/Range!$C$48)-1) ->  | G69: =IF(A69<='Clients input'!$B$8,1,0) ->  | H69: =IF(G69=0,0,((1+F69)^(1/freq)-1-IRSFixed/freq)) ->  | I69: =IF(ISERROR(H69*D69),"",H69*D69) ->  | K69: =IF(G69=G70,0,1) ->  | L69: =IF(K69=0,0,term-'IRS Calculation'!A69) ->  | M69: =IF(ISERROR((L69/Range!$C$48)*(F69-IRSFixed)),"",(L69/Range!$C$48)*(F69-IRSFixed)) ->  | N69: =IF(ISERROR(M69*D69),0,M69*D69) -> 0
A70: =A69+Range!$C$48 ->  | D70: =IF(ISERROR(IF(Range!$C$23=1,VLOOKUP('IRS Calculation'!A70,'G-Sec Yield Curve'!$A$4:$D$123,4,FALSE),IF(Range!$C$23=2,VLOOKUP(A70,'Overnight curve'!$H$3:$J$62,3,FALSE),IF(Range!$C$23=3, VLOOKUP(A70,'MIFOR curve'!$H$3:$J$62,3,FALSE),"")))),"",IF(Range!$C$23=1,VLOOKUP('IRS Calculation'!A70,'G-Sec Yield Curve'!$A$4:$D$123,4,FALSE),IF(Range!$C$23=2,VLOOKUP(A70,'Overnight curve'!$H$3:$J$62,3,FALSE),IF(Range!$C$23=3, VLOOKUP(A70,'MIFOR curve'!$H$3:$J$62,3,FALSE),"")))) ->  | F70: =IF(ISERROR(((D69/D70)^(12/Range!$C$48)-1)),"",(D69/D70)^(12/Range!$C$48)-1) ->  | G70: =IF(A70<='Clients input'!$B$8,1,0) ->  | L70: =IF(K70=0,0,term-'IRS Calculation'!A70) ->  | M70: =IF(ISERROR((L70/Range!$C$48)*(F70-IRSFixed)),"",(L70/Range!$C$48)*(F70-IRSFixed)) ->  | N70: 0
A71: =A70+Range!$C$48 ->  | D71: =IF(ISERROR(IF(Range!$C$23=1,VLOOKUP('IRS Calculation'!A71,'G-Sec Yield Curve'!$A$4:$D$123,4,FALSE),IF(Range!$C$23=2,VLOOKUP(A71,'Overnight curve'!$H$3:$J$62,3,FALSE),IF(Range!$C$23=3, VLOOKUP(A71,'MIFOR curve'!$H$3:$J$62,3,FALSE),"")))),"",IF(Range!$C$23=1,VLOOKUP('IRS Calculation'!A71,'G-Sec Yield Curve'!$A$4:$D$123,4,FALSE),IF(Range!$C$23=2,VLOOKUP(A71,'Overnight curve'!$H$3:$J$62,3,FALSE),IF(Range!$C$23=3, VLOOKUP(A71,'MIFOR curve'!$H$3:$J$62,3,FALSE),"")))) ->  | F71: =IF(ISERROR(((D70/D71)^(12/Range!$C$48)-1)),"",(D70/D71)^(12/Range!$C$48)-1) ->  | G71: =IF(A71<='Clients input'!$B$8,1,0) ->  | L71: =IF(K71=0,0,term-'IRS Calculation'!A71) ->  | M71: =IF(ISERROR((L71/Range!$C$48)*(F71-IRSFixed)),"",(L71/Range!$C$48)*(F71-IRSFixed)) ->  | N71: 0
A72: =A71+Range!$C$48 ->  | D72: =IF(ISERROR(IF(Range!$C$23=1,VLOOKUP('IRS Calculation'!A72,'G-Sec Yield Curve'!$A$4:$D$123,4,FALSE),IF(Range!$C$23=2,VLOOKUP(A72,'Overnight curve'!$H$3:$J$62,3,FALSE),IF(Range!$C$23=3, VLOOKUP(A72,'MIFOR curve'!$H$3:$J$62,3,FALSE),"")))),"",IF(Range!$C$23=1,VLOOKUP('IRS Calculation'!A72,'G-Sec Yield Curve'!$A$4:$D$123,4,FALSE),IF(Range!$C$23=2,VLOOKUP(A72,'Overnight curve'!$H$3:$J$62,3,FALSE),IF(Range!$C$23=3, VLOOKUP(A72,'MIFOR curve'!$H$3:$J$62,3,FALSE),"")))) ->  | F72: =IF(ISERROR(((D71/D72)^(12/Range!$C$48)-1)),"",(D71/D72)^(12/Range!$C$48)-1) ->  | G72: =IF(A72<='Clients input'!$B$8,1,0) ->  | L72: =IF(K72=0,0,term-'IRS Calculation'!A72) ->  | M72: =IF(ISERROR((L72/Range!$C$48)*(F72-IRSFixed)),"",(L72/Range!$C$48)*(F72-IRSFixed)) ->  | N72: 0
A73: =A72+Range!$C$48 ->  | D73: =IF(ISERROR(IF(Range!$C$23=1,VLOOKUP('IRS Calculation'!A73,'G-Sec Yield Curve'!$A$4:$D$123,4,FALSE),IF(Range!$C$23=2,VLOOKUP(A73,'Overnight curve'!$H$3:$J$62,3,FALSE),IF(Range!$C$23=3, VLOOKUP(A73,'MIFOR curve'!$H$3:$J$62,3,FALSE),"")))),"",IF(Range!$C$23=1,VLOOKUP('IRS Calculation'!A73,'G-Sec Yield Curve'!$A$4:$D$123,4,FALSE),IF(Range!$C$23=2,VLOOKUP(A73,'Overnight curve'!$H$3:$J$62,3,FALSE),IF(Range!$C$23=3, VLOOKUP(A73,'MIFOR curve'!$H$3:$J$62,3,FALSE),"")))) ->  | F73: =IF(ISERROR(((D72/D73)^(12/Range!$C$48)-1)),"",(D72/D73)^(12/Range!$C$48)-1) ->  | G73: =IF(A73<='Clients input'!$B$8,1,0) ->  | L73: =IF(K73=0,0,term-'IRS Calculation'!A73) ->  | M73: =IF(ISERROR((L73/Range!$C$48)*(F73-IRSFixed)),"",(L73/Range!$C$48)*(F73-IRSFixed)) ->  | N73: 0
A74: =A73+Range!$C$48 ->  | D74: =IF(ISERROR(IF(Range!$C$23=1,VLOOKUP('IRS Calculation'!A74,'G-Sec Yield Curve'!$A$4:$D$123,4,FALSE),IF(Range!$C$23=2,VLOOKUP(A74,'Overnight curve'!$H$3:$J$62,3,FALSE),IF(Range!$C$23=3, VLOOKUP(A74,'MIFOR curve'!$H$3:$J$62,3,FALSE),"")))),"",IF(Range!$C$23=1,VLOOKUP('IRS Calculation'!A74,'G-Sec Yield Curve'!$A$4:$D$123,4,FALSE),IF(Range!$C$23=2,VLOOKUP(A74,'Overnight curve'!$H$3:$J$62,3,FALSE),IF(Range!$C$23=3, VLOOKUP(A74,'MIFOR curve'!$H$3:$J$62,3,FALSE),"")))) ->  | F74: =IF(ISERROR(((D73/D74)^(12/Range!$C$48)-1)),"",(D73/D74)^(12/Range!$C$48)-1) ->  | G74: =IF(A74<='Clients input'!$B$8,1,0) ->  | L74: =IF(K74=0,0,term-'IRS Calculation'!A74) ->  | M74: =IF(ISERROR((L74/Range!$C$48)*(F74-IRSFixed)),"",(L74/Range!$C$48)*(F74-IRSFixed)) ->  | N74: 0
A75: =A74+Range!$C$48 ->  | D75: =IF(ISERROR(IF(Range!$C$23=1,VLOOKUP('IRS Calculation'!A75,'G-Sec Yield Curve'!$A$4:$D$123,4,FALSE),IF(Range!$C$23=2,VLOOKUP(A75,'Overnight curve'!$H$3:$J$62,3,FALSE),IF(Range!$C$23=3, VLOOKUP(A75,'MIFOR curve'!$H$3:$J$62,3,FALSE),"")))),"",IF(Range!$C$23=1,VLOOKUP('IRS Calculation'!A75,'G-Sec Yield Curve'!$A$4:$D$123,4,FALSE),IF(Range!$C$23=2,VLOOKUP(A75,'Overnight curve'!$H$3:$J$62,3,FALSE),IF(Range!$C$23=3, VLOOKUP(A75,'MIFOR curve'!$H$3:$J$62,3,FALSE),"")))) ->  | F75: =IF(ISERROR(((D74/D75)^(12/Range!$C$48)-1)),"",(D74/D75)^(12/Range!$C$48)-1) ->  | G75: =IF(A75<='Clients input'!$B$8,1,0) ->  | L75: =IF(K75=0,0,term-'IRS Calculation'!A75) ->  | M75: =IF(ISERROR((L75/Range!$C$48)*(F75-IRSFixed)),"",(L75/Range!$C$48)*(F75-IRSFixed)) ->  | N75: 0
A76: =A75+Range!$C$48 ->  | D76: =IF(ISERROR(IF(Range!$C$23=1,VLOOKUP('IRS Calculation'!A76,'G-Sec Yield Curve'!$A$4:$D$123,4,FALSE),IF(Range!$C$23=2,VLOOKUP(A76,'Overnight curve'!$H$3:$J$62,3,FALSE),IF(Range!$C$23=3, VLOOKUP(A76,'MIFOR curve'!$H$3:$J$62,3,FALSE),"")))),"",IF(Range!$C$23=1,VLOOKUP('IRS Calculation'!A76,'G-Sec Yield Curve'!$A$4:$D$123,4,FALSE),IF(Range!$C$23=2,VLOOKUP(A76,'Overnight curve'!$H$3:$J$62,3,FALSE),IF(Range!$C$23=3, VLOOKUP(A76,'MIFOR curve'!$H$3:$J$62,3,FALSE),"")))) ->  | F76: =IF(ISERROR(((D75/D76)^(12/Range!$C$48)-1)),"",(D75/D76)^(12/Range!$C$48)-1) ->  | G76: =IF(A76<='Clients input'!$B$8,1,0) ->  | L76: =IF(K76=0,0,term-'IRS Calculation'!A76) ->  | M76: =IF(ISERROR((L76/Range!$C$48)*(F76-IRSFixed)),"",(L76/Range!$C$48)*(F76-IRSFixed)) ->  | N76: 0
A77: =A76+Range!$C$48 ->  | D77: =IF(ISERROR(IF(Range!$C$23=1,VLOOKUP('IRS Calculation'!A77,'G-Sec Yield Curve'!$A$4:$D$123,4,FALSE),IF(Range!$C$23=2,VLOOKUP(A77,'Overnight curve'!$H$3:$J$62,3,FALSE),IF(Range!$C$23=3, VLOOKUP(A77,'MIFOR curve'!$H$3:$J$62,3,FALSE),"")))),"",IF(Range!$C$23=1,VLOOKUP('IRS Calculation'!A77,'G-Sec Yield Curve'!$A$4:$D$123,4,FALSE),IF(Range!$C$23=2,VLOOKUP(A77,'Overnight curve'!$H$3:$J$62,3,FALSE),IF(Range!$C$23=3, VLOOKUP(A77,'MIFOR curve'!$H$3:$J$62,3,FALSE),"")))) ->  | F77: =IF(ISERROR(((D76/D77)^(12/Range!$C$48)-1)),"",(D76/D77)^(12/Range!$C$48)-1) ->  | G77: =IF(A77<='Clients input'!$B$8,1,0) ->  | L77: =IF(K77=0,0,term-'IRS Calculation'!A77) ->  | M77: =IF(ISERROR((L77/Range!$C$48)*(F77-IRSFixed)),"",(L77/Range!$C$48)*(F77-IRSFixed)) ->  | N77: 0
A78: =A77+Range!$C$48 ->  | D78: =IF(ISERROR(IF(Range!$C$23=1,VLOOKUP('IRS Calculation'!A78,'G-Sec Yield Curve'!$A$4:$D$123,4,FALSE),IF(Range!$C$23=2,VLOOKUP(A78,'Overnight curve'!$H$3:$J$62,3,FALSE),IF(Range!$C$23=3, VLOOKUP(A78,'MIFOR curve'!$H$3:$J$62,3,FALSE),"")))),"",IF(Range!$C$23=1,VLOOKUP('IRS Calculation'!A78,'G-Sec Yield Curve'!$A$4:$D$123,4,FALSE),IF(Range!$C$23=2,VLOOKUP(A78,'Overnight curve'!$H$3:$J$62,3,FALSE),IF(Range!$C$23=3, VLOOKUP(A78,'MIFOR curve'!$H$3:$J$62,3,FALSE),"")))) ->  | F78: =IF(ISERROR(((D77/D78)^(12/Range!$C$48)-1)),"",(D77/D78)^(12/Range!$C$48)-1) ->  | G78: =IF(A78<='Clients input'!$B$8,1,0) ->  | L78: =IF(K78=0,0,term-'IRS Calculation'!A78) ->  | M78: =IF(ISERROR((L78/Range!$C$48)*(F78-IRSFixed)),"",(L78/Range!$C$48)*(F78-IRSFixed)) ->  | N78: 0
A79: =A78+Range!$C$48 ->  | D79: =IF(ISERROR(IF(Range!$C$23=1,VLOOKUP('IRS Calculation'!A79,'G-Sec Yield Curve'!$A$4:$D$123,4,FALSE),IF(Range!$C$23=2,VLOOKUP(A79,'Overnight curve'!$H$3:$J$62,3,FALSE),IF(Range!$C$23=3, VLOOKUP(A79,'MIFOR curve'!$H$3:$J$62,3,FALSE),"")))),"",IF(Range!$C$23=1,VLOOKUP('IRS Calculation'!A79,'G-Sec Yield Curve'!$A$4:$D$123,4,FALSE),IF(Range!$C$23=2,VLOOKUP(A79,'Overnight curve'!$H$3:$J$62,3,FALSE),IF(Range!$C$23=3, VLOOKUP(A79,'MIFOR curve'!$H$3:$J$62,3,FALSE),"")))) ->  | F79: =IF(ISERROR(((D78/D79)^(12/Range!$C$48)-1)),"",(D78/D79)^(12/Range!$C$48)-1) ->  | G79: =IF(A79<='Clients input'!$B$8,1,0) ->  | L79: =IF(K79=0,0,term-'IRS Calculation'!A79) ->  | M79: =IF(ISERROR((L79/Range!$C$48)*(F79-IRSFixed)),"",(L79/Range!$C$48)*(F79-IRSFixed)) ->  | N79: 0
A80: =A79+Range!$C$48 ->  | D80: =IF(ISERROR(IF(Range!$C$23=1,VLOOKUP('IRS Calculation'!A80,'G-Sec Yield Curve'!$A$4:$D$123,4,FALSE),IF(Range!$C$23=2,VLOOKUP(A80,'Overnight curve'!$H$3:$J$62,3,FALSE),IF(Range!$C$23=3, VLOOKUP(A80,'MIFOR curve'!$H$3:$J$62,3,FALSE),"")))),"",IF(Range!$C$23=1,VLOOKUP('IRS Calculation'!A80,'G-Sec Yield Curve'!$A$4:$D$123,4,FALSE),IF(Range!$C$23=2,VLOOKUP(A80,'Overnight curve'!$H$3:$J$62,3,FALSE),IF(Range!$C$23=3, VLOOKUP(A80,'MIFOR curve'!$H$3:$J$62,3,FALSE),"")))) ->  | F80: =IF(ISERROR(((D79/D80)^(12/Range!$C$48)-1)),"",(D79/D80)^(12/Range!$C$48)-1) ->  | G80: =IF(A80<='Clients input'!$B$8,1,0) ->  | L80: =IF(K80=0,0,term-'IRS Calculation'!A80) ->  | M80: =IF(ISERROR((L80/Range!$C$48)*(F80-IRSFixed)),"",(L80/Range!$C$48)*(F80-IRSFixed)) ->  | N80: 0
A81: =A80+Range!$C$48 ->  | D81: =IF(ISERROR(IF(Range!$C$23=1,VLOOKUP('IRS Calculation'!A81,'G-Sec Yield Curve'!$A$4:$D$123,4,FALSE),IF(Range!$C$23=2,VLOOKUP(A81,'Overnight curve'!$H$3:$J$62,3,FALSE),IF(Range!$C$23=3, VLOOKUP(A81,'MIFOR curve'!$H$3:$J$62,3,FALSE),"")))),"",IF(Range!$C$23=1,VLOOKUP('IRS Calculation'!A81,'G-Sec Yield Curve'!$A$4:$D$123,4,FALSE),IF(Range!$C$23=2,VLOOKUP(A81,'Overnight curve'!$H$3:$J$62,3,FALSE),IF(Range!$C$23=3, VLOOKUP(A81,'MIFOR curve'!$H$3:$J$62,3,FALSE),"")))) ->  | F81: =IF(ISERROR(((D80/D81)^(12/Range!$C$48)-1)),"",(D80/D81)^(12/Range!$C$48)-1) ->  | G81: =IF(A81<='Clients input'!$B$8,1,0) ->  | L81: =IF(K81=0,0,term-'IRS Calculation'!A81) ->  | M81: =IF(ISERROR((L81/Range!$C$48)*(F81-IRSFixed)),"",(L81/Range!$C$48)*(F81-IRSFixed)) ->  | N81: 0
A82: =A81+Range!$C$48 ->  | D82: =IF(ISERROR(IF(Range!$C$23=1,VLOOKUP('IRS Calculation'!A82,'G-Sec Yield Curve'!$A$4:$D$123,4,FALSE),IF(Range!$C$23=2,VLOOKUP(A82,'Overnight curve'!$H$3:$J$62,3,FALSE),IF(Range!$C$23=3, VLOOKUP(A82,'MIFOR curve'!$H$3:$J$62,3,FALSE),"")))),"",IF(Range!$C$23=1,VLOOKUP('IRS Calculation'!A82,'G-Sec Yield Curve'!$A$4:$D$123,4,FALSE),IF(Range!$C$23=2,VLOOKUP(A82,'Overnight curve'!$H$3:$J$62,3,FALSE),IF(Range!$C$23=3, VLOOKUP(A82,'MIFOR curve'!$H$3:$J$62,3,FALSE),"")))) ->  | F82: =IF(ISERROR(((D81/D82)^(12/Range!$C$48)-1)),"",(D81/D82)^(12/Range!$C$48)-1) ->  | G82: =IF(A82<='Clients input'!$B$8,1,0) ->  | L82: =IF(K82=0,0,term-'IRS Calculation'!A82) ->  | M82: =IF(ISERROR((L82/Range!$C$48)*(F82-IRSFixed)),"",(L82/Range!$C$48)*(F82-IRSFixed)) ->  | N82: 0
A83: =A82+Range!$C$48 ->  | D83: =IF(ISERROR(IF(Range!$C$23=1,VLOOKUP('IRS Calculation'!A83,'G-Sec Yield Curve'!$A$4:$D$123,4,FALSE),IF(Range!$C$23=2,VLOOKUP(A83,'Overnight curve'!$H$3:$J$62,3,FALSE),IF(Range!$C$23=3, VLOOKUP(A83,'MIFOR curve'!$H$3:$J$62,3,FALSE),"")))),"",IF(Range!$C$23=1,VLOOKUP('IRS Calculation'!A83,'G-Sec Yield Curve'!$A$4:$D$123,4,FALSE),IF(Range!$C$23=2,VLOOKUP(A83,'Overnight curve'!$H$3:$J$62,3,FALSE),IF(Range!$C$23=3, VLOOKUP(A83,'MIFOR curve'!$H$3:$J$62,3,FALSE),"")))) ->  | F83: =IF(ISERROR(((D82/D83)^(12/Range!$C$48)-1)),"",(D82/D83)^(12/Range!$C$48)-1) ->  | G83: =IF(A83<='Clients input'!$B$8,1,0) ->  | L83: =IF(K83=0,0,term-'IRS Calculation'!A83) ->  | M83: =IF(ISERROR((L83/Range!$C$48)*(F83-IRSFixed)),"",(L83/Range!$C$48)*(F83-IRSFixed)) ->  | N83: 0
A84: =A83+Range!$C$48 ->  | D84: =IF(ISERROR(IF(Range!$C$23=1,VLOOKUP('IRS Calculation'!A84,'G-Sec Yield Curve'!$A$4:$D$123,4,FALSE),IF(Range!$C$23=2,VLOOKUP(A84,'Overnight curve'!$H$3:$J$62,3,FALSE),IF(Range!$C$23=3, VLOOKUP(A84,'MIFOR curve'!$H$3:$J$62,3,FALSE),"")))),"",IF(Range!$C$23=1,VLOOKUP('IRS Calculation'!A84,'G-Sec Yield Curve'!$A$4:$D$123,4,FALSE),IF(Range!$C$23=2,VLOOKUP(A84,'Overnight curve'!$H$3:$J$62,3,FALSE),IF(Range!$C$23=3, VLOOKUP(A84,'MIFOR curve'!$H$3:$J$62,3,FALSE),"")))) ->  | F84: =IF(ISERROR(((D83/D84)^(12/Range!$C$48)-1)),"",(D83/D84)^(12/Range!$C$48)-1) ->  | G84: =IF(A84<='Clients input'!$B$8,1,0) ->  | L84: =IF(K84=0,0,term-'IRS Calculation'!A84) ->  | M84: =IF(ISERROR((L84/Range!$C$48)*(F84-IRSFixed)),"",(L84/Range!$C$48)*(F84-IRSFixed)) ->  | N84: 0
A85: =A84+Range!$C$48 ->  | D85: =IF(ISERROR(IF(Range!$C$23=1,VLOOKUP('IRS Calculation'!A85,'G-Sec Yield Curve'!$A$4:$D$123,4,FALSE),IF(Range!$C$23=2,VLOOKUP(A85,'Overnight curve'!$H$3:$J$62,3,FALSE),IF(Range!$C$23=3, VLOOKUP(A85,'MIFOR curve'!$H$3:$J$62,3,FALSE),"")))),"",IF(Range!$C$23=1,VLOOKUP('IRS Calculation'!A85,'G-Sec Yield Curve'!$A$4:$D$123,4,FALSE),IF(Range!$C$23=2,VLOOKUP(A85,'Overnight curve'!$H$3:$J$62,3,FALSE),IF(Range!$C$23=3, VLOOKUP(A85,'MIFOR curve'!$H$3:$J$62,3,FALSE),"")))) ->  | F85: =IF(ISERROR(((D84/D85)^(12/Range!$C$48)-1)),"",(D84/D85)^(12/Range!$C$48)-1) ->  | G85: =IF(A85<='Clients input'!$B$8,1,0) ->  | L85: =IF(K85=0,0,term-'IRS Calculation'!A85) ->  | M85: =IF(ISERROR((L85/Range!$C$48)*(F85-IRSFixed)),"",(L85/Range!$C$48)*(F85-IRSFixed)) ->  | N85: 0
A86: =A85+Range!$C$48 ->  | D86: =IF(ISERROR(IF(Range!$C$23=1,VLOOKUP('IRS Calculation'!A86,'G-Sec Yield Curve'!$A$4:$D$123,4,FALSE),IF(Range!$C$23=2,VLOOKUP(A86,'Overnight curve'!$H$3:$J$62,3,FALSE),IF(Range!$C$23=3, VLOOKUP(A86,'MIFOR curve'!$H$3:$J$62,3,FALSE),"")))),"",IF(Range!$C$23=1,VLOOKUP('IRS Calculation'!A86,'G-Sec Yield Curve'!$A$4:$D$123,4,FALSE),IF(Range!$C$23=2,VLOOKUP(A86,'Overnight curve'!$H$3:$J$62,3,FALSE),IF(Range!$C$23=3, VLOOKUP(A86,'MIFOR curve'!$H$3:$J$62,3,FALSE),"")))) ->  | F86: =IF(ISERROR(((D85/D86)^(12/Range!$C$48)-1)),"",(D85/D86)^(12/Range!$C$48)-1) ->  | G86: =IF(A86<='Clients input'!$B$8,1,0) ->  | L86: =IF(K86=0,0,term-'IRS Calculation'!A86) ->  | M86: =IF(ISERROR((L86/Range!$C$48)*(F86-IRSFixed)),"",(L86/Range!$C$48)*(F86-IRSFixed)) ->  | N86: 0
A87: =A86+Range!$C$48 ->  | D87: =IF(ISERROR(IF(Range!$C$23=1,VLOOKUP('IRS Calculation'!A87,'G-Sec Yield Curve'!$A$4:$D$123,4,FALSE),IF(Range!$C$23=2,VLOOKUP(A87,'Overnight curve'!$H$3:$J$62,3,FALSE),IF(Range!$C$23=3, VLOOKUP(A87,'MIFOR curve'!$H$3:$J$62,3,FALSE),"")))),"",IF(Range!$C$23=1,VLOOKUP('IRS Calculation'!A87,'G-Sec Yield Curve'!$A$4:$D$123,4,FALSE),IF(Range!$C$23=2,VLOOKUP(A87,'Overnight curve'!$H$3:$J$62,3,FALSE),IF(Range!$C$23=3, VLOOKUP(A87,'MIFOR curve'!$H$3:$J$62,3,FALSE),"")))) ->  | F87: =IF(ISERROR(((D86/D87)^(12/Range!$C$48)-1)),"",(D86/D87)^(12/Range!$C$48)-1) ->  | G87: =IF(A87<='Clients input'!$B$8,1,0) ->  | L87: =IF(K87=0,0,term-'IRS Calculation'!A87) ->  | M87: =IF(ISERROR((L87/Range!$C$48)*(F87-IRSFixed)),"",(L87/Range!$C$48)*(F87-IRSFixed)) ->  | N87: 0
A88: =A87+Range!$C$48 ->  | D88: =IF(ISERROR(IF(Range!$C$23=1,VLOOKUP('IRS Calculation'!A88,'G-Sec Yield Curve'!$A$4:$D$123,4,FALSE),IF(Range!$C$23=2,VLOOKUP(A88,'Overnight curve'!$H$3:$J$62,3,FALSE),IF(Range!$C$23=3, VLOOKUP(A88,'MIFOR curve'!$H$3:$J$62,3,FALSE),"")))),"",IF(Range!$C$23=1,VLOOKUP('IRS Calculation'!A88,'G-Sec Yield Curve'!$A$4:$D$123,4,FALSE),IF(Range!$C$23=2,VLOOKUP(A88,'Overnight curve'!$H$3:$J$62,3,FALSE),IF(Range!$C$23=3, VLOOKUP(A88,'MIFOR curve'!$H$3:$J$62,3,FALSE),"")))) ->  | F88: =IF(ISERROR(((D87/D88)^(12/Range!$C$48)-1)),"",(D87/D88)^(12/Range!$C$48)-1) ->  | G88: =IF(A88<='Clients input'!$B$8,1,0) ->  | L88: =IF(K88=0,0,term-'IRS Calculation'!A88) ->  | M88: =IF(ISERROR((L88/Range!$C$48)*(F88-IRSFixed)),"",(L88/Range!$C$48)*(F88-IRSFixed)) ->  | N88: 0
A89: =A88+Range!$C$48 ->  | D89: =IF(ISERROR(IF(Range!$C$23=1,VLOOKUP('IRS Calculation'!A89,'G-Sec Yield Curve'!$A$4:$D$123,4,FALSE),IF(Range!$C$23=2,VLOOKUP(A89,'Overnight curve'!$H$3:$J$62,3,FALSE),IF(Range!$C$23=3, VLOOKUP(A89,'MIFOR curve'!$H$3:$J$62,3,FALSE),"")))),"",IF(Range!$C$23=1,VLOOKUP('IRS Calculation'!A89,'G-Sec Yield Curve'!$A$4:$D$123,4,FALSE),IF(Range!$C$23=2,VLOOKUP(A89,'Overnight curve'!$H$3:$J$62,3,FALSE),IF(Range!$C$23=3, VLOOKUP(A89,'MIFOR curve'!$H$3:$J$62,3,FALSE),"")))) ->  | F89: =IF(ISERROR(((D88/D89)^(12/Range!$C$48)-1)),"",(D88/D89)^(12/Range!$C$48)-1) ->  | G89: =IF(A89<='Clients input'!$B$8,1,0) ->  | L89: =IF(K89=0,0,term-'IRS Calculation'!A89) ->  | M89: =IF(ISERROR((L89/Range!$C$48)*(F89-IRSFixed)),"",(L89/Range!$C$48)*(F89-IRSFixed)) ->  | N89: 0
A90: =A89+Range!$C$48 ->  | D90: =IF(ISERROR(IF(Range!$C$23=1,VLOOKUP('IRS Calculation'!A90,'G-Sec Yield Curve'!$A$4:$D$123,4,FALSE),IF(Range!$C$23=2,VLOOKUP(A90,'Overnight curve'!$H$3:$J$62,3,FALSE),IF(Range!$C$23=3, VLOOKUP(A90,'MIFOR curve'!$H$3:$J$62,3,FALSE),"")))),"",IF(Range!$C$23=1,VLOOKUP('IRS Calculation'!A90,'G-Sec Yield Curve'!$A$4:$D$123,4,FALSE),IF(Range!$C$23=2,VLOOKUP(A90,'Overnight curve'!$H$3:$J$62,3,FALSE),IF(Range!$C$23=3, VLOOKUP(A90,'MIFOR curve'!$H$3:$J$62,3,FALSE),"")))) ->  | F90: =IF(ISERROR(((D89/D90)^(12/Range!$C$48)-1)),"",(D89/D90)^(12/Range!$C$48)-1) ->  | G90: =IF(A90<='Clients input'!$B$8,1,0) ->  | L90: =IF(K90=0,0,term-'IRS Calculation'!A90) ->  | M90: =IF(ISERROR((L90/Range!$C$48)*(F90-IRSFixed)),"",(L90/Range!$C$48)*(F90-IRSFixed)) ->  | N90: 0
A91: =A90+Range!$C$48 ->  | D91: =IF(ISERROR(IF(Range!$C$23=1,VLOOKUP('IRS Calculation'!A91,'G-Sec Yield Curve'!$A$4:$D$123,4,FALSE),IF(Range!$C$23=2,VLOOKUP(A91,'Overnight curve'!$H$3:$J$62,3,FALSE),IF(Range!$C$23=3, VLOOKUP(A91,'MIFOR curve'!$H$3:$J$62,3,FALSE),"")))),"",IF(Range!$C$23=1,VLOOKUP('IRS Calculation'!A91,'G-Sec Yield Curve'!$A$4:$D$123,4,FALSE),IF(Range!$C$23=2,VLOOKUP(A91,'Overnight curve'!$H$3:$J$62,3,FALSE),IF(Range!$C$23=3, VLOOKUP(A91,'MIFOR curve'!$H$3:$J$62,3,FALSE),"")))) ->  | F91: =IF(ISERROR(((D90/D91)^(12/Range!$C$48)-1)),"",(D90/D91)^(12/Range!$C$48)-1) ->  | G91: =IF(A91<='Clients input'!$B$8,1,0) ->  | L91: =IF(K91=0,0,term-'IRS Calculation'!A91) ->  | M91: =IF(ISERROR((L91/Range!$C$48)*(F91-IRSFixed)),"",(L91/Range!$C$48)*(F91-IRSFixed)) ->  | N91: 0
A92: =A91+Range!$C$48 ->  | D92: =IF(ISERROR(IF(Range!$C$23=1,VLOOKUP('IRS Calculation'!A92,'G-Sec Yield Curve'!$A$4:$D$123,4,FALSE),IF(Range!$C$23=2,VLOOKUP(A92,'Overnight curve'!$H$3:$J$62,3,FALSE),IF(Range!$C$23=3, VLOOKUP(A92,'MIFOR curve'!$H$3:$J$62,3,FALSE),"")))),"",IF(Range!$C$23=1,VLOOKUP('IRS Calculation'!A92,'G-Sec Yield Curve'!$A$4:$D$123,4,FALSE),IF(Range!$C$23=2,VLOOKUP(A92,'Overnight curve'!$H$3:$J$62,3,FALSE),IF(Range!$C$23=3, VLOOKUP(A92,'MIFOR curve'!$H$3:$J$62,3,FALSE),"")))) ->  | F92: =IF(ISERROR(((D91/D92)^(12/Range!$C$48)-1)),"",(D91/D92)^(12/Range!$C$48)-1) ->  | G92: =IF(A92<='Clients input'!$B$8,1,0) ->  | L92: =IF(K92=0,0,term-'IRS Calculation'!A92) ->  | M92: =IF(ISERROR((L92/Range!$C$48)*(F92-IRSFixed)),"",(L92/Range!$C$48)*(F92-IRSFixed)) ->  | N92: 0
A93: =A92+Range!$C$48 ->  | D93: =IF(ISERROR(IF(Range!$C$23=1,VLOOKUP('IRS Calculation'!A93,'G-Sec Yield Curve'!$A$4:$D$123,4,FALSE),IF(Range!$C$23=2,VLOOKUP(A93,'Overnight curve'!$H$3:$J$62,3,FALSE),IF(Range!$C$23=3, VLOOKUP(A93,'MIFOR curve'!$H$3:$J$62,3,FALSE),"")))),"",IF(Range!$C$23=1,VLOOKUP('IRS Calculation'!A93,'G-Sec Yield Curve'!$A$4:$D$123,4,FALSE),IF(Range!$C$23=2,VLOOKUP(A93,'Overnight curve'!$H$3:$J$62,3,FALSE),IF(Range!$C$23=3, VLOOKUP(A93,'MIFOR curve'!$H$3:$J$62,3,FALSE),"")))) ->  | F93: =IF(ISERROR(((D92/D93)^(12/Range!$C$48)-1)),"",(D92/D93)^(12/Range!$C$48)-1) ->  | G93: =IF(A93<='Clients input'!$B$8,1,0) ->  | L93: =IF(K93=0,0,term-'IRS Calculation'!A93) ->  | M93: =IF(ISERROR((L93/Range!$C$48)*(F93-IRSFixed)),"",(L93/Range!$C$48)*(F93-IRSFixed)) ->  | N93: 0
A94: =A93+Range!$C$48 ->  | D94: =IF(ISERROR(IF(Range!$C$23=1,VLOOKUP('IRS Calculation'!A94,'G-Sec Yield Curve'!$A$4:$D$123,4,FALSE),IF(Range!$C$23=2,VLOOKUP(A94,'Overnight curve'!$H$3:$J$62,3,FALSE),IF(Range!$C$23=3, VLOOKUP(A94,'MIFOR curve'!$H$3:$J$62,3,FALSE),"")))),"",IF(Range!$C$23=1,VLOOKUP('IRS Calculation'!A94,'G-Sec Yield Curve'!$A$4:$D$123,4,FALSE),IF(Range!$C$23=2,VLOOKUP(A94,'Overnight curve'!$H$3:$J$62,3,FALSE),IF(Range!$C$23=3, VLOOKUP(A94,'MIFOR curve'!$H$3:$J$62,3,FALSE),"")))) ->  | F94: =IF(ISERROR(((D93/D94)^(12/Range!$C$48)-1)),"",(D93/D94)^(12/Range!$C$48)-1) ->  | G94: =IF(A94<='Clients input'!$B$8,1,0) ->  | L94: =IF(K94=0,0,term-'IRS Calculation'!A94) ->  | M94: =IF(ISERROR((L94/Range!$C$48)*(F94-IRSFixed)),"",(L94/Range!$C$48)*(F94-IRSFixed)) ->  | N94: 0
A95: =A94+Range!$C$48 ->  | D95: =IF(ISERROR(IF(Range!$C$23=1,VLOOKUP('IRS Calculation'!A95,'G-Sec Yield Curve'!$A$4:$D$123,4,FALSE),IF(Range!$C$23=2,VLOOKUP(A95,'Overnight curve'!$H$3:$J$62,3,FALSE),IF(Range!$C$23=3, VLOOKUP(A95,'MIFOR curve'!$H$3:$J$62,3,FALSE),"")))),"",IF(Range!$C$23=1,VLOOKUP('IRS Calculation'!A95,'G-Sec Yield Curve'!$A$4:$D$123,4,FALSE),IF(Range!$C$23=2,VLOOKUP(A95,'Overnight curve'!$H$3:$J$62,3,FALSE),IF(Range!$C$23=3, VLOOKUP(A95,'MIFOR curve'!$H$3:$J$62,3,FALSE),"")))) ->  | F95: =IF(ISERROR(((D94/D95)^(12/Range!$C$48)-1)),"",(D94/D95)^(12/Range!$C$48)-1) ->  | G95: =IF(A95<='Clients input'!$B$8,1,0) ->  | L95: =IF(K95=0,0,term-'IRS Calculation'!A95) ->  | M95: =IF(ISERROR((L95/Range!$C$48)*(F95-IRSFixed)),"",(L95/Range!$C$48)*(F95-IRSFixed)) ->  | N95: 0
A96: =A95+Range!$C$48 ->  | D96: =IF(ISERROR(IF(Range!$C$23=1,VLOOKUP('IRS Calculation'!A96,'G-Sec Yield Curve'!$A$4:$D$123,4,FALSE),IF(Range!$C$23=2,VLOOKUP(A96,'Overnight curve'!$H$3:$J$62,3,FALSE),IF(Range!$C$23=3, VLOOKUP(A96,'MIFOR curve'!$H$3:$J$62,3,FALSE),"")))),"",IF(Range!$C$23=1,VLOOKUP('IRS Calculation'!A96,'G-Sec Yield Curve'!$A$4:$D$123,4,FALSE),IF(Range!$C$23=2,VLOOKUP(A96,'Overnight curve'!$H$3:$J$62,3,FALSE),IF(Range!$C$23=3, VLOOKUP(A96,'MIFOR curve'!$H$3:$J$62,3,FALSE),"")))) ->  | F96: =IF(ISERROR(((D95/D96)^(12/Range!$C$48)-1)),"",(D95/D96)^(12/Range!$C$48)-1) ->  | G96: =IF(A96<='Clients input'!$B$8,1,0) ->  | L96: =IF(K96=0,0,term-'IRS Calculation'!A96) ->  | M96: =IF(ISERROR((L96/Range!$C$48)*(F96-IRSFixed)),"",(L96/Range!$C$48)*(F96-IRSFixed)) ->  | N96: 0
A97: =A96+Range!$C$48 ->  | D97: =IF(ISERROR(IF(Range!$C$23=1,VLOOKUP('IRS Calculation'!A97,'G-Sec Yield Curve'!$A$4:$D$123,4,FALSE),IF(Range!$C$23=2,VLOOKUP(A97,'Overnight curve'!$H$3:$J$62,3,FALSE),IF(Range!$C$23=3, VLOOKUP(A97,'MIFOR curve'!$H$3:$J$62,3,FALSE),"")))),"",IF(Range!$C$23=1,VLOOKUP('IRS Calculation'!A97,'G-Sec Yield Curve'!$A$4:$D$123,4,FALSE),IF(Range!$C$23=2,VLOOKUP(A97,'Overnight curve'!$H$3:$J$62,3,FALSE),IF(Range!$C$23=3, VLOOKUP(A97,'MIFOR curve'!$H$3:$J$62,3,FALSE),"")))) ->  | F97: =IF(ISERROR(((D96/D97)^(12/Range!$C$48)-1)),"",(D96/D97)^(12/Range!$C$48)-1) ->  | G97: =IF(A97<='Clients input'!$B$8,1,0) ->  | L97: =IF(K97=0,0,term-'IRS Calculation'!A97) ->  | M97: =IF(ISERROR((L97/Range!$C$48)*(F97-IRSFixed)),"",(L97/Range!$C$48)*(F97-IRSFixed)) ->  | N97: 0
A98: =A97+Range!$C$48 ->  | D98: =IF(ISERROR(IF(Range!$C$23=1,VLOOKUP('IRS Calculation'!A98,'G-Sec Yield Curve'!$A$4:$D$123,4,FALSE),IF(Range!$C$23=2,VLOOKUP(A98,'Overnight curve'!$H$3:$J$62,3,FALSE),IF(Range!$C$23=3, VLOOKUP(A98,'MIFOR curve'!$H$3:$J$62,3,FALSE),"")))),"",IF(Range!$C$23=1,VLOOKUP('IRS Calculation'!A98,'G-Sec Yield Curve'!$A$4:$D$123,4,FALSE),IF(Range!$C$23=2,VLOOKUP(A98,'Overnight curve'!$H$3:$J$62,3,FALSE),IF(Range!$C$23=3, VLOOKUP(A98,'MIFOR curve'!$H$3:$J$62,3,FALSE),"")))) ->  | F98: =IF(ISERROR(((D97/D98)^(12/Range!$C$48)-1)),"",(D97/D98)^(12/Range!$C$48)-1) ->  | G98: =IF(A98<='Clients input'!$B$8,1,0) ->  | L98: =IF(K98=0,0,term-'IRS Calculation'!A98) ->  | M98: =IF(ISERROR((L98/Range!$C$48)*(F98-IRSFixed)),"",(L98/Range!$C$48)*(F98-IRSFixed)) ->  | N98: 0
A99: =A98+Range!$C$48 ->  | D99: =IF(ISERROR(IF(Range!$C$23=1,VLOOKUP('IRS Calculation'!A99,'G-Sec Yield Curve'!$A$4:$D$123,4,FALSE),IF(Range!$C$23=2,VLOOKUP(A99,'Overnight curve'!$H$3:$J$62,3,FALSE),IF(Range!$C$23=3, VLOOKUP(A99,'MIFOR curve'!$H$3:$J$62,3,FALSE),"")))),"",IF(Range!$C$23=1,VLOOKUP('IRS Calculation'!A99,'G-Sec Yield Curve'!$A$4:$D$123,4,FALSE),IF(Range!$C$23=2,VLOOKUP(A99,'Overnight curve'!$H$3:$J$62,3,FALSE),IF(Range!$C$23=3, VLOOKUP(A99,'MIFOR curve'!$H$3:$J$62,3,FALSE),"")))) ->  | F99: =IF(ISERROR(((D98/D99)^(12/Range!$C$48)-1)),"",(D98/D99)^(12/Range!$C$48)-1) ->  | G99: =IF(A99<='Clients input'!$B$8,1,0) ->  | L99: =IF(K99=0,0,term-'IRS Calculation'!A99) ->  | M99: =IF(ISERROR((L99/Range!$C$48)*(F99-IRSFixed)),"",(L99/Range!$C$48)*(F99-IRSFixed)) ->  | N99: 0
A100: =A99+Range!$C$48 ->  | D100: =IF(ISERROR(IF(Range!$C$23=1,VLOOKUP('IRS Calculation'!A100,'G-Sec Yield Curve'!$A$4:$D$123,4,FALSE),IF(Range!$C$23=2,VLOOKUP(A100,'Overnight curve'!$H$3:$J$62,3,FALSE),IF(Range!$C$23=3, VLOOKUP(A100,'MIFOR curve'!$H$3:$J$62,3,FALSE),"")))),"",IF(Range!$C$23=1,VLOOKUP('IRS Calculation'!A100,'G-Sec Yield Curve'!$A$4:$D$123,4,FALSE),IF(Range!$C$23=2,VLOOKUP(A100,'Overnight curve'!$H$3:$J$62,3,FALSE),IF(Range!$C$23=3, VLOOKUP(A100,'MIFOR curve'!$H$3:$J$62,3,FALSE),"")))) ->  | F100: =IF(ISERROR(((D99/D100)^(12/Range!$C$48)-1)),"",(D99/D100)^(12/Range!$C$48)-1) ->  | G100: =IF(A100<='Clients input'!$B$8,1,0) ->  | L100: =IF(K100=0,0,term-'IRS Calculation'!A100) ->  | M100: =IF(ISERROR((L100/Range!$C$48)*(F100-IRSFixed)),"",(L100/Range!$C$48)*(F100-IRSFixed)) ->  | N100: 0
A101: =A100+Range!$C$48 ->  | D101: =IF(ISERROR(IF(Range!$C$23=1,VLOOKUP('IRS Calculation'!A101,'G-Sec Yield Curve'!$A$4:$D$123,4,FALSE),IF(Range!$C$23=2,VLOOKUP(A101,'Overnight curve'!$H$3:$J$62,3,FALSE),IF(Range!$C$23=3, VLOOKUP(A101,'MIFOR curve'!$H$3:$J$62,3,FALSE),"")))),"",IF(Range!$C$23=1,VLOOKUP('IRS Calculation'!A101,'G-Sec Yield Curve'!$A$4:$D$123,4,FALSE),IF(Range!$C$23=2,VLOOKUP(A101,'Overnight curve'!$H$3:$J$62,3,FALSE),IF(Range!$C$23=3, VLOOKUP(A101,'MIFOR curve'!$H$3:$J$62,3,FALSE),"")))) ->  | F101: =IF(ISERROR(((D100/D101)^(12/Range!$C$48)-1)),"",(D100/D101)^(12/Range!$C$48)-1) ->  | G101: =IF(A101<='Clients input'!$B$8,1,0) ->  | L101: =IF(K101=0,0,term-'IRS Calculation'!A101) ->  | M101: =IF(ISERROR((L101/Range!$C$48)*(F101-IRSFixed)),"",(L101/Range!$C$48)*(F101-IRSFixed)) ->  | N101: 0
A102: =A101+Range!$C$48 ->  | D102: =IF(ISERROR(IF(Range!$C$23=1,VLOOKUP('IRS Calculation'!A102,'G-Sec Yield Curve'!$A$4:$D$123,4,FALSE),IF(Range!$C$23=2,VLOOKUP(A102,'Overnight curve'!$H$3:$J$62,3,FALSE),IF(Range!$C$23=3, VLOOKUP(A102,'MIFOR curve'!$H$3:$J$62,3,FALSE),"")))),"",IF(Range!$C$23=1,VLOOKUP('IRS Calculation'!A102,'G-Sec Yield Curve'!$A$4:$D$123,4,FALSE),IF(Range!$C$23=2,VLOOKUP(A102,'Overnight curve'!$H$3:$J$62,3,FALSE),IF(Range!$C$23=3, VLOOKUP(A102,'MIFOR curve'!$H$3:$J$62,3,FALSE),"")))) ->  | F102: =IF(ISERROR(((D101/D102)^(12/Range!$C$48)-1)),"",(D101/D102)^(12/Range!$C$48)-1) ->  | G102: =IF(A102<='Clients input'!$B$8,1,0) ->  | L102: =IF(K102=0,0,term-'IRS Calculation'!A102) ->  | M102: =IF(ISERROR((L102/Range!$C$48)*(F102-IRSFixed)),"",(L102/Range!$C$48)*(F102-IRSFixed)) ->  | N102: 0
A103: =A102+Range!$C$48 ->  | D103: =IF(ISERROR(IF(Range!$C$23=1,VLOOKUP('IRS Calculation'!A103,'G-Sec Yield Curve'!$A$4:$D$123,4,FALSE),IF(Range!$C$23=2,VLOOKUP(A103,'Overnight curve'!$H$3:$J$62,3,FALSE),IF(Range!$C$23=3, VLOOKUP(A103,'MIFOR curve'!$H$3:$J$62,3,FALSE),"")))),"",IF(Range!$C$23=1,VLOOKUP('IRS Calculation'!A103,'G-Sec Yield Curve'!$A$4:$D$123,4,FALSE),IF(Range!$C$23=2,VLOOKUP(A103,'Overnight curve'!$H$3:$J$62,3,FALSE),IF(Range!$C$23=3, VLOOKUP(A103,'MIFOR curve'!$H$3:$J$62,3,FALSE),"")))) ->  | F103: =IF(ISERROR(((D102/D103)^(12/Range!$C$48)-1)),"",(D102/D103)^(12/Range!$C$48)-1) ->  | G103: =IF(A103<='Clients input'!$B$8,1,0) ->  | L103: =IF(K103=0,0,term-'IRS Calculation'!A103) ->  | M103: =IF(ISERROR((L103/Range!$C$48)*(F103-IRSFixed)),"",(L103/Range!$C$48)*(F103-IRSFixed)) ->  | N103: 0
A104: =A103+Range!$C$48 ->  | D104: =IF(ISERROR(IF(Range!$C$23=1,VLOOKUP('IRS Calculation'!A104,'G-Sec Yield Curve'!$A$4:$D$123,4,FALSE),IF(Range!$C$23=2,VLOOKUP(A104,'Overnight curve'!$H$3:$J$62,3,FALSE),IF(Range!$C$23=3, VLOOKUP(A104,'MIFOR curve'!$H$3:$J$62,3,FALSE),"")))),"",IF(Range!$C$23=1,VLOOKUP('IRS Calculation'!A104,'G-Sec Yield Curve'!$A$4:$D$123,4,FALSE),IF(Range!$C$23=2,VLOOKUP(A104,'Overnight curve'!$H$3:$J$62,3,FALSE),IF(Range!$C$23=3, VLOOKUP(A104,'MIFOR curve'!$H$3:$J$62,3,FALSE),"")))) ->  | F104: =IF(ISERROR(((D103/D104)^(12/Range!$C$48)-1)),"",(D103/D104)^(12/Range!$C$48)-1) ->  | G104: =IF(A104<='Clients input'!$B$8,1,0) ->  | L104: =IF(K104=0,0,term-'IRS Calculation'!A104) ->  | M104: =IF(ISERROR((L104/Range!$C$48)*(F104-IRSFixed)),"",(L104/Range!$C$48)*(F104-IRSFixed)) ->  | N104: 0
A105: =A104+Range!$C$48 ->  | D105: =IF(ISERROR(IF(Range!$C$23=1,VLOOKUP('IRS Calculation'!A105,'G-Sec Yield Curve'!$A$4:$D$123,4,FALSE),IF(Range!$C$23=2,VLOOKUP(A105,'Overnight curve'!$H$3:$J$62,3,FALSE),IF(Range!$C$23=3, VLOOKUP(A105,'MIFOR curve'!$H$3:$J$62,3,FALSE),"")))),"",IF(Range!$C$23=1,VLOOKUP('IRS Calculation'!A105,'G-Sec Yield Curve'!$A$4:$D$123,4,FALSE),IF(Range!$C$23=2,VLOOKUP(A105,'Overnight curve'!$H$3:$J$62,3,FALSE),IF(Range!$C$23=3, VLOOKUP(A105,'MIFOR curve'!$H$3:$J$62,3,FALSE),"")))) ->  | F105: =IF(ISERROR(((D104/D105)^(12/Range!$C$48)-1)),"",(D104/D105)^(12/Range!$C$48)-1) ->  | G105: =IF(A105<='Clients input'!$B$8,1,0) ->  | L105: =IF(K105=0,0,term-'IRS Calculation'!A105) ->  | M105: =IF(ISERROR((L105/Range!$C$48)*(F105-IRSFixed)),"",(L105/Range!$C$48)*(F105-IRSFixed)) ->  | N105: 0
A106: =A105+Range!$C$48 ->  | D106: =IF(ISERROR(IF(Range!$C$23=1,VLOOKUP('IRS Calculation'!A106,'G-Sec Yield Curve'!$A$4:$D$123,4,FALSE),IF(Range!$C$23=2,VLOOKUP(A106,'Overnight curve'!$H$3:$J$62,3,FALSE),IF(Range!$C$23=3, VLOOKUP(A106,'MIFOR curve'!$H$3:$J$62,3,FALSE),"")))),"",IF(Range!$C$23=1,VLOOKUP('IRS Calculation'!A106,'G-Sec Yield Curve'!$A$4:$D$123,4,FALSE),IF(Range!$C$23=2,VLOOKUP(A106,'Overnight curve'!$H$3:$J$62,3,FALSE),IF(Range!$C$23=3, VLOOKUP(A106,'MIFOR curve'!$H$3:$J$62,3,FALSE),"")))) ->  | F106: =IF(ISERROR(((D105/D106)^(12/Range!$C$48)-1)),"",(D105/D106)^(12/Range!$C$48)-1) ->  | G106: =IF(A106<='Clients input'!$B$8,1,0) ->  | L106: =IF(K106=0,0,term-'IRS Calculation'!A106) ->  | M106: =IF(ISERROR((L106/Range!$C$48)*(F106-IRSFixed)),"",(L106/Range!$C$48)*(F106-IRSFixed)) ->  | N106: 0
A107: =A106+Range!$C$48 ->  | D107: =IF(ISERROR(IF(Range!$C$23=1,VLOOKUP('IRS Calculation'!A107,'G-Sec Yield Curve'!$A$4:$D$123,4,FALSE),IF(Range!$C$23=2,VLOOKUP(A107,'Overnight curve'!$H$3:$J$62,3,FALSE),IF(Range!$C$23=3, VLOOKUP(A107,'MIFOR curve'!$H$3:$J$62,3,FALSE),"")))),"",IF(Range!$C$23=1,VLOOKUP('IRS Calculation'!A107,'G-Sec Yield Curve'!$A$4:$D$123,4,FALSE),IF(Range!$C$23=2,VLOOKUP(A107,'Overnight curve'!$H$3:$J$62,3,FALSE),IF(Range!$C$23=3, VLOOKUP(A107,'MIFOR curve'!$H$3:$J$62,3,FALSE),"")))) ->  | F107: =IF(ISERROR(((D106/D107)^(12/Range!$C$48)-1)),"",(D106/D107)^(12/Range!$C$48)-1) ->  | G107: =IF(A107<='Clients input'!$B$8,1,0) ->  | L107: =IF(K107=0,0,term-'IRS Calculation'!A107) ->  | M107: =IF(ISERROR((L107/Range!$C$48)*(F107-IRSFixed)),"",(L107/Range!$C$48)*(F107-IRSFixed)) ->  | N107: 0
A108: =A107+Range!$C$48 ->  | D108: =IF(ISERROR(IF(Range!$C$23=1,VLOOKUP('IRS Calculation'!A108,'G-Sec Yield Curve'!$A$4:$D$123,4,FALSE),IF(Range!$C$23=2,VLOOKUP(A108,'Overnight curve'!$H$3:$J$62,3,FALSE),IF(Range!$C$23=3, VLOOKUP(A108,'MIFOR curve'!$H$3:$J$62,3,FALSE),"")))),"",IF(Range!$C$23=1,VLOOKUP('IRS Calculation'!A108,'G-Sec Yield Curve'!$A$4:$D$123,4,FALSE),IF(Range!$C$23=2,VLOOKUP(A108,'Overnight curve'!$H$3:$J$62,3,FALSE),IF(Range!$C$23=3, VLOOKUP(A108,'MIFOR curve'!$H$3:$J$62,3,FALSE),"")))) ->  | F108: =IF(ISERROR(((D107/D108)^(12/Range!$C$48)-1)),"",(D107/D108)^(12/Range!$C$48)-1) ->  | G108: =IF(A108<='Clients input'!$B$8,1,0) ->  | L108: =IF(K108=0,0,term-'IRS Calculation'!A108) ->  | M108: =IF(ISERROR((L108/Range!$C$48)*(F108-IRSFixed)),"",(L108/Range!$C$48)*(F108-IRSFixed)) ->  | N108: 0
A109: =A108+Range!$C$48 ->  | D109: =IF(ISERROR(IF(Range!$C$23=1,VLOOKUP('IRS Calculation'!A109,'G-Sec Yield Curve'!$A$4:$D$123,4,FALSE),IF(Range!$C$23=2,VLOOKUP(A109,'Overnight curve'!$H$3:$J$62,3,FALSE),IF(Range!$C$23=3, VLOOKUP(A109,'MIFOR curve'!$H$3:$J$62,3,FALSE),"")))),"",IF(Range!$C$23=1,VLOOKUP('IRS Calculation'!A109,'G-Sec Yield Curve'!$A$4:$D$123,4,FALSE),IF(Range!$C$23=2,VLOOKUP(A109,'Overnight curve'!$H$3:$J$62,3,FALSE),IF(Range!$C$23=3, VLOOKUP(A109,'MIFOR curve'!$H$3:$J$62,3,FALSE),"")))) ->  | F109: =IF(ISERROR(((D108/D109)^(12/Range!$C$48)-1)),"",(D108/D109)^(12/Range!$C$48)-1) ->  | G109: =IF(A109<='Clients input'!$B$8,1,0) ->  | L109: =IF(K109=0,0,term-'IRS Calculation'!A109) ->  | M109: =IF(ISERROR((L109/Range!$C$48)*(F109-IRSFixed)),"",(L109/Range!$C$48)*(F109-IRSFixed)) ->  | N109: 0
A110: =A109+Range!$C$48 ->  | D110: =IF(ISERROR(IF(Range!$C$23=1,VLOOKUP('IRS Calculation'!A110,'G-Sec Yield Curve'!$A$4:$D$123,4,FALSE),IF(Range!$C$23=2,VLOOKUP(A110,'Overnight curve'!$H$3:$J$62,3,FALSE),IF(Range!$C$23=3, VLOOKUP(A110,'MIFOR curve'!$H$3:$J$62,3,FALSE),"")))),"",IF(Range!$C$23=1,VLOOKUP('IRS Calculation'!A110,'G-Sec Yield Curve'!$A$4:$D$123,4,FALSE),IF(Range!$C$23=2,VLOOKUP(A110,'Overnight curve'!$H$3:$J$62,3,FALSE),IF(Range!$C$23=3, VLOOKUP(A110,'MIFOR curve'!$H$3:$J$62,3,FALSE),"")))) ->  | F110: =IF(ISERROR(((D109/D110)^(12/Range!$C$48)-1)),"",(D109/D110)^(12/Range!$C$48)-1) ->  | G110: =IF(A110<='Clients input'!$B$8,1,0) ->  | L110: =IF(K110=0,0,term-'IRS Calculation'!A110) ->  | M110: =IF(ISERROR((L110/Range!$C$48)*(F110-IRSFixed)),"",(L110/Range!$C$48)*(F110-IRSFixed)) ->  | N110: 0
A111: =A110+Range!$C$48 ->  | D111: =IF(ISERROR(IF(Range!$C$23=1,VLOOKUP('IRS Calculation'!A111,'G-Sec Yield Curve'!$A$4:$D$123,4,FALSE),IF(Range!$C$23=2,VLOOKUP(A111,'Overnight curve'!$H$3:$J$62,3,FALSE),IF(Range!$C$23=3, VLOOKUP(A111,'MIFOR curve'!$H$3:$J$62,3,FALSE),"")))),"",IF(Range!$C$23=1,VLOOKUP('IRS Calculation'!A111,'G-Sec Yield Curve'!$A$4:$D$123,4,FALSE),IF(Range!$C$23=2,VLOOKUP(A111,'Overnight curve'!$H$3:$J$62,3,FALSE),IF(Range!$C$23=3, VLOOKUP(A111,'MIFOR curve'!$H$3:$J$62,3,FALSE),"")))) ->  | F111: =IF(ISERROR(((D110/D111)^(12/Range!$C$48)-1)),"",(D110/D111)^(12/Range!$C$48)-1) ->  | G111: =IF(A111<='Clients input'!$B$8,1,0) ->  | L111: =IF(K111=0,0,term-'IRS Calculation'!A111) ->  | M111: =IF(ISERROR((L111/Range!$C$48)*(F111-IRSFixed)),"",(L111/Range!$C$48)*(F111-IRSFixed)) ->  | N111: 0
A112: =A111+Range!$C$48 ->  | D112: =IF(ISERROR(IF(Range!$C$23=1,VLOOKUP('IRS Calculation'!A112,'G-Sec Yield Curve'!$A$4:$D$123,4,FALSE),IF(Range!$C$23=2,VLOOKUP(A112,'Overnight curve'!$H$3:$J$62,3,FALSE),IF(Range!$C$23=3, VLOOKUP(A112,'MIFOR curve'!$H$3:$J$62,3,FALSE),"")))),"",IF(Range!$C$23=1,VLOOKUP('IRS Calculation'!A112,'G-Sec Yield Curve'!$A$4:$D$123,4,FALSE),IF(Range!$C$23=2,VLOOKUP(A112,'Overnight curve'!$H$3:$J$62,3,FALSE),IF(Range!$C$23=3, VLOOKUP(A112,'MIFOR curve'!$H$3:$J$62,3,FALSE),"")))) ->  | F112: =IF(ISERROR(((D111/D112)^(12/Range!$C$48)-1)),"",(D111/D112)^(12/Range!$C$48)-1) ->  | G112: =IF(A112<='Clients input'!$B$8,1,0) ->  | L112: =IF(K112=0,0,term-'IRS Calculation'!A112) ->  | M112: =IF(ISERROR((L112/Range!$C$48)*(F112-IRSFixed)),"",(L112/Range!$C$48)*(F112-IRSFixed)) ->  | N112: 0
A113: =A112+Range!$C$48 ->  | D113: =IF(ISERROR(IF(Range!$C$23=1,VLOOKUP('IRS Calculation'!A113,'G-Sec Yield Curve'!$A$4:$D$123,4,FALSE),IF(Range!$C$23=2,VLOOKUP(A113,'Overnight curve'!$H$3:$J$62,3,FALSE),IF(Range!$C$23=3, VLOOKUP(A113,'MIFOR curve'!$H$3:$J$62,3,FALSE),"")))),"",IF(Range!$C$23=1,VLOOKUP('IRS Calculation'!A113,'G-Sec Yield Curve'!$A$4:$D$123,4,FALSE),IF(Range!$C$23=2,VLOOKUP(A113,'Overnight curve'!$H$3:$J$62,3,FALSE),IF(Range!$C$23=3, VLOOKUP(A113,'MIFOR curve'!$H$3:$J$62,3,FALSE),"")))) ->  | F113: =IF(ISERROR(((D112/D113)^(12/Range!$C$48)-1)),"",(D112/D113)^(12/Range!$C$48)-1) ->  | G113: =IF(A113<='Clients input'!$B$8,1,0) ->  | L113: =IF(K113=0,0,term-'IRS Calculation'!A113) ->  | M113: =IF(ISERROR((L113/Range!$C$48)*(F113-IRSFixed)),"",(L113/Range!$C$48)*(F113-IRSFixed)) ->  | N113: 0
A114: =A113+Range!$C$48 ->  | D114: =IF(ISERROR(IF(Range!$C$23=1,VLOOKUP('IRS Calculation'!A114,'G-Sec Yield Curve'!$A$4:$D$123,4,FALSE),IF(Range!$C$23=2,VLOOKUP(A114,'Overnight curve'!$H$3:$J$62,3,FALSE),IF(Range!$C$23=3, VLOOKUP(A114,'MIFOR curve'!$H$3:$J$62,3,FALSE),"")))),"",IF(Range!$C$23=1,VLOOKUP('IRS Calculation'!A114,'G-Sec Yield Curve'!$A$4:$D$123,4,FALSE),IF(Range!$C$23=2,VLOOKUP(A114,'Overnight curve'!$H$3:$J$62,3,FALSE),IF(Range!$C$23=3, VLOOKUP(A114,'MIFOR curve'!$H$3:$J$62,3,FALSE),"")))) ->  | F114: =IF(ISERROR(((D113/D114)^(12/Range!$C$48)-1)),"",(D113/D114)^(12/Range!$C$48)-1) ->  | G114: =IF(A114<='Clients input'!$B$8,1,0) ->  | L114: =IF(K114=0,0,term-'IRS Calculation'!A114) ->  | M114: =IF(ISERROR((L114/Range!$C$48)*(F114-IRSFixed)),"",(L114/Range!$C$48)*(F114-IRSFixed)) ->  | N114: 0
A115: =A114+Range!$C$48 ->  | D115: =IF(ISERROR(IF(Range!$C$23=1,VLOOKUP('IRS Calculation'!A115,'G-Sec Yield Curve'!$A$4:$D$123,4,FALSE),IF(Range!$C$23=2,VLOOKUP(A115,'Overnight curve'!$H$3:$J$62,3,FALSE),IF(Range!$C$23=3, VLOOKUP(A115,'MIFOR curve'!$H$3:$J$62,3,FALSE),"")))),"",IF(Range!$C$23=1,VLOOKUP('IRS Calculation'!A115,'G-Sec Yield Curve'!$A$4:$D$123,4,FALSE),IF(Range!$C$23=2,VLOOKUP(A115,'Overnight curve'!$H$3:$J$62,3,FALSE),IF(Range!$C$23=3, VLOOKUP(A115,'MIFOR curve'!$H$3:$J$62,3,FALSE),"")))) ->  | F115: =IF(ISERROR(((D114/D115)^(12/Range!$C$48)-1)),"",(D114/D115)^(12/Range!$C$48)-1) ->  | G115: =IF(A115<='Clients input'!$B$8,1,0) ->  | L115: =IF(K115=0,0,term-'IRS Calculation'!A115) ->  | M115: =IF(ISERROR((L115/Range!$C$48)*(F115-IRSFixed)),"",(L115/Range!$C$48)*(F115-IRSFixed)) ->  | N115: 0
A116: =A115+Range!$C$48 ->  | D116: =IF(ISERROR(IF(Range!$C$23=1,VLOOKUP('IRS Calculation'!A116,'G-Sec Yield Curve'!$A$4:$D$123,4,FALSE),IF(Range!$C$23=2,VLOOKUP(A116,'Overnight curve'!$H$3:$J$62,3,FALSE),IF(Range!$C$23=3, VLOOKUP(A116,'MIFOR curve'!$H$3:$J$62,3,FALSE),"")))),"",IF(Range!$C$23=1,VLOOKUP('IRS Calculation'!A116,'G-Sec Yield Curve'!$A$4:$D$123,4,FALSE),IF(Range!$C$23=2,VLOOKUP(A116,'Overnight curve'!$H$3:$J$62,3,FALSE),IF(Range!$C$23=3, VLOOKUP(A116,'MIFOR curve'!$H$3:$J$62,3,FALSE),"")))) ->  | F116: =IF(ISERROR(((D115/D116)^(12/Range!$C$48)-1)),"",(D115/D116)^(12/Range!$C$48)-1) ->  | G116: =IF(A116<='Clients input'!$B$8,1,0) ->  | L116: =IF(K116=0,0,term-'IRS Calculation'!A116) ->  | M116: =IF(ISERROR((L116/Range!$C$48)*(F116-IRSFixed)),"",(L116/Range!$C$48)*(F116-IRSFixed)) ->  | N116: 0
A117: =A116+Range!$C$48 ->  | D117: =IF(ISERROR(IF(Range!$C$23=1,VLOOKUP('IRS Calculation'!A117,'G-Sec Yield Curve'!$A$4:$D$123,4,FALSE),IF(Range!$C$23=2,VLOOKUP(A117,'Overnight curve'!$H$3:$J$62,3,FALSE),IF(Range!$C$23=3, VLOOKUP(A117,'MIFOR curve'!$H$3:$J$62,3,FALSE),"")))),"",IF(Range!$C$23=1,VLOOKUP('IRS Calculation'!A117,'G-Sec Yield Curve'!$A$4:$D$123,4,FALSE),IF(Range!$C$23=2,VLOOKUP(A117,'Overnight curve'!$H$3:$J$62,3,FALSE),IF(Range!$C$23=3, VLOOKUP(A117,'MIFOR curve'!$H$3:$J$62,3,FALSE),"")))) ->  | F117: =IF(ISERROR(((D116/D117)^(12/Range!$C$48)-1)),"",(D116/D117)^(12/Range!$C$48)-1) ->  | G117: =IF(A117<='Clients input'!$B$8,1,0) ->  | L117: =IF(K117=0,0,term-'IRS Calculation'!A117) ->  | M117: =IF(ISERROR((L117/Range!$C$48)*(F117-IRSFixed)),"",(L117/Range!$C$48)*(F117-IRSFixed)) ->  | N117: 0
A118: =A117+Range!$C$48 ->  | D118: =IF(ISERROR(IF(Range!$C$23=1,VLOOKUP('IRS Calculation'!A118,'G-Sec Yield Curve'!$A$4:$D$123,4,FALSE),IF(Range!$C$23=2,VLOOKUP(A118,'Overnight curve'!$H$3:$J$62,3,FALSE),IF(Range!$C$23=3, VLOOKUP(A118,'MIFOR curve'!$H$3:$J$62,3,FALSE),"")))),"",IF(Range!$C$23=1,VLOOKUP('IRS Calculation'!A118,'G-Sec Yield Curve'!$A$4:$D$123,4,FALSE),IF(Range!$C$23=2,VLOOKUP(A118,'Overnight curve'!$H$3:$J$62,3,FALSE),IF(Range!$C$23=3, VLOOKUP(A118,'MIFOR curve'!$H$3:$J$62,3,FALSE),"")))) ->  | F118: =IF(ISERROR(((D117/D118)^(12/Range!$C$48)-1)),"",(D117/D118)^(12/Range!$C$48)-1) ->  | G118: =IF(A118<='Clients input'!$B$8,1,0) ->  | L118: =IF(K118=0,0,term-'IRS Calculation'!A118) ->  | M118: =IF(ISERROR((L118/Range!$C$48)*(F118-IRSFixed)),"",(L118/Range!$C$48)*(F118-IRSFixed)) ->  | N118: 0
A119: =A118+Range!$C$48 ->  | D119: =IF(ISERROR(IF(Range!$C$23=1,VLOOKUP('IRS Calculation'!A119,'G-Sec Yield Curve'!$A$4:$D$123,4,FALSE),IF(Range!$C$23=2,VLOOKUP(A119,'Overnight curve'!$H$3:$J$62,3,FALSE),IF(Range!$C$23=3, VLOOKUP(A119,'MIFOR curve'!$H$3:$J$62,3,FALSE),"")))),"",IF(Range!$C$23=1,VLOOKUP('IRS Calculation'!A119,'G-Sec Yield Curve'!$A$4:$D$123,4,FALSE),IF(Range!$C$23=2,VLOOKUP(A119,'Overnight curve'!$H$3:$J$62,3,FALSE),IF(Range!$C$23=3, VLOOKUP(A119,'MIFOR curve'!$H$3:$J$62,3,FALSE),"")))) ->  | F119: =IF(ISERROR(((D118/D119)^(12/Range!$C$48)-1)),"",(D118/D119)^(12/Range!$C$48)-1) ->  | G119: =IF(A119<='Clients input'!$B$8,1,0) ->  | L119: =IF(K119=0,0,term-'IRS Calculation'!A119) ->  | M119: =IF(ISERROR((L119/Range!$C$48)*(F119-IRSFixed)),"",(L119/Range!$C$48)*(F119-IRSFixed)) ->  | N119: 0
A120: =A119+Range!$C$48 ->  | D120: =IF(ISERROR(IF(Range!$C$23=1,VLOOKUP('IRS Calculation'!A120,'G-Sec Yield Curve'!$A$4:$D$123,4,FALSE),IF(Range!$C$23=2,VLOOKUP(A120,'Overnight curve'!$H$3:$J$62,3,FALSE),IF(Range!$C$23=3, VLOOKUP(A120,'MIFOR curve'!$H$3:$J$62,3,FALSE),"")))),"",IF(Range!$C$23=1,VLOOKUP('IRS Calculation'!A120,'G-Sec Yield Curve'!$A$4:$D$123,4,FALSE),IF(Range!$C$23=2,VLOOKUP(A120,'Overnight curve'!$H$3:$J$62,3,FALSE),IF(Range!$C$23=3, VLOOKUP(A120,'MIFOR curve'!$H$3:$J$62,3,FALSE),"")))) ->  | F120: =IF(ISERROR(((D119/D120)^(12/Range!$C$48)-1)),"",(D119/D120)^(12/Range!$C$48)-1) ->  | G120: =IF(A120<='Clients input'!$B$8,1,0) ->  | L120: =IF(K120=0,0,term-'IRS Calculation'!A120) ->  | M120: =IF(ISERROR((L120/Range!$C$48)*(F120-IRSFixed)),"",(L120/Range!$C$48)*(F120-IRSFixed)) ->  | N120: 0
A121: =A120+Range!$C$48 ->  | D121: =IF(ISERROR(IF(Range!$C$23=1,VLOOKUP('IRS Calculation'!A121,'G-Sec Yield Curve'!$A$4:$D$123,4,FALSE),IF(Range!$C$23=2,VLOOKUP(A121,'Overnight curve'!$H$3:$J$62,3,FALSE),IF(Range!$C$23=3, VLOOKUP(A121,'MIFOR curve'!$H$3:$J$62,3,FALSE),"")))),"",IF(Range!$C$23=1,VLOOKUP('IRS Calculation'!A121,'G-Sec Yield Curve'!$A$4:$D$123,4,FALSE),IF(Range!$C$23=2,VLOOKUP(A121,'Overnight curve'!$H$3:$J$62,3,FALSE),IF(Range!$C$23=3, VLOOKUP(A121,'MIFOR curve'!$H$3:$J$62,3,FALSE),"")))) ->  | F121: =IF(ISERROR(((D120/D121)^(12/Range!$C$48)-1)),"",(D120/D121)^(12/Range!$C$48)-1) ->  | G121: =IF(A121<='Clients input'!$B$8,1,0) ->  | L121: =IF(K121=0,0,term-'IRS Calculation'!A121) ->  | M121: =IF(ISERROR((L121/Range!$C$48)*(F121-IRSFixed)),"",(L121/Range!$C$48)*(F121-IRSFixed)) ->  | N121: 0
A122: =A121+Range!$C$48 ->  | D122: =IF(ISERROR(IF(Range!$C$23=1,VLOOKUP('IRS Calculation'!A122,'G-Sec Yield Curve'!$A$4:$D$123,4,FALSE),IF(Range!$C$23=2,VLOOKUP(A122,'Overnight curve'!$H$3:$J$62,3,FALSE),IF(Range!$C$23=3, VLOOKUP(A122,'MIFOR curve'!$H$3:$J$62,3,FALSE),"")))),"",IF(Range!$C$23=1,VLOOKUP('IRS Calculation'!A122,'G-Sec Yield Curve'!$A$4:$D$123,4,FALSE),IF(Range!$C$23=2,VLOOKUP(A122,'Overnight curve'!$H$3:$J$62,3,FALSE),IF(Range!$C$23=3, VLOOKUP(A122,'MIFOR curve'!$H$3:$J$62,3,FALSE),"")))) ->  | F122: =IF(ISERROR(((D121/D122)^(12/Range!$C$48)-1)),"",(D121/D122)^(12/Range!$C$48)-1) ->  | G122: =IF(A122<='Clients input'!$B$8,1,0) ->  | L122: =IF(K122=0,0,term-'IRS Calculation'!A122) ->  | M122: =IF(ISERROR((L122/Range!$C$48)*(F122-IRSFixed)),"",(L122/Range!$C$48)*(F122-IRSFixed)) ->  | N122: 0

Sheet G-Sec Yield Curve (hidden)
N1: Computation of annualized spots
B2: G-Sec Yield Curve | K2: Input
A3: Tenor(months) | B3: Annualised Spots | D3: Discount Factor | E3: Annualized par rates | K3: Tenor | L3: Yield | N3: Tenor (yrs) | O3: Semi annual Par Yield | P3: Discount factors | Q3: Annualised spot
A4: 1 | C4: =C6 -> 0.07528676261 | D4: =1/(1+C4)^(A4/12) -> 0.9939693096 | E4: =C4 -> 0.07528676261 | K4: 3 month | L4: 0.07325 | N4: 0.5 | O4: =L5 -> 0.07325 | P4: =1/(1+O4/2)^(N4*2) -> 0.964668998 | Q4: =(1/P4)^(1/N4)-1 -> 0.07459139062
A5: 2 | C5: =C6 -> 0.07528676261 | D5: =1/(1+C5)^(A5/12) -> 0.9879749884 | E5: =C5 -> 0.07528676261 | K5: 6 month | L5: 0.07325 | N5: 1 | O5: =L6 -> 0.07491 | P5: =(1-O5/2*SUM($P$4:P4))/(1+O5/2) -> 0.9290700056 | Q5: =(1/P5)^(1/N5)-1 -> 0.07634515585
A6: 3 | C6: =EFFECT(L4,4) -> 0.07528676261 | D6: 0.982016817 | E6: 0.07528676261 | K6: 12 month | L6: 0.07491 | N6: 1.5 | O6: =AVERAGE(O7,O5) -> 0.07649 | P6: =(1-O6/2*SUM($P$4:P5))/(1+O6/2) -> 0.8934056526 | Q6: 0.07803833024
A7: 4 | C7: =$C$6+($C$9-$C$6)*(A7-$A$6)/($A$9-$A$6) -> 0.07505497195 | D7: 0.9761647239 | E7: 0.07505497195 | K7: 2 year | L7: 0.07807 | N7: 2 | O7: =L7 -> 0.07807 | P7: =(1-O7/2*SUM($P$4:P6))/(1+O7/2) -> 0.8577226064 | Q7: 0.07975835115
A8: 5 | C8: =$C$6+($C$9-$C$6)*(A8-$A$6)/($A$9-$A$6) -> 0.07482318129 | D8: 0.9703823897 | E8: 0.07482318129 | K8: 3 year | L8: 0.078815 | N8: 2.5 | O8: =AVERAGE(O9,O7) -> 0.0784425 | P8: =(1-O8/2*SUM($P$4:P7))/(1+O8/2) -> 0.824698061 | Q8: 0.08014487807
A9: 6 | C9: =IF(ISERROR(VLOOKUP(A9/12,$N$4:$Q$23,4,FALSE)),"",VLOOKUP(A9/12,$N$4:$Q$23,4,FALSE)) -> 0.07459139062 | D9: 0.964668998 | E9: 0.07459139062 | K9: 4 year | L9: 0.08015 | N9: 3 | O9: =L8 -> 0.078815 | P9: =(1-O9/2*SUM($P$4:P8))/(1+O9/2) -> 0.7926300364 | Q9: 0.08054574648
A10: 7 | C10: =$C$9+($C$15-$C$9)*(A10-$A$9)/($A$15-$A$9) -> 0.07488368483 | D10: 0.9587509529 | E10: 0.07488368483 | K10: 5 year | L10: 0.081705 | N10: 3.5 | O10: =AVERAGE(O11,O9) -> 0.0794825 | P10: =(1-O10/2*SUM($P$4:P9))/(1+O10/2) -> 0.7606448034 | Q10: 0.08130454349
A11: 8 | C11: =$C$9+($C$15-$C$9)*(A11-$A$9)/($A$15-$A$9) -> 0.07517597903 | D11: 0.9528260701 | E11: 0.07517597903 | K11: 6 year | L11: 0.08481 | N11: 4 | O11: =L9 -> 0.08015 | P11: =(1-O11/2*SUM($P$4:P10))/(1+O11/2) -> 0.7294038223 | Q11: 0.08207656466
A12: 9 | C12: =$C$9+($C$15-$C$9)*(A12-$A$9)/($A$15-$A$9) -> 0.07546827324 | D12: 0.9468949442 | E12: 0.07546827324 | K12: 7 year | L12: 0.08648 | N12: 4.5 | O12: =AVERAGE(O13,O11) -> 0.0809275 | P12: =(1-O12/2*SUM($P$4:P11))/(1+O12/2) -> 0.6985143763 | Q12: 0.08299811382
A13: 10 | C13: =$C$9+($C$15-$C$9)*(A13-$A$9)/($A$15-$A$9) -> 0.07576056744 | D13: 0.9409581666 | E13: 0.07576056744 | K13: 8 year | L13: 0.0922 | N13: 5 | O13: =L10 -> 0.081705 | P13: =(1-O13/2*SUM($P$4:P12))/(1+O13/2) -> 0.6683155337 | Q13: 0.08393612091
A14: 11 | C14: =$C$9+($C$15-$C$9)*(A14-$A$9)/($A$15-$A$9) -> 0.07605286165 | D14: 0.9350163255 | E14: 0.07605286165 | K14: 9 year | L14: 0.093065 | N14: 5.5 | O14: =AVERAGE(O15,O13) -> 0.0832575 | P14: =(1-O14/2*SUM($P$4:P13))/(1+O14/2) -> 0.6355557127 | Q14: 0.08590104155
A15: 12 | C15: =IF(ISERROR(VLOOKUP(A15/12,$N$4:$Q$23,4,FALSE)),"",VLOOKUP(A15/12,$N$4:$Q$23,4,FALSE)) -> 0.07634515585 | D15: 0.9290700056 | E15: 0.07634515585 | K15: 10 year | L15: 0.09448 | N15: 6 | O15: =L11 -> 0.08481 | P15: =(1-O15/2*SUM($P$4:P14))/(1+O15/2) -> 0.6031819988 | Q15: 0.08790741785
A16: 13 | C16: =C$15+(C$21-C$15)*($A16-$A$15)/($A$21-$A$15) -> 0.07662735158 | D16: 0.9231291685 | E16: =$E$15+($E$27-$E$15)*(A16-$A$15)/12 -> 0.07661866424 | N16: 6.5 | O16: =AVERAGE(O17,O15) -> 0.085645 | P16: =(1-O16/2*SUM($P$4:P15))/(1+O16/2) -> 0.5746664581 | Q16: 0.08896255475
A17: 14 | C17: =$C$15+($C$21-$C$15)*(A17-$A$15)/($A$21-$A$15) -> 0.07690954732 | D17: 0.9171863194 | E17: =$E$15+($E$27-$E$15)*(A17-$A$15)/12 -> 0.07689217263 | N17: 7 | O17: =L12 -> 0.08648 | P17: =(1-O17/2*SUM($P$4:P16))/(1+O17/2) -> 0.5468728657 | Q17: 0.0900459446
A18: 15 | C18: =$C$15+($C$21-$C$15)*(A18-$A$15)/($A$21-$A$15) -> 0.07719174305 | D18: 0.9112420036 | E18: 0.07716568101 | N18: 7.5 | O18: =AVERAGE(O19,O17) -> 0.08934 | P18: =(1-O18/2*SUM($P$4:P17))/(1+O18/2) -> 0.5091439344 | Q18: 0.09417786147
A19: 16 | C19: =$C$15+($C$21-$C$15)*(A19-$A$15)/($A$21-$A$15) -> 0.07747393878 | D19: 0.9052967626 | E19: 0.0774391894 | I19: For CMT | N19: 8 | O19: =L13 -> 0.0922 | P19: =(1-O19/2*SUM($P$4:P18))/(1+O19/2) -> 0.471685677 | Q19: 0.09848318636
A20: 17 | C20: =$C$15+($C$21-$C$15)*(A20-$A$15)/($A$21-$A$15) -> 0.07775613451 | D20: 0.8993511342 | E20: 0.07771269778 | I20: swaps | N20: 8.5 | O20: =AVERAGE(O21,O19) -> 0.0926325 | P20: =(1-O20/2*SUM($P$4:P19))/(1+O20/2) -> 0.4484374709 | Q20: 0.09894573457
A21: 18 | C21: =IF(ISERROR(VLOOKUP(A21/12,$N$4:$Q$23,4,FALSE)),"",VLOOKUP(A21/12,$N$4:$Q$23,4,FALSE)) -> 0.07803833024 | D21: 0.8934056526 | E21: 0.07798620617 | N21: 9 | O21: =L14 -> 0.093065 | P21: =(1-O21/2*SUM($P$4:P20))/(1+O21/2) -> 0.426037636 | Q21: 0.09944231564
A22: 19 | C22: =$C$21+($C$27-$C$21)*(A22-$A$21)/($A$27-$A$21) -> 0.07832500039 | D22: 0.8874550175 | E22: 0.07825971455 | K22: Bid Spread | L22: 0.003 | N22: 9.5 | O22: =AVERAGE(O23,O21) -> 0.0937725 | P22: =(1-O22/2*SUM($P$4:P21))/(1+O22/2) -> 0.4027889864 | Q22: 0.1004511797
A23: 20 | C23: =$C$21+($C$27-$C$21)*(A23-$A$21)/($A$27-$A$21) -> 0.07861167054 | D23: 0.8815050574 | E23: 0.07853322294 | K23: Ask Spread | L23: 0.004 | N23: 10 | O23: =L15 -> 0.09448 | P23: =(1-O23/2*SUM($P$4:P22))/(1+O23/2) -> 0.380316943 | Q23: 0.1015023617
A24: 21 | C24: =$C$21+($C$27-$C$21)*(A24-$A$21)/($A$27-$A$21) -> 0.07889834069 | D24: 0.8755563073 | E24: 0.07880673132
A25: 22 | C25: =$C$21+($C$27-$C$21)*(A25-$A$21)/($A$27-$A$21) -> 0.07918501084 | D25: 0.8696092983 | E25: 0.07908023971
A26: 23 | C26: =$C$21+($C$27-$C$21)*(A26-$A$21)/($A$27-$A$21) -> 0.079471681 | D26: 0.8636645572 | E26: 0.0793537481 | K26: If 3 month and 6 month are not available, use the 1 year rate
A27: 24 | C27: =IF(ISERROR(VLOOKUP(A27/12,$N$4:$Q$23,4,FALSE)),"",VLOOKUP(A27/12,$N$4:$Q$23,4,FALSE)) -> 0.07975835115 | D27: 0.8577226064 | E27: =(1-D27)/(D27+D15) -> 0.07962725648
A28: 25 | C28: =$C$27+($C$33-$C$27)*(A28-$A$27)/($A$33-$A$27) -> 0.0798227723 | D28: 0.8521492428 | E28: =$E$27+($E$39-$E$27)*(A28-$A$27)/12 -> 0.07969114723
A29: 26 | C29: =$C$27+($C$33-$C$27)*(A29-$A$27)/($A$33-$A$27) -> 0.07988719345 | D29: 0.8466036824 | E29: =$E$27+($E$39-$E$27)*(A29-$A$27)/12 -> 0.07975503797
A30: 27 | C30: =$C$27+($C$33-$C$27)*(A30-$A$27)/($A$33-$A$27) -> 0.07995161461 | D30: 0.841085855 | E30: 0.07981892872
A31: 28 | C31: =$C$27+($C$33-$C$27)*(A31-$A$27)/($A$33-$A$27) -> 0.08001603576 | D31: 0.8355956898 | E31: 0.07988281947
A32: 29 | C32: =$C$27+($C$33-$C$27)*(A32-$A$27)/($A$33-$A$27) -> 0.08008045691 | D32: 0.8301331156 | E32: 0.07994671021
A33: 30 | C33: =IF(ISERROR(VLOOKUP(A33/12,$N$4:$Q$23,4,FALSE)),"",VLOOKUP(A33/12,$N$4:$Q$23,4,FALSE)) -> 0.08014487807 | D33: 0.824698061 | E33: 0.08001060096
A34: 31 | C34: =$C$33+($C$39-$C$33)*(A34-$A$33)/($A$39-$A$33) -> 0.08021168947 | D34: 0.819285771 | E34: 0.0800744917
A35: 32 | C35: =$C$33+($C$39-$C$33)*(A35-$A$33)/($A$39-$A$33) -> 0.08027850087 | D35: 0.8139006184 | E35: 0.08013838245
A36: 33 | C36: =$C$33+($C$39-$C$33)*(A36-$A$33)/($A$39-$A$33) -> 0.08034531227 | D36: 0.8085425363 | E36: 0.0802022732
A37: 34 | C37: =$C$33+($C$39-$C$33)*(A37-$A$33)/($A$39-$A$33) -> 0.08041212368 | D37: 0.8032114572 | E37: 0.08026616394
A38: 35 | C38: =$C$33+($C$39-$C$33)*(A38-$A$33)/($A$39-$A$33) -> 0.08047893508 | D38: 0.7979073133 | E38: 0.08033005469
A39: 36 | C39: =IF(ISERROR(VLOOKUP(A39/12,$N$4:$Q$23,4,FALSE)),"",VLOOKUP(A39/12,$N$4:$Q$23,4,FALSE)) -> 0.08054574648 | D39: 0.7926300364 | E39: =(1-D39)/(D39+D27+D15) -> 0.08039394544
A40: 37 | C40: =$C$39+($C$45-$C$39)*(A40-$A$39)/($A$45-$A$39) -> 0.08067221265 | D40: 0.7872455496 | E40: =$E$39+($E$51-$E$39)*(A40-$A$39)/12 -> 0.08050945877
A41: 38 | C41: =$C$39+($C$45-$C$39)*(A41-$A$39)/($A$45-$A$39) -> 0.08079867882 | D41: 0.7818824235 | E41: =$E$39+($E$51-$E$39)*(A41-$A$39)/12 -> 0.08062497211
A42: 39 | C42: =$C$39+($C$45-$C$39)*(A42-$A$39)/($A$45-$A$39) -> 0.08092514499 | D42: 0.7765407233 | E42: 0.08074048544
A43: 40 | C43: =$C$39+($C$45-$C$39)*(A43-$A$39)/($A$45-$A$39) -> 0.08105161116 | D43: 0.7712205124 | E43: 0.08085599878
A44: 41 | C44: =$C$39+($C$45-$C$39)*(A44-$A$39)/($A$45-$A$39) -> 0.08117807732 | D44: 0.7659218524 | E44: 0.08097151211
A45: 42 | C45: =IF(ISERROR(VLOOKUP(A45/12,$N$4:$Q$23,4,FALSE)),"",VLOOKUP(A45/12,$N$4:$Q$23,4,FALSE)) -> 0.08130454349 | D45: 0.7606448034 | E45: 0.08108702545
A46: 43 | C46: =$C$45+($C$51-$C$45)*(A46-$A$45)/($A$51-$A$45) -> 0.08143321369 | D46: 0.7553839068 | E46: 0.08120253878
A47: 44 | C47: =$C$45+($C$51-$C$45)*(A47-$A$45)/($A$51-$A$45) -> 0.08156188388 | D47: 0.750144559 | E47: 0.08131805212
A48: 45 | C48: =$C$45+($C$51-$C$45)*(A48-$A$45)/($A$51-$A$45) -> 0.08169055407 | D48: 0.7449268195 | E48: 0.08143356546
A49: 46 | C49: =$C$45+($C$51-$C$45)*(A49-$A$45)/($A$51-$A$45) -> 0.08181922427 | D49: 0.7397307464 | E49: 0.08154907879
A50: 47 | C50: =$C$45+($C$51-$C$45)*(A50-$A$45)/($A$51-$A$45) -> 0.08194789446 | D50: 0.7345563958 | E50: 0.08166459213
A51: 48 | C51: =IF(ISERROR(VLOOKUP(A51/12,$N$4:$Q$23,4,FALSE)),"",VLOOKUP(A51/12,$N$4:$Q$23,4,FALSE)) -> 0.08207656466 | D51: 0.7294038223 | E51: =(1-D51)/(D51+D39+D27+D15) -> 0.08178010546
A52: 49 | C52: =$C$51+($C$57-$C$51)*(A52-$A$51)/($A$57-$A$51) -> 0.08223015618 | D52: 0.7242049776 | E52: =$E$51+($E$63-$E$51)*(A52-$A$51)/12 -> 0.08191490439
A53: 50 | C53: =$C$51+($C$57-$C$51)*(A53-$A$51)/($A$57-$A$51) -> 0.08238374771 | D53: 0.7190262392 | E53: =$E$51+($E$63-$E$51)*(A53-$A$51)/12 -> 0.08204970332
A54: 51 | C54: =$C$51+($C$57-$C$51)*(A54-$A$51)/($A$57-$A$51) -> 0.08253733924 | D54: 0.7138677101 | E54: 0.08218450225
A55: 52 | C55: =$C$51+($C$57-$C$51)*(A55-$A$51)/($A$57-$A$51) -> 0.08269093077 | D55: 0.7087294913 | E55: 0.08231930118
A56: 53 | C56: =$C$51+($C$57-$C$51)*(A56-$A$51)/($A$57-$A$51) -> 0.0828445223 | D56: 0.7036116812 | E56: 0.0824541001
A57: 54 | C57: =IF(ISERROR(VLOOKUP(A57/12,$N$4:$Q$23,4,FALSE)),"",VLOOKUP(A57/12,$N$4:$Q$23,4,FALSE)) -> 0.08299811382 | D57: 0.6985143763 | E57: 0.08258889903
A58: 55 | C58: =$C$57+($C$63-$C$57)*(A58-$A$57)/($A$63-$A$57) -> 0.08315444834 | D58: 0.6934296221 | E58: 0.08272369796
A59: 56 | C59: =$C$57+($C$63-$C$57)*(A59-$A$57)/($A$63-$A$57) -> 0.08331078285 | D59: 0.6883653884 | E59: 0.08285849689
A60: 57 | C60: =$C$57+($C$63-$C$57)*(A60-$A$57)/($A$63-$A$57) -> 0.08346711737 | D60: 0.6833217706 | E60: 0.08299329582
A61: 58 | C61: =$C$57+($C$63-$C$57)*(A61-$A$57)/($A$63-$A$57) -> 0.08362345188 | D61: 0.6782988619 | E61: 0.08312809475
A62: 59 | C62: =$C$57+($C$63-$C$57)*(A62-$A$57)/($A$63-$A$57) -> 0.0837797864 | D62: 0.6732967534 | E62: 0.08326289368
A63: 60 | C63: =IF(ISERROR(VLOOKUP(A63/12,$N$4:$Q$23,4,FALSE)),"",VLOOKUP(A63/12,$N$4:$Q$23,4,FALSE)) -> 0.08393612091 | D63: 0.6683155337 | E63: =(1-D63)/(D63+D51+D39+D27+D15) -> 0.0833976926
A64: 61 | C64: =$C$63+($C$69-$C$63)*(A64-$A$63)/($A$69-$A$63) -> 0.08426360769 | D64: 0.6628231779 | E64: =$E$63+($E$75-$E$63)*(A64-$A$64)/12 -> 0.0833976926
A65: 62 | C65: =$C$63+($C$69-$C$63)*(A65-$A$63)/($A$69-$A$63) -> 0.08459109446 | D65: 0.6573431732 | E65: =$E$63+($E$75-$E$63)*(A65-$A$64)/12 -> 0.0836674979
A66: 63 | C66: =$C$63+($C$69-$C$63)*(A66-$A$63)/($A$69-$A$63) -> 0.08491858123 | D66: 0.6518759766 | E66: 0.08393730319
A67: 64 | C67: =$C$63+($C$69-$C$63)*(A67-$A$63)/($A$69-$A$63) -> 0.08524606801 | D67: 0.6464220388 | E67: 0.08420710849
A68: 65 | C68: =$C$63+($C$69-$C$63)*(A68-$A$63)/($A$69-$A$63) -> 0.08557355478 | D68: 0.6409818046 | E68: 0.08447691378
A69: 66 | C69: =IF(ISERROR(VLOOKUP(A69/12,$N$4:$Q$23,4,FALSE)),"",VLOOKUP(A69/12,$N$4:$Q$23,4,FALSE)) -> 0.08590104155 | D69: =1/(1+C69)^(A69/12) -> 0.6355557127 | E69: 0.08474671907
A70: 67 | C70: =$C$69+($C$75-$C$69)*(A70-$A$69)/($A$75-$A$69) -> 0.0862354376 | D70: 0.6301218166 | E70: 0.08501652437
A71: 68 | C71: =$C$69+($C$75-$C$69)*(A71-$A$69)/($A$75-$A$69) -> 0.08656983365 | D71: 0.6247026569 | E71: 0.08528632966
A72: 69 | C72: =$C$69+($C$75-$C$69)*(A72-$A$69)/($A$75-$A$69) -> 0.0869042297 | D72: 0.6192986692 | E72: 0.08555613495
A73: 70 | C73: =$C$69+($C$75-$C$69)*(A73-$A$69)/($A$75-$A$69) -> 0.08723862575 | D73: 0.6139102829 | E73: 0.08582594025
A74: 71 | C74: =$C$69+($C$75-$C$69)*(A74-$A$69)/($A$75-$A$69) -> 0.0875730218 | D74: 0.6085379206 | E74: 0.08609574554
A75: 72 | C75: =IF(ISERROR(VLOOKUP(A75/12,$N$4:$Q$23,4,FALSE)),"",VLOOKUP(A75/12,$N$4:$Q$23,4,FALSE)) -> 0.08790741785 | D75: 0.6031819988 | E75: =(1-D75)/(D75+D63+D51+D39+D27+D15) -> 0.08663535613
A76: 73 | C76: =$C$75+($C$81-$C$75)*(A76-$A$75)/($A$81-$A$75) -> 0.088083274 | D76: 0.5983730371 | E76: =$E$75+($E$87-$E$75)*(A76-$A$75)/12 -> 0.08678050704
A77: 74 | C77: =$C$75+($C$81-$C$75)*(A77-$A$75)/($A$81-$A$75) -> 0.08825913015 | D77: 0.5935865204 | E77: =$E$75+($E$87-$E$75)*(A77-$A$75)/12 -> 0.08692565795
A78: 75 | C78: =$C$75+($C$81-$C$75)*(A78-$A$75)/($A$81-$A$75) -> 0.0884349863 | D78: 0.5888225284 | E78: 0.08707080886
A79: 76 | C79: =$C$75+($C$81-$C$75)*(A79-$A$75)/($A$81-$A$75) -> 0.08861084245 | D79: 0.5840811381 | E79: 0.08721595977
A80: 77 | C80: =$C$75+($C$81-$C$75)*(A80-$A$75)/($A$81-$A$75) -> 0.0887866986 | D80: 0.5793624239 | E80: 0.08736111069
A81: 78 | C81: =IF(ISERROR(VLOOKUP(A81/12,$N$4:$Q$23,4,FALSE)),"",VLOOKUP(A81/12,$N$4:$Q$23,4,FALSE)) -> 0.08896255475 | D81: 0.5746664581 | E81: 0.0875062616
A82: 79 | C82: =$C$81+($C$87-$C$81)*(A82-$A$81)/($A$87-$A$81) -> 0.08914311973 | D82: 0.5699770867 | E82: 0.08765141251
A83: 80 | C83: =$C$81+($C$87-$C$81)*(A83-$A$81)/($A$87-$A$81) -> 0.0893236847 | D83: 0.5653104633 | E83: 0.08779656342
A84: 81 | C84: =$C$81+($C$87-$C$81)*(A84-$A$81)/($A$87-$A$81) -> 0.08950424967 | D84: 0.5606666607 | E84: 0.08794171433
A85: 82 | C85: =$C$81+($C$87-$C$81)*(A85-$A$81)/($A$87-$A$81) -> 0.08968481465 | D85: 0.5560457489 | E85: 0.08808686524
A86: 83 | C86: =$C$81+($C$87-$C$81)*(A86-$A$81)/($A$87-$A$81) -> 0.08986537962 | D86: 0.5514477955 | E86: 0.08823201615
A87: 84 | C87: =IF(ISERROR(VLOOKUP(A87/12,$N$4:$Q$23,4,FALSE)),"",VLOOKUP(A87/12,$N$4:$Q$23,4,FALSE)) -> 0.0900459446 | D87: 0.5468728657 | E87: =(1-D87)/(D87+D75+D63+D51+D39+D27+D15) -> 0.08837716706
A88: 85 | C88: =$C$87+($C$93-$C$87)*(A88-$A$87)/($A$93-$A$87) -> 0.09073459741 | D88: 0.5405341291 | E88: =$E$87+($E$99-$E$87)*(A88-$A$87)/12 -> 0.08887579253
A89: 86 | C89: =$C$87+($C$93-$C$87)*(A89-$A$87)/($A$93-$A$87) -> 0.09142325022 | D89: 0.5342141554 | E89: =$E$87+($E$99-$E$87)*(A89-$A$87)/12 -> 0.08937441799
A90: 87 | C90: =$C$87+($C$93-$C$87)*(A90-$A$87)/($A$93-$A$87) -> 0.09211190303 | D90: 0.5279140627 | E90: 0.08987304346
A91: 88 | C91: =$C$87+($C$93-$C$87)*(A91-$A$87)/($A$93-$A$87) -> 0.09280055585 | D91: 0.5216349481 | E91: 0.09037166892
A92: 89 | C92: =$C$87+($C$93-$C$87)*(A92-$A$87)/($A$93-$A$87) -> 0.09348920866 | D92: 0.5153778872 | E92: 0.09087029438
A93: 90 | C93: =IF(ISERROR(VLOOKUP(A93/12,$N$4:$Q$23,4,FALSE)),"",VLOOKUP(A93/12,$N$4:$Q$23,4,FALSE)) -> 0.09417786147 | D93: 0.5091439344 | E93: 0.09136891985
A94: 91 | C94: =$C$93+($C$99-$C$93)*(A94-$A$93)/($A$99-$A$93) -> 0.09489541562 | D94: 0.5028334571 | E94: 0.09186754531
A95: 92 | C95: =$C$93+($C$99-$C$93)*(A95-$A$93)/($A$99-$A$93) -> 0.09561296977 | D95: 0.4965485716 | E95: 0.09236617077
A96: 93 | C96: =$C$93+($C$99-$C$93)*(A96-$A$93)/($A$99-$A$93) -> 0.09633052391 | D96: 0.4902903321 | E96: 0.09286479624
A97: 94 | C97: =$C$93+($C$99-$C$93)*(A97-$A$93)/($A$99-$A$93) -> 0.09704807806 | D97: 0.4840597693 | E97: 0.0933634217
A98: 95 | C98: =$C$93+($C$99-$C$93)*(A98-$A$93)/($A$99-$A$93) -> 0.09776563221 | D98: 0.4778578899 | E98: 0.09386204717
A99: 96 | C99: =IF(ISERROR(VLOOKUP(A99/12,$N$4:$Q$23,4,FALSE)),"",VLOOKUP(A99/12,$N$4:$Q$23,4,FALSE)) -> 0.09848318636 | D99: 0.471685677 | E99: =(1-D99)/(D99+D87+D75+D63+D51+D39+D27+D15) -> 0.09436067263
A100: 97 | C100: =$C$99+($C$105-$C$99)*(A100-$A$99)/($A$105-$A$99) -> 0.09856027773 | D100: 0.4677425476 | E100: =$E$99+($E$111-$E$99)*(A100-$A$99)/12 -> 0.09443601032
A101: 98 | C101: =$C$99+($C$105-$C$99)*(A101-$A$99)/($A$105-$A$99) -> 0.09863736909 | D101: 0.463826975 | E101: =$E$99+($E$111-$E$99)*(A101-$A$99)/12 -> 0.09451134802
A102: 99 | C102: =$C$99+($C$105-$C$99)*(A102-$A$99)/($A$105-$A$99) -> 0.09871446046 | D102: 0.4599388199 | E102: 0.09458668571
A103: 100 | C103: =$C$99+($C$105-$C$99)*(A103-$A$99)/($A$105-$A$99) -> 0.09879155183 | D103: 0.4560779434 | E103: 0.0946620234
A104: 101 | C104: =$C$99+($C$105-$C$99)*(A104-$A$99)/($A$105-$A$99) -> 0.0988686432 | D104: 0.4522442066 | E104: 0.0947373611
A105: 102 | C105: =IF(ISERROR(VLOOKUP(A105/12,$N$4:$Q$23,4,FALSE)),"",VLOOKUP(A105/12,$N$4:$Q$23,4,FALSE)) -> 0.09894573457 | D105: 0.4484374709 | E105: 0.09481269879
A106: 103 | C106: =$C$105+($C$111-$C$105)*(A106-$A$105)/($A$111-$A$105) -> 0.09902849808 | D106: 0.4446379005 | E106: 0.09488803649
A107: 104 | C107: =$C$105+($C$111-$C$105)*(A107-$A$105)/($A$111-$A$105) -> 0.09911126159 | D107: 0.4408650115 | E107: 0.09496337418
A108: 105 | C108: =$C$105+($C$111-$C$105)*(A108-$A$105)/($A$111-$A$105) -> 0.09919402511 | D108: 0.4371186723 | E108: 0.09503871187
A109: 106 | C109: =$C$105+($C$111-$C$105)*(A109-$A$105)/($A$111-$A$105) -> 0.09927678862 | D109: 0.433398751 | E109: 0.09511404957
A110: 107 | C110: =$C$105+($C$111-$C$105)*(A110-$A$105)/($A$111-$A$105) -> 0.09935955213 | D110: 0.4297051161 | E110: 0.09518938726
A111: 108 | C111: =IF(ISERROR(VLOOKUP(A111/12,$N$4:$Q$23,4,FALSE)),"",VLOOKUP(A111/12,$N$4:$Q$23,4,FALSE)) -> 0.09944231564 | D111: 0.426037636 | E111: =(1-D111)/(D111+D99+D87+D75+D63+D51+D39+D27+D15) -> 0.09526472495
A112: 109 | C112: =$C$111+($C$117-$C$111)*(A112-$A$111)/($A$117-$A$111) -> 0.09961045965 | D112: 0.4220983629 | E112: =$E$111+($E$123-$E$111)*(A112-$A$111)/12 -> 0.09538819038
A113: 110 | C113: =$C$111+($C$117-$C$111)*(A113-$A$111)/($A$117-$A$111) -> 0.09977860365 | D113: 0.4181849447 | E113: =$E$111+($E$123-$E$111)*(A113-$A$111)/12 -> 0.09551165581
A114: 111 | C114: =$C$111+($C$117-$C$111)*(A114-$A$111)/($A$117-$A$111) -> 0.09994674766 | D114: 0.4142973407 | E114: 0.09563512123
A115: 112 | C115: =$C$111+($C$117-$C$111)*(A115-$A$111)/($A$117-$A$111) -> 0.1001148917 | D115: 0.4104355091 | E115: 0.09575858666
A116: 113 | C116: =$C$111+($C$117-$C$111)*(A116-$A$111)/($A$117-$A$111) -> 0.1002830357 | D116: 0.4065994061 | E116: 0.09588205209
A117: 114 | C117: =IF(ISERROR(VLOOKUP(A117/12,$N$4:$Q$23,4,FALSE)),"",VLOOKUP(A117/12,$N$4:$Q$23,4,FALSE)) -> 0.1004511797 | D117: 0.4027889864 | E117: 0.09600551751
A118: 115 | C118: =$C$114+($C$123-$C$117)*(A118-$A$117)/($A$123-$A$117) -> 0.1001219447 | D118: 0.4007363453 | E118: 0.09612898294
A119: 116 | C119: =$C$114+($C$123-$C$117)*(A119-$A$117)/($A$123-$A$117) -> 0.1002971417 | D119: 0.3969509211 | E119: 0.09625244837
A120: 117 | C120: =$C$114+($C$123-$C$117)*(A120-$A$117)/($A$123-$A$117) -> 0.1004723387 | D120: 0.3931909164 | E120: 0.09637591379
A121: 118 | C121: =$C$114+($C$123-$C$117)*(A121-$A$117)/($A$123-$A$117) -> 0.1006475357 | D121: 0.3894562897 | E121: 0.09649937922
A122: 119 | C122: =$C$114+($C$123-$C$117)*(A122-$A$117)/($A$123-$A$117) -> 0.1008227327 | D122: 0.3857469978 | E122: 0.09662284465
A123: 120 | C123: =IF(ISERROR(VLOOKUP(A123/12,$N$4:$Q$23,4,FALSE)),"",VLOOKUP(A123/12,$N$4:$Q$23,4,FALSE)) -> 0.1015023617 | D123: 0.380316943 | E123: =(1-D123)/(D123+D111+D99+D87+D75+D63+D51+D39+D27+D15) -> 0.09674631007

Sheet MIFOR curve (hidden)
C1: Rate | H1: Linear interpolation | L1: Mod date | M1: =TODAY() -> 2012-09-23
B2: MITOR | C2: 0.07 | H2: Months | I2: Nominal Rate | J2: Discount factor
B3: 1M MIFOR | C3: 0.071 | H3: 1 | I3: =C3 -> 0.071 | J3: =1/(1+I3*H3/12) -> 0.9941181344 | L3: MIFOR rate for tenor
B4: 2M MIFOR | C4: 0.072 | H4: 2 | I4: =AVERAGE(I3,I5) -> 0.072 | J4: 0.9881422925 | L4: =VLOOKUP(term,'MIFOR curve'!H3:I62,2,FALSE) -> 0
B5: 3M MIFOR | C5: 0.073 | H5: 3 | I5: =C5 -> 0.073 | J5: 0.9820770931
B6: 6M MIFOR | C6: 0.074 | H6: 4 | I6: =$I$5+($I$8-$I$5)*(H6-$H$5)/($H$8-$H$5) -> 0.07333333333 | J6: 0.9761388286
B7: 9M MIFOR | C7: 0.075 | H7: 5 | I7: =$I$5+($I$8-$I$5)*(H7-$H$5)/($H$8-$H$5) -> 0.07366666667 | J7: 0.9702196469
B8: 12M MIFOR | C8: 0.076 | H8: 6 | I8: =C6 -> 0.074 | J8: 0.9643201543
H9: 7 | I9: =$I$8+($I$11-$I$8)*(H9-$H$8)/($H$11-$H$8) -> 0.07433333333 | J9: 0.9584409361
H10: 8 | I10: =$I$8+($I$11-$I$8)*(H10-$H$8)/($H$11-$H$8) -> 0.07466666667 | J10: 0.9525825572
H11: 9 | I11: =C7 -> 0.075 | J11: 0.9467455621
H12: 10 | I12: =$I$11+($I$14-$I$11)*(H12-$H$11)/($H$14-$H$11) -> 0.07533333333 | J12: 0.9409304757
H13: 11 | I13: =$I$11+($I$14-$I$11)*(H13-$H$11)/($H$14-$H$11) -> 0.07566666667 | J13: 0.9351378029
H14: 12 | I14: =C8 -> 0.076 | J14: 0.9293680297
B15: Bid Spread | C15: 0.004 | H15: 13 | I15: =$I$14+($I$26-$I$14)*(H15-$H$14)/($H$26-$H$14) -> 0.06966666667 | J15: =1/(1+I15)^(H15/12) -> 0.929638638
B16: Ask Spread | C16: 0.005 | H16: 14 | I16: 0.06333333333 | J16: 0.9308627828
H17: 15 | I17: 0.057 | J17: 0.9330528975
H18: 16 | I18: 0.05066666667 | J18: 0.9362246277
H19: 17 | I19: 0.04433333333 | J19: 0.9403969634
H20: 18 | I20: 0.038 | J20: 0.9455923929
H21: 19 | I21: 0.03166666667 | J21: 0.951837079
H22: 20 | I22: 0.02533333333 | J22: 0.9591610608
H23: 21 | I23: 0.019 | J23: 0.9675984812
H24: 22 | I24: 0.01266666667 | J24: 0.9771878449
H25: 23 | I25: 0.006333333333 | J25: 0.9879723074
H26: 24 | I26: =C9 -> 0 | J26: 1
H27: 25 | I27: =$I$26+($I$38-$I$26)*(H27-$H$26)/($H$38-$H$26) -> 0 | J27: 1
H28: 26 | I28: 0 | J28: 1
H29: 27 | I29: 0 | J29: 1
H30: 28 | I30: 0 | J30: 1
H31: 29 | I31: 0 | J31: 1
H32: 30 | I32: 0 | J32: 1
H33: 31 | I33: 0 | J33: 1
H34: 32 | I34: 0 | J34: 1
H35: 33 | I35: 0 | J35: 1
H36: 34 | I36: 0 | J36: 1
H37: 35 | I37: 0 | J37: 1
H38: 36 | I38: =C10 -> 0 | J38: 1
H39: 37 | I39: =$I$38+($I$50-$I$38)*(H39-$H$38)/($H$50-$H$38) -> 0 | J39: 1
H40: 38 | I40: 0 | J40: 1
H41: 39 | I41: 0 | J41: 1
H42: 40 | I42: 0 | J42: 1
H43: 41 | I43: 0 | J43: 1
H44: 42 | I44: 0 | J44: 1
H45: 43 | I45: 0 | J45: 1
H46: 44 | I46: 0 | J46: 1
H47: 45 | I47: 0 | J47: 1
H48: 46 | I48: 0 | J48: 1
H49: 47 | I49: 0 | J49: 1
H50: 48 | I50: =C11 -> 0 | J50: 1
H51: 49 | I51: =$I$50+($I$62-$I$50)*(H51-$H$50)/($H$62-$H$50) -> 0 | J51: 1
H52: 50 | I52: 0 | J52: 1
H53: 51 | I53: 0 | J53: 1
H54: 52 | I54: 0 | J54: 1
H55: 53 | I55: 0 | J55: 1
H56: 54 | I56: 0 | J56: 1
H57: 55 | I57: 0 | J57: 1
H58: 56 | I58: 0 | J58: 1
H59: 57 | I59: 0 | J59: 1
H60: 58 | I60: 0 | J60: 1
H61: 59 | I61: 0 | J61: 1
H62: 60 | I62: =C12 -> 0 | J62: 1

Sheet Overnight curve
C1: Rate | H1: Linear interpolation | L1: Mod date | M1: =TODAY() -> 2012-09-23
B2: MIBOR | C2: 0.07 | H2: Months | I2: Nominal Rate | J2: Discount factor
B3: 1M MIOIS | C3: 0.071 | H3: 1 | I3: =C3 -> 0.071 | J3: =1/(1+I3*H3/12) -> 0.9941181344 | L3: OIS rate for tenor
B4: 2M MIOIS | C4: 0.072 | H4: 2 | I4: =C4 -> 0.072 | J4: =1/(1+I4*H4/12) -> 0.9881422925 | L4: =VLOOKUP(term,'Overnight curve'!H3:I62,2,FALSE) -> 0.077
B5: 3M MIOIS | C5: 0.073 | H5: 3 | I5: =C5 -> 0.073 | J5: 0.9820770931
B6: 6M MIOIS | C6: 0.074 | H6: 4 | I6: =$I$5+($I$8-$I$5)*(H6-$H$5)/($H$8-$H$5) -> 0.07333333333 | J6: 0.9761388286
B7: 9M MIOIS | C7: 0.075 | H7: 5 | I7: =$I$5+($I$8-$I$5)*(H7-$H$5)/($H$8-$H$5) -> 0.07366666667 | J7: 0.9702196469
B8: 12M MIOIS | C8: 0.076 | H8: 6 | I8: =C6 -> 0.074 | J8: 0.9643201543
B9: 2Y MIOIS | C9: 0.077 | H9: 7 | I9: =$I$8+($I$11-$I$8)*(H9-$H$8)/($H$11-$H$8) -> 0.07433333333 | J9: 0.9584409361
B10: 3Y MIOIS | C10: 0.078 | H10: 8 | I10: =$I$8+($I$11-$I$8)*(H10-$H$8)/($H$11-$H$8) -> 0.07466666667 | J10: 0.9525825572
B11: 4Y MIOIS | C11: 0.079 | H11: 9 | I11: =C7 -> 0.075 | J11: 0.9467455621
B12: 5Y MIOIS | C12: 0.08 | H12: 10 | I12: =$I$11+($I$14-$I$11)*(H12-$H$11)/($H$14-$H$11) -> 0.07533333333 | J12: 0.9409304757
H13: 11 | I13: =$I$11+($I$14-$I$11)*(H13-$H$11)/($H$14-$H$11) -> 0.07566666667 | J13: 0.9351378029
H14: 12 | I14: =C8 -> 0.076 | J14: 0.9293680297
B15: Bid Spread | C15: 0.001 | H15: 13 | I15: =$I$14+($I$26-$I$14)*(H15-$H$14)/($H$26-$H$14) -> 0.07608333333 | J15: =1/(1+I15)^(H15/12) -> 0.9236347618
B16: Ask Spread | C16: 0.002 | H16: 14 | I16: =$I$14+($I$26-$I$14)*(H16-$H$14)/($H$26-$H$14) -> 0.07616666667 | J16: =1/(1+I16)^(H16/12) -> 0.9179250207
H17: 15 | I17: 0.07625 | J17: 0.9122388092
H18: 16 | I18: 0.07633333333 | J18: 0.9065761292
H19: 17 | I19: 0.07641666667 | J19: 0.9009369816
H20: 18 | I20: 0.0765 | J20: 0.8953213662
H21: 19 | I21: 0.07658333333 | J21: 0.8897292822
H22: 20 | I22: 0.07666666667 | J22: 0.8841607276
H23: 21 | I23: 0.07675 | J23: 0.8786156996
H24: 22 | I24: 0.07683333333 | J24: 0.8730941945
H25: 23 | I25: 0.07691666667 | J25: 0.8675962076
H26: 24 | I26: =C9 -> 0.077 | J26: 0.8621217333
H27: 25 | I27: =$I$26+($I$38-$I$26)*(H27-$H$26)/($H$38-$H$26) -> 0.07708333333 | J27: 0.8566707653
H28: 26 | I28: =$I$26+($I$38-$I$26)*(H28-$H$26)/($H$38-$H$26) -> 0.07716666667 | J28: 0.8512432961
H29: 27 | I29: 0.07725 | J29: 0.8458393175
H30: 28 | I30: 0.07733333333 | J30: 0.8404588206
H31: 29 | I31: 0.07741666667 | J31: 0.8351017952
H32: 30 | I32: 0.0775 | J32: 0.8297682305
H33: 31 | I33: 0.07758333333 | J33: 0.824458115
H34: 32 | I34: 0.07766666667 | J34: 0.8191714359
H35: 33 | I35: 0.07775 | J35: 0.81390818
H36: 34 | I36: 0.07783333333 | J36: 0.808668333
H37: 35 | I37: 0.07791666667 | J37: 0.8034518799
H38: 36 | I38: =C10 -> 0.078 | J38: 0.7982588047
H39: 37 | I39: =$I$38+($I$50-$I$38)*(H39-$H$38)/($H$50-$H$38) -> 0.07808333333 | J39: 0.7930890907
H40: 38 | I40: =$I$38+($I$50-$I$38)*(H40-$H$38)/($H$50-$H$38) -> 0.07816666667 | J40: 0.7879427205
H41: 39 | I41: 0.07825 | J41: 0.7828196757
H42: 40 | I42: 0.07833333333 | J42: 0.7777199371
H43: 41 | I43: 0.07841666667 | J43: 0.7726434849
H44: 42 | I44: 0.0785 | J44: 0.7675902983
H45: 43 | I45: 0.07858333333 | J45: 0.7625603558
H46: 44 | I46: 0.07866666667 | J46: 0.7575536352
H47: 45 | I47: 0.07875 | J47: 0.7525701134
H48: 46 | I48: 0.07883333333 | J48: 0.7476097665
H49: 47 | I49: 0.07891666667 | J49: 0.7426725702
H50: 48 | I50: =C11 -> 0.079 | J50: 0.737758499
H51: 49 | I51: =$I$50+($I$62-$I$50)*(H51-$H$50)/($H$62-$H$50) -> 0.07908333333 | J51: 0.7328675268
H52: 50 | I52: =$I$50+($I$62-$I$50)*(H52-$H$50)/($H$62-$H$50) -> 0.07916666667 | J52: 0.727999627
H53: 51 | I53: 0.07925 | J53: 0.7231547719
H54: 52 | I54: 0.07933333333 | J54: 0.7183329334
H55: 53 | I55: 0.07941666667 | J55: 0.7135340824
H56: 54 | I56: 0.0795 | J56: 0.7087581893
H57: 55 | I57: 0.07958333333 | J57: 0.7040052238
H58: 56 | I58: 0.07966666667 | J58: 0.6992751547
H59: 57 | I59: 0.07975 | J59: 0.6945679502
H60: 58 | I60: 0.07983333333 | J60: 0.689883578
H61: 59 | I61: 0.07991666667 | J61: 0.6852220049
H62: 60 | I62: =C12 -> 0.08 | J62: 0.680583197

Sheet Help
B1: Help sheet for the Swap Calculator
B2: This calculator is meant to be used as a tool for assessing swap rates. Users will have to enter the yield curve and the Bid/Ask spread they want
B3: Fixed-floating interest rate swaps
A4: 1 | B4: Enter the term of the swap.
A5: 2 | B5: Choose the floating rate benchmark
B6: Curently available benchmarks are Government Treasury, OIS rates and MIFOR
A7: 3 | B7: Choose the floating rate reset frequency.
B8: For a G-Sec, this means that the floating rate will be the yield on a G-Sec with the same maturity as the reset frequency
B9: For OIS and MIFOR, this means that the floating rate will be OIS or the MIFOR for the same tenor as the reset frequency
A10: 4 | B10: Choose frequency of cash flow exchange
B11: The choice is restricted to tenors below the floating rate reset frequency
A12: 5 | B12: Press calculate to get the output as a fixed rate
B13: This is the bid rate or the ask rate depending on whether the user has chosen to receive or pay fixed cash flows
B16: Constant Maturity Treasury Swaps
B17: These are swaps where the floating rate benchmark (a constant maturity treasury rate) can have a duration more than the reset frequency
A18: 1 | B18: Enter the term of the swap
A19: 2 | B19: Choose the floating rate bencmark
B20: Choice will be between G-Sec yields ranging from the 1 yr CMT rate to the 10 Year CMT rate
A21: 3 | B21: Choose floating rate reset frequency
B22: This can be less than the duration of the CMT
A23: 4 | B23: Choose frequency of cash flow exchange
B24: The choice is restricted to tenors below the floating rate reset frequency
A25: 5 | B25: Press calculate to get the output as a fixed rate
B26: This is the bid rate or the ask rate depending on whether the user has chosen to receive or pay fixed cash flows
B29: Maximum terms possible
B30: For CMT, maximum term possible = 10 years - the chosen G-sec benchmark
B31: For OIS, maximum term possible = 5 years
B32: For IRS,
B33: G-Sec linked, maximum term possible is 10 years
B34: OIS linked, maximum term possible is 5 years
B35: MIFOR linked, maximum term possible is 1 year

Sheet Clients input
C2: Swap Calculator
A4: Value Date | B4: =TODAY() -> 2012-09-23 | D4: Yield Curve Modification Date | F4: =Range!G1 -> 2001-12-24
A6: Swap Type
A8: Term of the Swap | B8: 24 | C8: months | D8: Please see help sheet for maximum term possible
A10: Client receives
A12: Floating Benchmark Curve
A14: Floating Rate Reset Frequency
A16: Cash Flow Frequency
A18: Day Count Convention
A22: Please enter all the fields mentioned above. Otherwise the calculator might give errors

Sheet Output Sheet (hidden)
A4: Swap Calculator Output | B4: Yield curve modification date | E4: ='Clients input'!F4 -> 2001-12-24
A6: Value Date | B6: ='Clients input'!B4 -> 2012-09-23
A8: Type of Swap | B8: =chosenswaptype -> Overnight Interest Swap
A10: Term of the Swap | B10: =term -> 24 | C10: months
A12: Floating Benchmark | B12: =IF(B8="Constant Maturity Treasury Swap",ChosenGSecType,chosenbenchmarkcurve) -> Government Treasury
A14: Floating rate reset every | B14: =IF(Range!C6=3,B10,Range!C48) -> 24 | C14: months
A16: Cash Flows exchanged every | B16: =IF(Range!C6=3,B14,Range!C69) -> 24 | C16: months
A18: Fixed rate of | B18: =Range!B80 -> 0.079 | C18: p.a. exchanged every | D18: =B14 -> 24 | E18: months
A19: =IF(B14=B16,"","OR") -> 
A20: =IF(B14=B16,"","Fixed rate of") ->  | B20: =IF(B14=B16,"",IF(Range!C6=3,B18,NOMINAL(EFFECT(B18,freq),12/Range!C69))) ->  | C20: =IF(B14=B16,"","p.a. exchanged every") ->  | D20: =IF(B14=B16,"",B16) ->  | E20: =IF(B14=B16,"","months") -> 

Sheet Range (hidden)
B1: Swap Type | F1: modifcation date | G1: 37249
B2: Fixed-Floating IRS Swap | C2: 1
B3: Constant Maturity Treasury Swap | C3: 2
B4: Overnight Interest Swap | C4: 3
B5: Chosen
B6: Overnight Interest Swap | C6: =VLOOKUP(chosenswaptype,B2:C4,2,FALSE) -> 3
B9: Receive
B10: Fixed | C10: 1
B11: Floating | C11: 2
B13: Chosen
B14: Floating | C14: =VLOOKUP(chosenreceivetype,B10:C11,2,FALSE) -> 2
B17: Benchmark Curve
B18: Government Treasury | C18: 1
B19: OIS | C19: 2
B20: MIFOR | C20: 3
B22: Chosen
B23: Government Treasury | C23: =VLOOKUP(chosenbenchmarkcurve,B18:C20,2,FALSE) -> 1
B25: Government Treasury Instrument
B26: 1 Year G-Sec | C26: 12
B27: 2 Year G-Sec | C27: 24
B28: 3 Year G-Sec | C28: 36
B29: 4 Year G-Sec | C29: 48
B30: 5 Year G-Sec | C30: 60
B31: 6 Year G-Sec | C31: 72
B32: 7 Year G-Sec | C32: 84
B33: 8 Year G-Sec | C33: 96
B34: 9 Year G-Sec | C34: 108
B35: 10 Year G-Sec | C35: 120
B37: Chosen
C38: =VLOOKUP(ChosenGSecType,B26:C35,2,FALSE) -> 
B41: Reset Period
B42: 1Month | C42: 1
B43: 3Month | C43: 3
B44: 6Month | C44: 6
B45: 1Year | C45: 12
B47: Chosen
B48: Daily | C48: =VLOOKUP(chosenresetperiod,B42:C45,2,FALSE) ->  | D48: Freq | E48: =12/C48 -> 
B51: Day count
B52: Actual/actual | C52: 1
B53: Actual/360 | C53: 2
B54: Actual/365 | C54: 3
B55: European 30/360 | C55: 4
B56: Other | C56: 5
B58: Chosen
B59: Actual/actual | C59: =VLOOKUP(chosendaycount,B52:C56,2,FALSE) -> 1
B62: Cash Flow Period
B63: 1Month | C63: 1
B64: 3Month | C64: 3
B65: 6Month | C65: 6
B66: 1Year | C66: 12
B68: Chosen
B69: 24 months | C69: =VLOOKUP(chosencashflowperiod,B63:C66,2,FALSE) -> 
E71: Spreads
E72: Pay | F72: Government Treasury | G72: OIS | H72: MIFOR
B73: Calculation of fixed rate | E73: Fixed | F73: =-'G-Sec Yield Curve'!L22 -> -0.003 | G73: =-'Overnight curve'!C15 -> -0.001 | H73: =-'MIFOR curve'!C15 -> -0.004
B74: 0.077 | E74: Floating | F74: ='G-Sec Yield Curve'!L23 -> 0.004 | G74: ='Overnight curve'!C16 -> 0.002 | H74: ='MIFOR curve'!C16 -> 0.005
B76: Spread Applicable
B77: =IF(C6=2,VLOOKUP(chosenreceivetype,E73:F74,2,FALSE),IF(C6=1,INDEX(F73:H74,MATCH(chosenreceivetype,E73:E74),MATCH(chosenbenchmarkcurve,F72:H72,FALSE)),VLOOKUP(chosenreceivetype,E73:G74,3,FALSE))) -> 0.002
B79: Total fixed rate
B80: =B77+B74 -> 0.079

Sheet Temp (hidden)
A1: Fixed-Floating IRS | B1: 1 | E1: 91-day T-bill (Primary Cutoff) | F1: 1 | H1: Reuters Benchmark | I1: 1
A2: Fixed-Floating CMT Swap | B2: 2 | E2: 91-day T-Bill (Secondary Market) | F2: 2 | H2: Bloomberg/FIMMDA Fair Market Curve | I2: 2
E3: 182-day T-bill (Primary Cutoff) | F3: 3 | H3: User Supplied | I3: 3
E4: 182-day T-Bill (Secondary Market) | F4: 4
E5: 364-day T-Bill (Primary cut-off) | F5: 5
E6: MIBOR (Overnight) | F6: 6
A7: Actual/actual | B7: 1 | E7: MIBOR (3 Month) | F7: 7
A8: Actual/360 | B8: 2 | E8: 1Yr. Benchmark GOISEC | F8: 8
A9: Actual/365 | B9: 3 | E9: 3 month OIS | F9: 9
A10: European 30/360 | B10: 4 | E10: 6 Month OIS | F10: 10
A11: Other | B11: 5 | E11: 1 Year OIS | F11: 11
E12: 6 Month Reuters Benchmark CP Rate | F12: 12
E13: 3 Month MIFOR | F13: 13
E14: 6 Month MIFOR | F14: 14
E15: Other | F15: 15
E18: 1 Year | F18: 1
A19: Annual | B19: 1 | E19: 2 Year | F19: 2
A20: Semiannual | B20: 2 | E20: 3 Year | F20: 3
A21: Quarterly | B21: 4 | E21: 4 Year | F21: 4
E22: 5 Year | F22: 5
E23: 6 Year | F23: 6
E24: 7 Year | F24: 7
E25: 8 Year | F25: 8
E26: 9 Year | F26: 9
E27: 10 Year | F27: 10
